Workbook

Sheet Base Information (hidden)
B1: DAIRY EQUIVALENCE CALCULATOR | G1: =$G$2 -> Base Information
B2: Client: | C2: Dairy Australia | F2: Area: | G2: Base Information
B3: Project: | C3: 2614DP24 | F3: Revision: | G3: V2.7
F4: Project Ref: | G4: 2614DP24
B7: =_xlfn.CONCAT("THIS DOCUMENT REPRESENTS CONFIDENTIAL INFORMATION FOR THE SOLE USE OF ",BaseInfo_ClientName,".") -> THIS DOCUMENT REPRESENTS CONFIDENTIAL INFORMATION FOR THE SOLE USE OF Dairy Australia.
B8: THIS DOCUMENT AND ASSOCIATED INFORMATION IS THE PROPERTY OF PROCESS PARTNERS PTY LTD AND AUTHORISED PARTNERS.
B9: USE OF THIS INFORMATION WITH ANY OTHER PARTY NOT SPECIFICALLY IDENTIFIED HEREIN IS NOT PERMITTED.

Sheet Instructions
B1: DAIRY EQUIVALENCE CALCULATOR | P1: =$P$2 -> Instructions
B2: Client: | C2: =BaseInfo_ClientName -> Dairy Australia | O2: Area: | P2: Instructions
B3: Project: | C3: =BaseInfo_Project -> 2614DP24 | O3: Revision: | P3: =BaseInfo_Revision -> V2.7
O4: Project Ref: | P4: =BaseInfo_ProjectReference -> 2614DP24
B8: How the calculator works
C10: The calculator utilizes food waste data provided by dairy manufacturers to determine the raw milk equivalence of dairy food waste, offering a standardized metric for discussions about dairy food waste.
C12: The food waste groups include:
D13: Dairy products (Milk, Cheese, Fresh ,Frozen, Powders)
D14: Dairy By-products (Whey, Mother Liquor, Lactose Concentrate)
D15: DAF Sludge
C17: The calculator also considers waste water and the BOD/COD values of the waste water
C19: The calculator steps are:
C20: 1 | D20: The food waste is categorised according to the food waste groups
C21: 2 | D21: Default product compositions are then used to calculate the total component masses for each product type
D22: Default composition can be found in the | F22: Calculator Composition tab.
C23: 3 | D23: A calculation is undertaken to estimate the "Raw Milk Equivalent" values for each food waste product type by:
D24: a. | E24: Selecting the most significant product component (i.e. Casein in cheese, Fat in butter, etc.) in order to calculate the volume of milk required to produce this component in the dairy waste product
D25: b. | E25: The volume of raw milk required to produce this component in the dairy waste product is calculated
D26: c. | E26: This volume becomes the "raw milk equivalence" values for the food product and is a reflection of the volumes of milk required to produce each food waste type
D28: The raw milk equivalence value is based on a common composition of milk and hence is a common metric to reflect the value of the food waste types
B32: Why the calculator was developed
C34: The milk equivalence calculator was developed as part of Action 1: Monitor Dairy Food Waste Across the Supply Chain and Establish an Industry Working Group, within the Dairy Food Waste Action Plan, aimed at achieving the goal of halving food waste by 2030. Since dairy is a significant source of food waste, comparing different waste types—like whey, cheese, and milk—by weight alone is not accurate. The calculator provides a standardized metric that reflects the milk input required for each waste type, enabling fair comparisons and more effective prioritization of interventions. Its purpose is to identify key waste sources and drive targeted efforts to reduce waste across the supply chain while retaining the highest possible value within the food waste hierarchy.
B38: How to use the calculator
C40: Input process
C42: The Input tab has 4 areas for input
C44: Area 1: Raw Material Input to site
D46: The operator is required to input the annualised raw material inputs to the site: | G46: Input page - Raw Material Input to Site table
D57: This data is used to estimate the milk equivalent input to the site
C62: Area 2: Pre-defined Dairy Food waste
D64: Use the Pre-Defined Dairy Food Waste Table if your waste streams are already defined in the calculator. If your waste streams involve dairy products (such as milk, cheese, fresh, frozen , and powders), dairy by-products (like whey, mother liquor, lactose concentrate), or DAF sludge, these are considered food waste that have already been defined in the calculator. You can enter your waste data directly into this table.
D67: See table in: | E67: Input page - Predefined Dairy Food waste table
C84: Typical products: | D84: The data is entered by selecting the product category, from the following drop down list (in column B):
D98: The product type can then be selected from a drop down list in Column C. This list will change, depending on the food category list selected
E100: Example of drop down list for milk:
D111: The Waste stream is then selected from a drop down list in column D. This shows various types of finished products, and un-finished products.
D123: The composition of all these products types are defined in the calculator - the operator can review these in: | J123: Calculator Compositions Tab
D126: If the operator has known product compositions of the waste streams, the values can be entered in columns G to K. Note, this is an optional entry. If the specific composition is not known, then please leave the cells blank and the predefined compositions will be used by the calculator.
D127: These columns will show in yellow if the values are entered:
D133: Note: If density is not entered, a value of 1000 kg/m3 is used
D135: The volumes of the food waste is entered in column N
D136: The units of waste volume are selected from a drop down list:
C151: By-Products: | D151: For By-products and DAF sludge, the data is ALSO entered in this table:
D153: For By-products, the product type is selected as per the drop down list below
D165: NOTE: The Waste stream type in Column D is to be left BLANK as shown above
D167: The By-product compositions can be left blank for the default values, or entered in the same way as the dairy waste products above
D168: The waste volumes are entered as per the dairy waste products above
C170: DAF Sludge: | D170: For DAF Sludge, the entry is as per below
D181: NOTE: The Waste stream type in column D is to be left BLANK as shown above
D183: The DAF composition can be left blank for the default values, or entered in the same way as the dairy waste products above
D184: The waste volumes are entered as per the dairy waste products above
C187: Area 3: User Defined Products
D189: This table is to be used for Food waste products that are NOT available in the drop down lists in the Pre-defined Dairy Food Waste Table.
D190: Any products that do NOT appear in the drop down lists can be entered in the User Defined Products table in the input page tab: | J190: Input page - User Defined Products
D208: The waste stream types are selected via a similar drop down list as the defined products table:
D210: The user is required to select a specified product (to be shown in Column E if desired) or a mixed product. The user also selects the waste stream for the products
D223: The composition and density for each of these products needs to be manually entered (The cells will be yellow). Note, the calculator does not have any pre-defined compositions for Other products and thus composition must be entered.
D224: If density is unknown, it can be left blank and will be assumed to be 1000 kg/m3
D225: If the units used for the waste volume is in t/yr, then density does not need to be entered
C228: Area 4: Waste Water/effluent volumes entry
D230: The waste water values and BOD/COD values for the site are to be entered in the below table: | H230: Input page -Waste Water Table
C247: Output Interpretation
C249: Output table
D250: The calculator output is on: | F250: Raw Milk Equivalence Calculator Tab
D265: The output tables shows a summary of each product type under each product category.
D266: The table shows a component break down of food waste - i.e. annualised component losses for Protein, Fat Lactose and Total solids are shown
C268: Milk equivalence calculations
D270: The raw milk equivalence calculations are undertaken on a component basis
D271: This means that one significant component is chosen (e.g. Protein) and then the volume of milk required to supply this amount of component is calculated
D272: This volume of milk then becomes the "Milk Equivalence" of the food waste
D274: A Basis default setting is shown in Column K, but the operator can change this setting in Column L if they disagree with the basis:
C292: Reasons for recommending calculation Basis
D294: Product | F294: Basis recommendation | H294: Reason
D295: Milk | F295: MSNF | H295: Milk Solids Non-Fat as a basis eliminates the impact of variable fat in standardised milk products
D296: Cheese (Hard and Soft) | F296: Casein | H296: Casein proteins are the primary component for cheese structure, thus casein basis reflects the milk input most accurately. A correction factor is added to account for kappa-casein losses in the cheese making process
D297: Cheese (Ricotta) | F297: Whey Protein | H297: Whey Protein is used as the basis, including the lost kappa-casein from the cheese making.
D298: High fat products (Butter, cream, ice-cream) | F298: Fat | H298: These products derive their value predominantly from their fat content, which requires significant milk input to extract. Fat should be the key equivalence factor.
D299: Desserts | F299: Protein | H299: This basis uses the protein as an indicator of the dairy used, since these products have other ingredients added, so fat or total solids are not a reflection of the dairy contributions
D300: Yoghurt | F300: Protein | H300: Protein is used as a basis to indicate dairy used, since fat is standardised to various levels and lactose is dependant on the fermentation process.
D301: Powders (Skim milk powder) | F301: MSNF | H301: Milk powders are concentrated forms of milk solids, and MSNF reflect the entirety of their compositional value.
D302: Powders (Whole milk powder) | F302: Protein | H302: Protein reflects the dairy content since the fat component is standardised to a lower level than the raw feed milk
D303: Powders (Whey powder and WPI) | F303: Whey Protein | H303: These powders are whey protein based, so this basis is selected, but this tends to show a very high milk equivalence since the casein protein directed to cheese making is not accounted for in this conversion
D304: Powders (Infant formula or Nutritional powders) | F304: Protein | H304: These powders have dairy protein in the formulation, but have other additives, so protein is used as a basis for milk equivalence
D305: By-products - Lactose Concentrate | F305: Lactose | H305: This by-product is primarily lactose, prior to lactose crystallisation
D306: By-products - Mother Liquor | F306: Lactose | H306: The composition of this by-product can be variable, but the main component is lactose, so this forms the basis of the milk equivalence
D307: By-products - Acid whey | F307: Lactose | H307: Lactose is the primary dairy component in this whey. A factor is used to allow for lactose lost during fermentation and this is then used as a basis for the milk equivalence
D308: By-products - Salty Whey | F308: Whey Protein | H308: Whey Protein is used as the basis, including the lost kappa-casein from the cheese making.
D311: For "Other" products, the calculator user is required to select the most appropriate basis. The user should select the basis by choosing the most significant component in each product as the basis of the calculator
D314: Note: the component values of the raw milk that the milk equivalence is based on can be found in: | H314: Assumptions Tab
D322: These can be changed to better reflect typical milk values
C324: Waste water milk equivalence
D326: The operator can select the calculation basis for the waste water milk equivalence using COD or BOD values from a drop down list:
D337: The milk equivalence is calculated using literature values for COD or BOD values for milk. This can be found on: | I337: Assumptions Tab
C348: Site Loss Flow chart
D350: See Tab: | E350: Site Loss Flow Chart
D352: This shows a summary of the milk equivalent input coming into the site, the food waste streams, the waste water contribution and the overall site losses.
D353: The flowchart also shows the milk equivalence losses as a percentage of the incoming milk

Sheet List (hidden)
B1: DAIRY EQUIVALENCE CALCULATOR | V1: =$V$2 -> List
B2: Client: | C2: =BaseInfo_ClientName -> Dairy Australia | U2: Area: | V2: List
B3: Project: | C3: =BaseInfo_Project -> 2614DP24 | U3: Revision: | V3: =BaseInfo_Revision -> V2.7
B4: Site 1: | C4: =BaseInfo_Site -> 0 | U4: Project Ref: | V4: =BaseInfo_ProjectReference -> 2614DP24
B8: Milk | C8: Cheese | D8: Fresh | E8: Frozen | F8: Powders | G8: By_products | H8: DAF_Sludge | I8: Other | J8: Waste Stream | Q8: Milk equiv basis
B9: Fresh milk | C9: Hard Cheese | D9: Butter | E9: Frozen Cream | F9: Skim Milk Powder | G9: By-products - Lactose Concentrate | H9: DAF Sludge | I9: Mixed Product | J9: Finished product - Packaged | K9: TRUE | L9: Raw milk | M9: kL/year | N9: Pre-onsite treatment | O9: L/year | P9: mg/L | Q9: Protein | R9: BOD | S9: Other
B10: Flavoured milk | C10: Soft Cheese | D10: Cream | E10: Frozen Yoghurt | F10: Whole Milk Powder | G10: By-products - Mother Liquor | I10: Specified in Column E | J10: Finished product - unpackaged | K10: Crude | L10: Standardised milk | M10: Tonnes/year | N10: Post-onsite treatment | O10: kL/year | P10: ppm | Q10: Casein | R10: COD
B11: ESL/UHT | C11: Ricotta | D11: Desserts | E11: Icecream | F11: Whey Powder | G11: By-products - Acid whey | J11: Unfinished product - Unpackaged | O11: ML/year | Q11: Whey Protein
D12: Sour Cream | F12: WPI Powder | G12: By-products - Salty Whey | J12: Unfinished product - intermediates | Q12: Fat
D13: Yoghurt | F13: Nutritional/Protein Powders | J13: Unfinished product - Raw | Q13: Lactose
F14: Infant Formula | Q14: MSNF
Q15: Total Solids

Sheet >>>CALCULATORS>>> (hidden)

Sheet Input page
B1: DAIRY EQUIVALENCE CALCULATOR | O1: =$O$2 -> Input page
B2: Client: | C2: =BaseInfo_ClientName -> Dairy Australia | O2: Input page
B3: Project: | C3: =BaseInfo_Project -> 2614DP24 | O3: =BaseInfo_Revision -> V2.7
O4: =BaseInfo_ProjectReference -> 2614DP24
B8: Raw Material Input to Site
B10: Dairy Raw Material Input at site (per year)
C11: Insert value | D11: Unit - Select from list
B12: Unprocessed milk
B13: Cream
B14: Powder
B15: Butter
B16: AMF
B18: Pre-defined Dairy Food Waste
B20: Product type | D20: Waste stream | E20: Description of waste stream | G20: Composition | N20: Estimated volume
B21: Select from list (Required) | C21: Select from list after entering Column B (Required) | D21: Select from list (Leave blank if DAF Sludge or By-product) (Required) | E21: Enter brief details (optional entry) | G21: Insert values if different to default values - see tab "Calculator Compositions" (Optional Entry) | N21: Insert value (Required) | O21: Select unit (Required)
G22: Calculator Compositions tab
B23: EXAMPLE: Fresh | C23: Yoghurt | D23: Finished product - packaged | E23: Out of date yoghurt tubs | G23: %P | H23: %F | I23: %Lactose | J23: %MSNF | K23: %TS | L23: Density (kg/m3) | N23: 10 | O23: Tonnes/year
B49: User Defined Products
B51: Product type | D51: Waste stream | E51: Description of waste stream | G51: Composition | N51: Estimated volume
B52: Other products (Required) | C52: Select from list after entering Column B (Required) | D52: Select from list (Required) | E52: Enter brief details (Optional) | G52: Insert value into yellow cells (Required) | N52: Insert value (Required) | O52: Select unit (Required)
B53: EXAMPLE: Other | D53: Finished product - packaged | E53: Cream Cheese | G53: %P | H53: %F | I53: %Lactose | J53: %MSNF | K53: %TS | L53: Density (kg/m3) | N53: 10 | O53: Tonnes/year
B69: WASTE WATER
B71: Waste water/effluent volumes | E71: Stage measured
C72: Insert value | D72: Select unit from list | E72: Select from list
B73: Annual average wastewater/effluent
B74: Average Biological Oxygen Demand (BOD) levels
B75: Average Chemical Oxygen Demand (COD) levels
B76: Calorific density of the dairy waste most likely in the wastewater/effluent
B77: This includes all wastewater/effluent generated by the site, rather than identifying specific waste streams disposed via sewer.

Sheet Incoming milk equiv Smry (hidden)
B1: DAIRY EQUIVALENCE CALCULATOR | U1: =$U$2 -> Incoming milk Summary
B2: Client: | C2: =BaseInfo_ClientName -> Dairy Australia | T2: Area: | U2: Incoming milk Summary
B3: Project: | C3: =BaseInfo_Project -> 2614DP24 | T3: Revision: | U3: =BaseInfo_Revision -> V2.7
B4: Site 1: | C4: =BaseInfo_Site -> 0 | T4: Project Ref: | U4: =BaseInfo_ProjectReference -> 2614DP24
F9: Convert kL/Yr to Tonnes/yr | P9: Basis | T9: Milk Equivalence
B10: Product type | C10: Estimated volume | D10: Units | E10: Density | F10: Estimated mass | G10: Converted Units | H10: %P | I10: %F | J10: %Lactose | K10: %TS | L10: P | M10: F | N10: Lactose | O10: Total Solids | P10: Protein | Q10: Fat | R10: Lactose | S10: Total Solids | T10: Basis | U10: Milk equivalence
E11: kg/m3 | F11: t/yr | L11: t/yr | M11: t/yr | N11: t/yr | O11: t/yr | P11: t milk/yr equivalence | Q11: t milk/yr equivalence | R11: t milk/yr equivalence | S11: t milk/yr equivalence | U11: t/yr
B12: =+'Input page'!B12 -> Unprocessed milk | C12: =+'Input page'!C12 -> 0 | D12: =+'Input page'!D12 -> 0 | E12: =+Milk_Density*1000 -> 1034.5 | F12: =IF(D12="kL/year",C12*E12/1000,C12) -> 0 | G12: Tonnes/year | H12: =Raw_milk_Prcnt_P -> 0.034 | I12: =Raw_milk_Prcnt_F -> 0.043 | J12: =Raw_milk_Prcnt_Lactose -> 0.049 | K12: =Raw_milk_Prcnt_TS -> 0.1334 | L12: =+H12*$F12 -> 0 | M12: =+I12*$F12 -> 0 | N12: 0 | O12: 0 | P12: =+L12/Raw_milk_Prcnt_P -> 0 | Q12: =+M12/Raw_milk_Prcnt_F -> 0 | R12: =+N12/Raw_milk_Prcnt_Lactose -> 0 | S12: =+O12/Raw_milk_Prcnt_TS -> 0 | T12: Protein | U12: =+P12 -> 0
B13: =+'Input page'!B13 -> Cream | C13: =+'Input page'!C13 -> 0 | D13: =+'Input page'!D13 -> 0 | E13: =+'Calculator Compositions'!M34 -> 1013 | F13: =IF(D13="kL/year",C13*E13/1000,C13) -> 0 | G13: Tonnes/year | H13: =+'Calculator Compositions'!E34 -> 0.028 | I13: =+'Calculator Compositions'!F34 -> 0.3 | J13: =+'Calculator Compositions'!G34 -> 0.033 | K13: =+'Calculator Compositions'!I34 -> 0.379 | L13: =+H13*$F13 -> 0 | M13: =+I13*$F13 -> 0 | N13: =+J13*$F13 -> 0 | O13: =+K13*$F13 -> 0 | P13: =+L13/Raw_milk_Prcnt_P -> 0 | Q13: =+M13/Raw_milk_Prcnt_F -> 0 | R13: =+N13/Raw_milk_Prcnt_Lactose -> 0 | S13: =+O13/Raw_milk_Prcnt_TS -> 0 | T13: Fat | U13: =+Q13 -> 0 | V13: Basis: 30% Cream
B14: =+'Input page'!B14 -> Powder | C14: =+'Input page'!C14 -> 0 | D14: =+'Input page'!D14 -> 0 | E14: =+'Calculator Compositions'!M44 -> 1000 | F14: 0 | G14: Tonnes/year | H14: =+'Calculator Compositions'!E44 -> 0.349 | I14: =+'Calculator Compositions'!F44 -> 0.008 | J14: =+'Calculator Compositions'!G44 -> 0.56 | K14: =+'Calculator Compositions'!I44 -> 0.957 | L14: 0 | M14: 0 | N14: 0 | O14: 0 | P14: 0 | Q14: 0 | R14: 0 | S14: 0 | T14: Total Solids | U14: =+S14 -> 0 | V14: Basis: SMP
B15: =+'Input page'!B15 -> Butter | C15: =+'Input page'!C15 -> 0 | D15: =+'Input page'!D15 -> 0 | E15: =+'Calculator Compositions'!M33 -> 1000 | F15: 0 | G15: Tonnes/year | H15: =+'Calculator Compositions'!E33 -> 0.011 | I15: =+'Calculator Compositions'!F33 -> 0.815 | J15: =+'Calculator Compositions'!G33 -> 0 | K15: =+'Calculator Compositions'!I33 -> 0.826 | L15: 0 | M15: 0 | N15: 0 | O15: 0 | P15: 0 | Q15: 0 | R15: 0 | S15: 0 | T15: Fat | U15: =+Q15 -> 0
B16: =+'Input page'!B16 -> AMF | C16: =+'Input page'!C16 -> 0 | D16: =+'Input page'!D16 -> 0 | E16: 1000 | F16: 0 | G16: Tonnes/year | H16: 0 | I16: 0.99 | J16: 0 | K16: 0.99 | L16: 0 | M16: 0 | N16: 0 | O16: 0 | P16: 0 | Q16: 0 | R16: 0 | S16: 0 | T16: Fat | U16: =+Q16 -> 0
T17: Total Milk INPUT | U17: =SUM(U12:U16) -> 0

Sheet Waste tons and component smry (hidden)
B1: DAIRY EQUIVALENCE CALCULATOR | I1: =$I$2 -> Waste tons and components Summary
B2: Client: | C2: =BaseInfo_ClientName -> Dairy Australia | H2: Area: | I2: Waste tons and components Summary
B3: Project: | C3: =BaseInfo_Project -> 2614DP24 | H3: Revision: | I3: =BaseInfo_Revision -> V2.7 | AD3: Basis | AE3: 1 | AF3: kg Raw milk
B4: Site 1: | C4: =BaseInfo_Site -> 0 | H4: Project Ref: | I4: =BaseInfo_ProjectReference -> 2614DP24
V5: Cheese | W5: Cheese | AD5: Milk composition for milk equivalence
V6: Product | W6: Product
B7: Pre-defined Dairy Food Waste | V7: only | W7: only
E8: Annualised Tonnage Calculations | K8: Component breakdown | P8: Annualised Component tonnage | U8: Milk equivalence | AD8: P | AE8: F | AF8: Lactose | AG8: %TS
H9: Convert kL/Yr to Tonnes/yr | U9: Basis | AD9: =Raw_milk_Prcnt_P -> 0.034 | AE9: =Raw_milk_Prcnt_F -> 0.043 | AF9: =Raw_milk_Prcnt_Lactose -> 0.049 | AG9: =Raw_milk_Prcnt_TS -> 0.1334 | AH9: %
B10: Product category | C10: Product type | D10: Waste stream | E10: Estimated volume | F10: Units | G10: Density | H10: Estimated mass | I10: Converted Units | J10: Manual Input | K10: %P | L10: %F | M10: %Lactose | N10: %MSNF | O10: %TS | P10: P | Q10: F | R10: Lactose | S10: MSNF | T10: Total Solids | U10: Protein | V10: Casein | W10: Whey | X10: Fat | Y10: Lactose | Z10: MSNF | AA10: Total Solids | AD10: =+AD9*$AE$3 -> 0.034 | AE10: =+AE9*$AE$3 -> 0.043 | AF10: =+AF9*$AE$3 -> 0.049 | AG10: =+AG9*$AE$3 -> 0.1334 | AH10: kg/kg milk | AI10: or t/t milk
J11: Check | P11: t/yr | Q11: t/yr | R11: t/yr | S11: t/yr | T11: t/yr | U11: t milk/yr equivalence | V11: t milk/yr equivalence | W11: t milk/yr equivalence | X11: t milk/yr equivalence | Y11: t milk/yr equivalence | Z11: t milk/yr equivalence | AA11: t milk/yr equivalence
B12: =+'Input page'!B24 -> 0 | C12: =IF(AND('Input page'!B24="Other",NOT(ISNUMBER(SEARCH("By-products",'Input page'!D24)))),IF('Input page'!D24="DAF Sludge",'Input page'!D24,'Input page'!E24),IF(+'Input page'!B24="Other",'Input page'!D24,'Input page'!C24)) -> 0 | D12: =IF(C12="DAF Sludge",C12,IF(COUNTIF(C12,"*By-products*"),C12,+'Input page'!D24)) -> 0 | E12: =+'Input page'!N24 -> 0 | F12: =+'Input page'!O24 -> 0 | G12: =IF('Input page'!L24<>"",'Input page'!L24,IF(OR(COUNTIF(D12,"By-products*"),COUNTIF(D12,"DAF sludge")),_xlfn.XLOOKUP(D12,'Calculator Compositions'!$D$25:$D$63,'Calculator Compositions'!$M$25:$M$63),_xlfn.XLOOKUP(C12,'Calculator Compositions'!$D$25:$D$63,'Calculator Compositions'!$M$25:$M$63))) ->  | H12: =IF(F12="kL/year",E12*G12/1000,E12) -> 0 | I12: Tonnes/year | J12: =IF(OR('Input page'!G24<>"",'Input page'!H24<>"",'Input page'!I24<>"",'Input page'!K24<>"",'Input page'!L24<>""),"YES","NO") -> NO | K12: =IF('Input page'!G24<>"",'Input page'!G24,IF(OR(COUNTIF($D12,"By-products*"),COUNTIF($D12,"DAF sludge")), _xlfn.XLOOKUP($D12,'Calculator Compositions'!$D$25:$D$63,'Calculator Compositions'!E$25:E$63),_xlfn.XLOOKUP($C12,'Calculator Compositions'!$D$25:$D$63,'Calculator Compositions'!E$25:E$63))) ->  | L12: =IF('Input page'!H24<>"",'Input page'!H24,IF(OR(COUNTIF($D12,"By-products*"),COUNTIF($D12,"DAF sludge")), _xlfn.XLOOKUP($D12,'Calculator Compositions'!$D$25:$D$63,'Calculator Compositions'!F$25:F$63),_xlfn.XLOOKUP($C12,'Calculator Compositions'!$D$25:$D$63,'Calculator Compositions'!F$25:F$63))) ->  | M12: =IF('Input page'!I24<>"",'Input page'!I24,IF(OR(COUNTIF($D12,"By-products*"),COUNTIF($D12,"DAF sludge")), _xlfn.XLOOKUP($D12,'Calculator Compositions'!$D$25:$D$63,'Calculator Compositions'!G$25:G$63),_xlfn.XLOOKUP($C12,'Calculator Compositions'!$D$25:$D$63,'Calculator Compositions'!G$25:G$63))) ->  | N12: =IF('Input page'!J24<>"",'Input page'!J24,IF(OR(COUNTIF($D12,"By-products*"),COUNTIF($D12,"DAF sludge")), _xlfn.XLOOKUP($D12,'Calculator Compositions'!$D$25:$D$63,'Calculator Compositions'!H$25:H$63),_xlfn.XLOOKUP($C12,'Calculator Compositions'!$D$25:$D$63,'Calculator Compositions'!H$25:H$63))) ->  | O12: =IF('Input page'!K24<>"",'Input page'!K24,IF(OR(COUNTIF($D12,"By-products*"),COUNTIF($D12,"DAF sludge")), _xlfn.XLOOKUP($D12,'Calculator Compositions'!$D$25:$D$63,'Calculator Compositions'!I$25:I$63),_xlfn.XLOOKUP($C12,'Calculator Compositions'!$D$25:$D$63,'Calculator Compositions'!I$25:I$63))) ->  | P12: =+K12*$H12 ->  | Q12: =+L12*$H12 ->  | R12: =+M12*$H12 ->  | S12: =+N12*$H12 ->  | T12: =+O12*$H12 ->  | U12: =+P12/Raw_milk_Prcnt_P ->  | V12: =IF(B12="Cheese",+P12/(Raw_milk_Prcnt_Casein*Casein_Cheese_Retention_Factor),"") ->  | W12: =IF(OR(B12="Cheese",C12="By-products - Salty Whey",C12="By-products - Acid Whey",C12="WPI Powder",C12="Whey Powder"),+P12/(Raw_milk_Prcnt_P*Whey_Protein_Total_Loss_Factor),"") ->  | X12: =+Q12/Raw_milk_Prcnt_F ->  | Y12: =IF(C12="By-products - Acid whey",+R12*(100%+Greek_Yog_Lactose_Loss_Factor/(100%-Greek_Yog_Lactose_Loss_Factor))/Raw_milk_Prcnt_Lactose,+R12/Raw_milk_Prcnt_Lactose) ->  | Z12: =+S12/Raw_milk_Prcnt_SNF ->  | AA12: =+T12/Raw_milk_Prcnt_TS -> 
B13: =+'Input page'!B25 -> 0 | C13: =IF(AND('Input page'!B25="Other",NOT(ISNUMBER(SEARCH("By-products",'Input page'!D25)))),IF('Input page'!D25="DAF Sludge",'Input page'!D25,'Input page'!E25),IF(+'Input page'!B25="Other",'Input page'!D25,'Input page'!C25)) -> 0 | D13: =IF(C13="DAF Sludge",C13,IF(COUNTIF(C13,"*By-products*"),C13,+'Input page'!D25)) -> 0 | E13: =+'Input page'!N25 -> 0 | F13: =+'Input page'!O25 -> 0 | G13: =IF('Input page'!L25<>"",'Input page'!L25,IF(OR(COUNTIF(D13,"By-products*"),COUNTIF(D13,"DAF sludge")),_xlfn.XLOOKUP(D13,'Calculator Compositions'!$D$25:$D$63,'Calculator Compositions'!$M$25:$M$63),_xlfn.XLOOKUP(C13,'Calculator Compositions'!$D$25:$D$63,'Calculator Compositions'!$M$25:$M$63))) ->  | H13: =IF(F13="kL/year",E13*G13/1000,E13) -> 0 | I13: Tonnes/year | J13: =IF(OR('Input page'!G25<>"",'Input page'!H25<>"",'Input page'!I25<>"",'Input page'!K25<>"",'Input page'!L25<>""),"YES","NO") -> NO | K13: =IF('Input page'!G25<>"",'Input page'!G25,IF(OR(COUNTIF($D13,"By-products*"),COUNTIF($D13,"DAF sludge")), _xlfn.XLOOKUP($D13,'Calculator Compositions'!$D$25:$D$63,'Calculator Compositions'!E$25:E$63),_xlfn.XLOOKUP($C13,'Calculator Compositions'!$D$25:$D$63,'Calculator Compositions'!E$25:E$63))) ->  | L13: =IF('Input page'!H25<>"",'Input page'!H25,IF(OR(COUNTIF($D13,"By-products*"),COUNTIF($D13,"DAF sludge")), _xlfn.XLOOKUP($D13,'Calculator Compositions'!$D$25:$D$63,'Calculator Compositions'!F$25:F$63),_xlfn.XLOOKUP($C13,'Calculator Compositions'!$D$25:$D$63,'Calculator Compositions'!F$25:F$63))) ->  | M13: =IF('Input page'!I25<>"",'Input page'!I25,IF(OR(COUNTIF($D13,"By-products*"),COUNTIF($D13,"DAF sludge")), _xlfn.XLOOKUP($D13,'Calculator Compositions'!$D$25:$D$63,'Calculator Compositions'!G$25:G$63),_xlfn.XLOOKUP($C13,'Calculator Compositions'!$D$25:$D$63,'Calculator Compositions'!G$25:G$63))) ->  | N13: =IF('Input page'!J25<>"",'Input page'!J25,IF(OR(COUNTIF($D13,"By-products*"),COUNTIF($D13,"DAF sludge")), _xlfn.XLOOKUP($D13,'Calculator Compositions'!$D$25:$D$63,'Calculator Compositions'!H$25:H$63),_xlfn.XLOOKUP($C13,'Calculator Compositions'!$D$25:$D$63,'Calculator Compositions'!H$25:H$63))) ->  | O13: =IF('Input page'!K25<>"",'Input page'!K25,IF(OR(COUNTIF($D13,"By-products*"),COUNTIF($D13,"DAF sludge")), _xlfn.XLOOKUP($D13,'Calculator Compositions'!$D$25:$D$63,'Calculator Compositions'!I$25:I$63),_xlfn.XLOOKUP($C13,'Calculator Compositions'!$D$25:$D$63,'Calculator Compositions'!I$25:I$63))) ->  | P13: =+K13*$H13 ->  | Q13: =+L13*$H13 ->  | R13: =+M13*$H13 ->  | S13: =+N13*$H13 ->  | T13: =+O13*$H13 -> 
B14: =+'Input page'!B26 -> 0 | C14: =IF(AND('Input page'!B26="Other",NOT(ISNUMBER(SEARCH("By-products",'Input page'!D26)))),IF('Input page'!D26="DAF Sludge",'Input page'!D26,'Input page'!E26),IF(+'Input page'!B26="Other",'Input page'!D26,'Input page'!C26)) -> 0 | D14: =IF(C14="DAF Sludge",C14,IF(COUNTIF(C14,"*By-products*"),C14,+'Input page'!D26)) -> 0 | E14: =+'Input page'!N26 -> 0 | F14: =+'Input page'!O26 -> 0 | G14: =IF('Input page'!L26<>"",'Input page'!L26,IF(OR(COUNTIF(D14,"By-products*"),COUNTIF(D14,"DAF sludge")),_xlfn.XLOOKUP(D14,'Calculator Compositions'!$D$25:$D$63,'Calculator Compositions'!$M$25:$M$63),_xlfn.XLOOKUP(C14,'Calculator Compositions'!$D$25:$D$63,'Calculator Compositions'!$M$25:$M$63))) ->  | H14: 0 | I14: Tonnes/year | J14: =IF(OR('Input page'!G26<>"",'Input page'!H26<>"",'Input page'!I26<>"",'Input page'!K26<>"",'Input page'!L26<>""),"YES","NO") -> NO | K14: =IF('Input page'!G26<>"",'Input page'!G26,IF(OR(COUNTIF($D14,"By-products*"),COUNTIF($D14,"DAF sludge")), _xlfn.XLOOKUP($D14,'Calculator Compositions'!$D$25:$D$63,'Calculator Compositions'!E$25:E$63),_xlfn.XLOOKUP($C14,'Calculator Compositions'!$D$25:$D$63,'Calculator Compositions'!E$25:E$63))) ->  | L14: =IF('Input page'!H26<>"",'Input page'!H26,IF(OR(COUNTIF($D14,"By-products*"),COUNTIF($D14,"DAF sludge")), _xlfn.XLOOKUP($D14,'Calculator Compositions'!$D$25:$D$63,'Calculator Compositions'!F$25:F$63),_xlfn.XLOOKUP($C14,'Calculator Compositions'!$D$25:$D$63,'Calculator Compositions'!F$25:F$63))) ->  | M14: =IF('Input page'!I26<>"",'Input page'!I26,IF(OR(COUNTIF($D14,"By-products*"),COUNTIF($D14,"DAF sludge")), _xlfn.XLOOKUP($D14,'Calculator Compositions'!$D$25:$D$63,'Calculator Compositions'!G$25:G$63),_xlfn.XLOOKUP($C14,'Calculator Compositions'!$D$25:$D$63,'Calculator Compositions'!G$25:G$63))) ->  | N14: =IF('Input page'!J26<>"",'Input page'!J26,IF(OR(COUNTIF($D14,"By-products*"),COUNTIF($D14,"DAF sludge")), _xlfn.XLOOKUP($D14,'Calculator Compositions'!$D$25:$D$63,'Calculator Compositions'!H$25:H$63),_xlfn.XLOOKUP($C14,'Calculator Compositions'!$D$25:$D$63,'Calculator Compositions'!H$25:H$63))) ->  | O14: =IF('Input page'!K26<>"",'Input page'!K26,IF(OR(COUNTIF($D14,"By-products*"),COUNTIF($D14,"DAF sludge")), _xlfn.XLOOKUP($D14,'Calculator Compositions'!$D$25:$D$63,'Calculator Compositions'!I$25:I$63),_xlfn.XLOOKUP($C14,'Calculator Compositions'!$D$25:$D$63,'Calculator Compositions'!I$25:I$63))) -> 
B15: =+'Input page'!B27 -> 0 | C15: =IF(AND('Input page'!B27="Other",NOT(ISNUMBER(SEARCH("By-products",'Input page'!D27)))),IF('Input page'!D27="DAF Sludge",'Input page'!D27,'Input page'!E27),IF(+'Input page'!B27="Other",'Input page'!D27,'Input page'!C27)) -> 0 | D15: =IF(C15="DAF Sludge",C15,IF(COUNTIF(C15,"*By-products*"),C15,+'Input page'!D27)) -> 0 | E15: =+'Input page'!N27 -> 0 | F15: =+'Input page'!O27 -> 0 | G15: =IF('Input page'!L27<>"",'Input page'!L27,IF(OR(COUNTIF(D15,"By-products*"),COUNTIF(D15,"DAF sludge")),_xlfn.XLOOKUP(D15,'Calculator Compositions'!$D$25:$D$63,'Calculator Compositions'!$M$25:$M$63),_xlfn.XLOOKUP(C15,'Calculator Compositions'!$D$25:$D$63,'Calculator Compositions'!$M$25:$M$63))) ->  | H15: 0 | I15: Tonnes/year | J15: =IF(OR('Input page'!G27<>"",'Input page'!H27<>"",'Input page'!I27<>"",'Input page'!K27<>"",'Input page'!L27<>""),"YES","NO") -> NO | K15: =IF('Input page'!G27<>"",'Input page'!G27,IF(OR(COUNTIF($D15,"By-products*"),COUNTIF($D15,"DAF sludge")), _xlfn.XLOOKUP($D15,'Calculator Compositions'!$D$25:$D$63,'Calculator Compositions'!E$25:E$63),_xlfn.XLOOKUP($C15,'Calculator Compositions'!$D$25:$D$63,'Calculator Compositions'!E$25:E$63))) ->  | L15: =IF('Input page'!H27<>"",'Input page'!H27,IF(OR(COUNTIF($D15,"By-products*"),COUNTIF($D15,"DAF sludge")), _xlfn.XLOOKUP($D15,'Calculator Compositions'!$D$25:$D$63,'Calculator Compositions'!F$25:F$63),_xlfn.XLOOKUP($C15,'Calculator Compositions'!$D$25:$D$63,'Calculator Compositions'!F$25:F$63))) ->  | M15: =IF('Input page'!I27<>"",'Input page'!I27,IF(OR(COUNTIF($D15,"By-products*"),COUNTIF($D15,"DAF sludge")), _xlfn.XLOOKUP($D15,'Calculator Compositions'!$D$25:$D$63,'Calculator Compositions'!G$25:G$63),_xlfn.XLOOKUP($C15,'Calculator Compositions'!$D$25:$D$63,'Calculator Compositions'!G$25:G$63))) ->  | N15: =IF('Input page'!J27<>"",'Input page'!J27,IF(OR(COUNTIF($D15,"By-products*"),COUNTIF($D15,"DAF sludge")), _xlfn.XLOOKUP($D15,'Calculator Compositions'!$D$25:$D$63,'Calculator Compositions'!H$25:H$63),_xlfn.XLOOKUP($C15,'Calculator Compositions'!$D$25:$D$63,'Calculator Compositions'!H$25:H$63))) ->  | O15: =IF('Input page'!K27<>"",'Input page'!K27,IF(OR(COUNTIF($D15,"By-products*"),COUNTIF($D15,"DAF sludge")), _xlfn.XLOOKUP($D15,'Calculator Compositions'!$D$25:$D$63,'Calculator Compositions'!I$25:I$63),_xlfn.XLOOKUP($C15,'Calculator Compositions'!$D$25:$D$63,'Calculator Compositions'!I$25:I$63))) -> 
B16: =+'Input page'!B28 -> 0 | C16: =IF(AND('Input page'!B28="Other",NOT(ISNUMBER(SEARCH("By-products",'Input page'!D28)))),IF('Input page'!D28="DAF Sludge",'Input page'!D28,'Input page'!E28),IF(+'Input page'!B28="Other",'Input page'!D28,'Input page'!C28)) -> 0 | D16: =IF(C16="DAF Sludge",C16,IF(COUNTIF(C16,"*By-products*"),C16,+'Input page'!D28)) -> 0 | E16: =+'Input page'!N28 -> 0 | F16: =+'Input page'!O28 -> 0 | G16: =IF('Input page'!L28<>"",'Input page'!L28,IF(OR(COUNTIF(D16,"By-products*"),COUNTIF(D16,"DAF sludge")),_xlfn.XLOOKUP(D16,'Calculator Compositions'!$D$25:$D$63,'Calculator Compositions'!$M$25:$M$63),_xlfn.XLOOKUP(C16,'Calculator Compositions'!$D$25:$D$63,'Calculator Compositions'!$M$25:$M$63))) ->  | H16: 0 | I16: Tonnes/year | J16: =IF(OR('Input page'!G28<>"",'Input page'!H28<>"",'Input page'!I28<>"",'Input page'!K28<>"",'Input page'!L28<>""),"YES","NO") -> NO | K16: =IF('Input page'!G28<>"",'Input page'!G28,IF(OR(COUNTIF($D16,"By-products*"),COUNTIF($D16,"DAF sludge")), _xlfn.XLOOKUP($D16,'Calculator Compositions'!$D$25:$D$63,'Calculator Compositions'!E$25:E$63),_xlfn.XLOOKUP($C16,'Calculator Compositions'!$D$25:$D$63,'Calculator Compositions'!E$25:E$63))) ->  | L16: =IF('Input page'!H28<>"",'Input page'!H28,IF(OR(COUNTIF($D16,"By-products*"),COUNTIF($D16,"DAF sludge")), _xlfn.XLOOKUP($D16,'Calculator Compositions'!$D$25:$D$63,'Calculator Compositions'!F$25:F$63),_xlfn.XLOOKUP($C16,'Calculator Compositions'!$D$25:$D$63,'Calculator Compositions'!F$25:F$63))) ->  | M16: =IF('Input page'!I28<>"",'Input page'!I28,IF(OR(COUNTIF($D16,"By-products*"),COUNTIF($D16,"DAF sludge")), _xlfn.XLOOKUP($D16,'Calculator Compositions'!$D$25:$D$63,'Calculator Compositions'!G$25:G$63),_xlfn.XLOOKUP($C16,'Calculator Compositions'!$D$25:$D$63,'Calculator Compositions'!G$25:G$63))) ->  | N16: =IF('Input page'!J28<>"",'Input page'!J28,IF(OR(COUNTIF($D16,"By-products*"),COUNTIF($D16,"DAF sludge")), _xlfn.XLOOKUP($D16,'Calculator Compositions'!$D$25:$D$63,'Calculator Compositions'!H$25:H$63),_xlfn.XLOOKUP($C16,'Calculator Compositions'!$D$25:$D$63,'Calculator Compositions'!H$25:H$63))) ->  | O16: =IF('Input page'!K28<>"",'Input page'!K28,IF(OR(COUNTIF($D16,"By-products*"),COUNTIF($D16,"DAF sludge")), _xlfn.XLOOKUP($D16,'Calculator Compositions'!$D$25:$D$63,'Calculator Compositions'!I$25:I$63),_xlfn.XLOOKUP($C16,'Calculator Compositions'!$D$25:$D$63,'Calculator Compositions'!I$25:I$63))) -> 
B17: =+'Input page'!B29 -> 0 | C17: =IF(AND('Input page'!B29="Other",NOT(ISNUMBER(SEARCH("By-products",'Input page'!D29)))),IF('Input page'!D29="DAF Sludge",'Input page'!D29,'Input page'!E29),IF(+'Input page'!B29="Other",'Input page'!D29,'Input page'!C29)) -> 0 | D17: =IF(C17="DAF Sludge",C17,IF(COUNTIF(C17,"*By-products*"),C17,+'Input page'!D29)) -> 0 | E17: =+'Input page'!N29 -> 0 | F17: =+'Input page'!O29 -> 0 | G17: =IF('Input page'!L29<>"",'Input page'!L29,IF(OR(COUNTIF(D17,"By-products*"),COUNTIF(D17,"DAF sludge")),_xlfn.XLOOKUP(D17,'Calculator Compositions'!$D$25:$D$63,'Calculator Compositions'!$M$25:$M$63),_xlfn.XLOOKUP(C17,'Calculator Compositions'!$D$25:$D$63,'Calculator Compositions'!$M$25:$M$63))) ->  | H17: 0 | I17: Tonnes/year | J17: =IF(OR('Input page'!G29<>"",'Input page'!H29<>"",'Input page'!I29<>"",'Input page'!K29<>"",'Input page'!L29<>""),"YES","NO") -> NO | K17: =IF('Input page'!G29<>"",'Input page'!G29,IF(OR(COUNTIF($D17,"By-products*"),COUNTIF($D17,"DAF sludge")), _xlfn.XLOOKUP($D17,'Calculator Compositions'!$D$25:$D$63,'Calculator Compositions'!E$25:E$63),_xlfn.XLOOKUP($C17,'Calculator Compositions'!$D$25:$D$63,'Calculator Compositions'!E$25:E$63))) ->  | L17: =IF('Input page'!H29<>"",'Input page'!H29,IF(OR(COUNTIF($D17,"By-products*"),COUNTIF($D17,"DAF sludge")), _xlfn.XLOOKUP($D17,'Calculator Compositions'!$D$25:$D$63,'Calculator Compositions'!F$25:F$63),_xlfn.XLOOKUP($C17,'Calculator Compositions'!$D$25:$D$63,'Calculator Compositions'!F$25:F$63))) ->  | M17: =IF('Input page'!I29<>"",'Input page'!I29,IF(OR(COUNTIF($D17,"By-products*"),COUNTIF($D17,"DAF sludge")), _xlfn.XLOOKUP($D17,'Calculator Compositions'!$D$25:$D$63,'Calculator Compositions'!G$25:G$63),_xlfn.XLOOKUP($C17,'Calculator Compositions'!$D$25:$D$63,'Calculator Compositions'!G$25:G$63))) ->  | N17: =IF('Input page'!J29<>"",'Input page'!J29,IF(OR(COUNTIF($D17,"By-products*"),COUNTIF($D17,"DAF sludge")), _xlfn.XLOOKUP($D17,'Calculator Compositions'!$D$25:$D$63,'Calculator Compositions'!H$25:H$63),_xlfn.XLOOKUP($C17,'Calculator Compositions'!$D$25:$D$63,'Calculator Compositions'!H$25:H$63))) ->  | O17: =IF('Input page'!K29<>"",'Input page'!K29,IF(OR(COUNTIF($D17,"By-products*"),COUNTIF($D17,"DAF sludge")), _xlfn.XLOOKUP($D17,'Calculator Compositions'!$D$25:$D$63,'Calculator Compositions'!I$25:I$63),_xlfn.XLOOKUP($C17,'Calculator Compositions'!$D$25:$D$63,'Calculator Compositions'!I$25:I$63))) -> 
B18: =+'Input page'!B30 -> 0 | C18: =IF(AND('Input page'!B30="Other",NOT(ISNUMBER(SEARCH("By-products",'Input page'!D30)))),IF('Input page'!D30="DAF Sludge",'Input page'!D30,'Input page'!E30),IF(+'Input page'!B30="Other",'Input page'!D30,'Input page'!C30)) -> 0 | D18: =IF(C18="DAF Sludge",C18,IF(COUNTIF(C18,"*By-products*"),C18,+'Input page'!D30)) -> 0 | E18: =+'Input page'!N30 -> 0 | F18: =+'Input page'!O30 -> 0 | G18: =IF('Input page'!L30<>"",'Input page'!L30,IF(OR(COUNTIF(D18,"By-products*"),COUNTIF(D18,"DAF sludge")),_xlfn.XLOOKUP(D18,'Calculator Compositions'!$D$25:$D$63,'Calculator Compositions'!$M$25:$M$63),_xlfn.XLOOKUP(C18,'Calculator Compositions'!$D$25:$D$63,'Calculator Compositions'!$M$25:$M$63))) ->  | H18: 0 | I18: Tonnes/year | J18: =IF(OR('Input page'!G30<>"",'Input page'!H30<>"",'Input page'!I30<>"",'Input page'!K30<>"",'Input page'!L30<>""),"YES","NO") -> NO | K18: =IF('Input page'!G30<>"",'Input page'!G30,IF(OR(COUNTIF($D18,"By-products*"),COUNTIF($D18,"DAF sludge")), _xlfn.XLOOKUP($D18,'Calculator Compositions'!$D$25:$D$63,'Calculator Compositions'!E$25:E$63),_xlfn.XLOOKUP($C18,'Calculator Compositions'!$D$25:$D$63,'Calculator Compositions'!E$25:E$63))) ->  | L18: =IF('Input page'!H30<>"",'Input page'!H30,IF(OR(COUNTIF($D18,"By-products*"),COUNTIF($D18,"DAF sludge")), _xlfn.XLOOKUP($D18,'Calculator Compositions'!$D$25:$D$63,'Calculator Compositions'!F$25:F$63),_xlfn.XLOOKUP($C18,'Calculator Compositions'!$D$25:$D$63,'Calculator Compositions'!F$25:F$63))) ->  | M18: =IF('Input page'!I30<>"",'Input page'!I30,IF(OR(COUNTIF($D18,"By-products*"),COUNTIF($D18,"DAF sludge")), _xlfn.XLOOKUP($D18,'Calculator Compositions'!$D$25:$D$63,'Calculator Compositions'!G$25:G$63),_xlfn.XLOOKUP($C18,'Calculator Compositions'!$D$25:$D$63,'Calculator Compositions'!G$25:G$63))) ->  | N18: =IF('Input page'!J30<>"",'Input page'!J30,IF(OR(COUNTIF($D18,"By-products*"),COUNTIF($D18,"DAF sludge")), _xlfn.XLOOKUP($D18,'Calculator Compositions'!$D$25:$D$63,'Calculator Compositions'!H$25:H$63),_xlfn.XLOOKUP($C18,'Calculator Compositions'!$D$25:$D$63,'Calculator Compositions'!H$25:H$63))) ->  | O18: =IF('Input page'!K30<>"",'Input page'!K30,IF(OR(COUNTIF($D18,"By-products*"),COUNTIF($D18,"DAF sludge")), _xlfn.XLOOKUP($D18,'Calculator Compositions'!$D$25:$D$63,'Calculator Compositions'!I$25:I$63),_xlfn.XLOOKUP($C18,'Calculator Compositions'!$D$25:$D$63,'Calculator Compositions'!I$25:I$63))) -> 
B19: =+'Input page'!B31 -> 0 | C19: =IF(AND('Input page'!B31="Other",NOT(ISNUMBER(SEARCH("By-products",'Input page'!D31)))),IF('Input page'!D31="DAF Sludge",'Input page'!D31,'Input page'!E31),IF(+'Input page'!B31="Other",'Input page'!D31,'Input page'!C31)) -> 0 | D19: =IF(C19="DAF Sludge",C19,IF(COUNTIF(C19,"*By-products*"),C19,+'Input page'!D31)) -> 0 | E19: =+'Input page'!N31 -> 0 | F19: =+'Input page'!O31 -> 0 | G19: =IF('Input page'!L31<>"",'Input page'!L31,IF(OR(COUNTIF(D19,"By-products*"),COUNTIF(D19,"DAF sludge")),_xlfn.XLOOKUP(D19,'Calculator Compositions'!$D$25:$D$63,'Calculator Compositions'!$M$25:$M$63),_xlfn.XLOOKUP(C19,'Calculator Compositions'!$D$25:$D$63,'Calculator Compositions'!$M$25:$M$63))) ->  | H19: 0 | I19: Tonnes/year | J19: =IF(OR('Input page'!G31<>"",'Input page'!H31<>"",'Input page'!I31<>"",'Input page'!K31<>"",'Input page'!L31<>""),"YES","NO") -> NO | K19: =IF('Input page'!G31<>"",'Input page'!G31,IF(OR(COUNTIF($D19,"By-products*"),COUNTIF($D19,"DAF sludge")), _xlfn.XLOOKUP($D19,'Calculator Compositions'!$D$25:$D$63,'Calculator Compositions'!E$25:E$63),_xlfn.XLOOKUP($C19,'Calculator Compositions'!$D$25:$D$63,'Calculator Compositions'!E$25:E$63))) ->  | L19: =IF('Input page'!H31<>"",'Input page'!H31,IF(OR(COUNTIF($D19,"By-products*"),COUNTIF($D19,"DAF sludge")), _xlfn.XLOOKUP($D19,'Calculator Compositions'!$D$25:$D$63,'Calculator Compositions'!F$25:F$63),_xlfn.XLOOKUP($C19,'Calculator Compositions'!$D$25:$D$63,'Calculator Compositions'!F$25:F$63))) ->  | M19: =IF('Input page'!I31<>"",'Input page'!I31,IF(OR(COUNTIF($D19,"By-products*"),COUNTIF($D19,"DAF sludge")), _xlfn.XLOOKUP($D19,'Calculator Compositions'!$D$25:$D$63,'Calculator Compositions'!G$25:G$63),_xlfn.XLOOKUP($C19,'Calculator Compositions'!$D$25:$D$63,'Calculator Compositions'!G$25:G$63))) ->  | N19: =IF('Input page'!J31<>"",'Input page'!J31,IF(OR(COUNTIF($D19,"By-products*"),COUNTIF($D19,"DAF sludge")), _xlfn.XLOOKUP($D19,'Calculator Compositions'!$D$25:$D$63,'Calculator Compositions'!H$25:H$63),_xlfn.XLOOKUP($C19,'Calculator Compositions'!$D$25:$D$63,'Calculator Compositions'!H$25:H$63))) ->  | O19: =IF('Input page'!K31<>"",'Input page'!K31,IF(OR(COUNTIF($D19,"By-products*"),COUNTIF($D19,"DAF sludge")), _xlfn.XLOOKUP($D19,'Calculator Compositions'!$D$25:$D$63,'Calculator Compositions'!I$25:I$63),_xlfn.XLOOKUP($C19,'Calculator Compositions'!$D$25:$D$63,'Calculator Compositions'!I$25:I$63))) -> 
B20: =+'Input page'!B32 -> 0 | C20: =IF(AND('Input page'!B32="Other",NOT(ISNUMBER(SEARCH("By-products",'Input page'!D32)))),IF('Input page'!D32="DAF Sludge",'Input page'!D32,'Input page'!E32),IF(+'Input page'!B32="Other",'Input page'!D32,'Input page'!C32)) -> 0 | D20: =IF(C20="DAF Sludge",C20,IF(COUNTIF(C20,"*By-products*"),C20,+'Input page'!D32)) -> 0 | E20: =+'Input page'!N32 -> 0 | F20: =+'Input page'!O32 -> 0 | G20: =IF('Input page'!L32<>"",'Input page'!L32,IF(OR(COUNTIF(D20,"By-products*"),COUNTIF(D20,"DAF sludge")),_xlfn.XLOOKUP(D20,'Calculator Compositions'!$D$25:$D$63,'Calculator Compositions'!$M$25:$M$63),_xlfn.XLOOKUP(C20,'Calculator Compositions'!$D$25:$D$63,'Calculator Compositions'!$M$25:$M$63))) ->  | H20: 0 | I20: Tonnes/year | J20: =IF(OR('Input page'!G32<>"",'Input page'!H32<>"",'Input page'!I32<>"",'Input page'!K32<>"",'Input page'!L32<>""),"YES","NO") -> NO | K20: =IF('Input page'!G32<>"",'Input page'!G32,IF(OR(COUNTIF($D20,"By-products*"),COUNTIF($D20,"DAF sludge")), _xlfn.XLOOKUP($D20,'Calculator Compositions'!$D$25:$D$63,'Calculator Compositions'!E$25:E$63),_xlfn.XLOOKUP($C20,'Calculator Compositions'!$D$25:$D$63,'Calculator Compositions'!E$25:E$63))) ->  | L20: =IF('Input page'!H32<>"",'Input page'!H32,IF(OR(COUNTIF($D20,"By-products*"),COUNTIF($D20,"DAF sludge")), _xlfn.XLOOKUP($D20,'Calculator Compositions'!$D$25:$D$63,'Calculator Compositions'!F$25:F$63),_xlfn.XLOOKUP($C20,'Calculator Compositions'!$D$25:$D$63,'Calculator Compositions'!F$25:F$63))) ->  | M20: =IF('Input page'!I32<>"",'Input page'!I32,IF(OR(COUNTIF($D20,"By-products*"),COUNTIF($D20,"DAF sludge")), _xlfn.XLOOKUP($D20,'Calculator Compositions'!$D$25:$D$63,'Calculator Compositions'!G$25:G$63),_xlfn.XLOOKUP($C20,'Calculator Compositions'!$D$25:$D$63,'Calculator Compositions'!G$25:G$63))) ->  | N20: =IF('Input page'!J32<>"",'Input page'!J32,IF(OR(COUNTIF($D20,"By-products*"),COUNTIF($D20,"DAF sludge")), _xlfn.XLOOKUP($D20,'Calculator Compositions'!$D$25:$D$63,'Calculator Compositions'!H$25:H$63),_xlfn.XLOOKUP($C20,'Calculator Compositions'!$D$25:$D$63,'Calculator Compositions'!H$25:H$63))) ->  | O20: =IF('Input page'!K32<>"",'Input page'!K32,IF(OR(COUNTIF($D20,"By-products*"),COUNTIF($D20,"DAF sludge")), _xlfn.XLOOKUP($D20,'Calculator Compositions'!$D$25:$D$63,'Calculator Compositions'!I$25:I$63),_xlfn.XLOOKUP($C20,'Calculator Compositions'!$D$25:$D$63,'Calculator Compositions'!I$25:I$63))) -> 
B21: =+'Input page'!B33 -> 0 | C21: =IF(AND('Input page'!B33="Other",NOT(ISNUMBER(SEARCH("By-products",'Input page'!D33)))),IF('Input page'!D33="DAF Sludge",'Input page'!D33,'Input page'!E33),IF(+'Input page'!B33="Other",'Input page'!D33,'Input page'!C33)) -> 0 | D21: =IF(C21="DAF Sludge",C21,IF(COUNTIF(C21,"*By-products*"),C21,+'Input page'!D33)) -> 0 | E21: =+'Input page'!N33 -> 0 | F21: =+'Input page'!O33 -> 0 | G21: =IF('Input page'!L33<>"",'Input page'!L33,IF(OR(COUNTIF(D21,"By-products*"),COUNTIF(D21,"DAF sludge")),_xlfn.XLOOKUP(D21,'Calculator Compositions'!$D$25:$D$63,'Calculator Compositions'!$M$25:$M$63),_xlfn.XLOOKUP(C21,'Calculator Compositions'!$D$25:$D$63,'Calculator Compositions'!$M$25:$M$63))) ->  | H21: 0 | I21: Tonnes/year | J21: =IF(OR('Input page'!G33<>"",'Input page'!H33<>"",'Input page'!I33<>"",'Input page'!K33<>"",'Input page'!L33<>""),"YES","NO") -> NO | K21: =IF('Input page'!G33<>"",'Input page'!G33,IF(OR(COUNTIF($D21,"By-products*"),COUNTIF($D21,"DAF sludge")), _xlfn.XLOOKUP($D21,'Calculator Compositions'!$D$25:$D$63,'Calculator Compositions'!E$25:E$63),_xlfn.XLOOKUP($C21,'Calculator Compositions'!$D$25:$D$63,'Calculator Compositions'!E$25:E$63))) ->  | L21: =IF('Input page'!H33<>"",'Input page'!H33,IF(OR(COUNTIF($D21,"By-products*"),COUNTIF($D21,"DAF sludge")), _xlfn.XLOOKUP($D21,'Calculator Compositions'!$D$25:$D$63,'Calculator Compositions'!F$25:F$63),_xlfn.XLOOKUP($C21,'Calculator Compositions'!$D$25:$D$63,'Calculator Compositions'!F$25:F$63))) ->  | M21: =IF('Input page'!I33<>"",'Input page'!I33,IF(OR(COUNTIF($D21,"By-products*"),COUNTIF($D21,"DAF sludge")), _xlfn.XLOOKUP($D21,'Calculator Compositions'!$D$25:$D$63,'Calculator Compositions'!G$25:G$63),_xlfn.XLOOKUP($C21,'Calculator Compositions'!$D$25:$D$63,'Calculator Compositions'!G$25:G$63))) ->  | N21: =IF('Input page'!J33<>"",'Input page'!J33,IF(OR(COUNTIF($D21,"By-products*"),COUNTIF($D21,"DAF sludge")), _xlfn.XLOOKUP($D21,'Calculator Compositions'!$D$25:$D$63,'Calculator Compositions'!H$25:H$63),_xlfn.XLOOKUP($C21,'Calculator Compositions'!$D$25:$D$63,'Calculator Compositions'!H$25:H$63))) ->  | O21: =IF('Input page'!K33<>"",'Input page'!K33,IF(OR(COUNTIF($D21,"By-products*"),COUNTIF($D21,"DAF sludge")), _xlfn.XLOOKUP($D21,'Calculator Compositions'!$D$25:$D$63,'Calculator Compositions'!I$25:I$63),_xlfn.XLOOKUP($C21,'Calculator Compositions'!$D$25:$D$63,'Calculator Compositions'!I$25:I$63))) -> 
B22: =+'Input page'!B34 -> 0 | C22: =IF(AND('Input page'!B34="Other",NOT(ISNUMBER(SEARCH("By-products",'Input page'!D34)))),IF('Input page'!D34="DAF Sludge",'Input page'!D34,'Input page'!E34),IF(+'Input page'!B34="Other",'Input page'!D34,'Input page'!C34)) -> 0 | D22: =IF(C22="DAF Sludge",C22,IF(COUNTIF(C22,"*By-products*"),C22,+'Input page'!D34)) -> 0 | E22: =+'Input page'!N34 -> 0 | F22: =+'Input page'!O34 -> 0 | G22: =IF('Input page'!L34<>"",'Input page'!L34,IF(OR(COUNTIF(D22,"By-products*"),COUNTIF(D22,"DAF sludge")),_xlfn.XLOOKUP(D22,'Calculator Compositions'!$D$25:$D$63,'Calculator Compositions'!$M$25:$M$63),_xlfn.XLOOKUP(C22,'Calculator Compositions'!$D$25:$D$63,'Calculator Compositions'!$M$25:$M$63))) ->  | H22: 0 | I22: Tonnes/year | J22: =IF(OR('Input page'!G34<>"",'Input page'!H34<>"",'Input page'!I34<>"",'Input page'!K34<>"",'Input page'!L34<>""),"YES","NO") -> NO | K22: =IF('Input page'!G34<>"",'Input page'!G34,IF(OR(COUNTIF($D22,"By-products*"),COUNTIF($D22,"DAF sludge")), _xlfn.XLOOKUP($D22,'Calculator Compositions'!$D$25:$D$63,'Calculator Compositions'!E$25:E$63),_xlfn.XLOOKUP($C22,'Calculator Compositions'!$D$25:$D$63,'Calculator Compositions'!E$25:E$63))) ->  | L22: =IF('Input page'!H34<>"",'Input page'!H34,IF(OR(COUNTIF($D22,"By-products*"),COUNTIF($D22,"DAF sludge")), _xlfn.XLOOKUP($D22,'Calculator Compositions'!$D$25:$D$63,'Calculator Compositions'!F$25:F$63),_xlfn.XLOOKUP($C22,'Calculator Compositions'!$D$25:$D$63,'Calculator Compositions'!F$25:F$63))) ->  | M22: =IF('Input page'!I34<>"",'Input page'!I34,IF(OR(COUNTIF($D22,"By-products*"),COUNTIF($D22,"DAF sludge")), _xlfn.XLOOKUP($D22,'Calculator Compositions'!$D$25:$D$63,'Calculator Compositions'!G$25:G$63),_xlfn.XLOOKUP($C22,'Calculator Compositions'!$D$25:$D$63,'Calculator Compositions'!G$25:G$63))) ->  | N22: =IF('Input page'!J34<>"",'Input page'!J34,IF(OR(COUNTIF($D22,"By-products*"),COUNTIF($D22,"DAF sludge")), _xlfn.XLOOKUP($D22,'Calculator Compositions'!$D$25:$D$63,'Calculator Compositions'!H$25:H$63),_xlfn.XLOOKUP($C22,'Calculator Compositions'!$D$25:$D$63,'Calculator Compositions'!H$25:H$63))) ->  | O22: =IF('Input page'!K34<>"",'Input page'!K34,IF(OR(COUNTIF($D22,"By-products*"),COUNTIF($D22,"DAF sludge")), _xlfn.XLOOKUP($D22,'Calculator Compositions'!$D$25:$D$63,'Calculator Compositions'!I$25:I$63),_xlfn.XLOOKUP($C22,'Calculator Compositions'!$D$25:$D$63,'Calculator Compositions'!I$25:I$63))) -> 
B23: =+'Input page'!B35 -> 0 | C23: =IF(AND('Input page'!B35="Other",NOT(ISNUMBER(SEARCH("By-products",'Input page'!D35)))),IF('Input page'!D35="DAF Sludge",'Input page'!D35,'Input page'!E35),IF(+'Input page'!B35="Other",'Input page'!D35,'Input page'!C35)) -> 0 | D23: =IF(C23="DAF Sludge",C23,IF(COUNTIF(C23,"*By-products*"),C23,+'Input page'!D35)) -> 0 | E23: =+'Input page'!N35 -> 0 | F23: =+'Input page'!O35 -> 0 | G23: =IF('Input page'!L35<>"",'Input page'!L35,IF(OR(COUNTIF(D23,"By-products*"),COUNTIF(D23,"DAF sludge")),_xlfn.XLOOKUP(D23,'Calculator Compositions'!$D$25:$D$63,'Calculator Compositions'!$M$25:$M$63),_xlfn.XLOOKUP(C23,'Calculator Compositions'!$D$25:$D$63,'Calculator Compositions'!$M$25:$M$63))) ->  | H23: 0 | I23: Tonnes/year | J23: =IF(OR('Input page'!G35<>"",'Input page'!H35<>"",'Input page'!I35<>"",'Input page'!K35<>"",'Input page'!L35<>""),"YES","NO") -> NO | K23: =IF('Input page'!G35<>"",'Input page'!G35,IF(OR(COUNTIF($D23,"By-products*"),COUNTIF($D23,"DAF sludge")), _xlfn.XLOOKUP($D23,'Calculator Compositions'!$D$25:$D$63,'Calculator Compositions'!E$25:E$63),_xlfn.XLOOKUP($C23,'Calculator Compositions'!$D$25:$D$63,'Calculator Compositions'!E$25:E$63))) ->  | L23: =IF('Input page'!H35<>"",'Input page'!H35,IF(OR(COUNTIF($D23,"By-products*"),COUNTIF($D23,"DAF sludge")), _xlfn.XLOOKUP($D23,'Calculator Compositions'!$D$25:$D$63,'Calculator Compositions'!F$25:F$63),_xlfn.XLOOKUP($C23,'Calculator Compositions'!$D$25:$D$63,'Calculator Compositions'!F$25:F$63))) ->  | M23: =IF('Input page'!I35<>"",'Input page'!I35,IF(OR(COUNTIF($D23,"By-products*"),COUNTIF($D23,"DAF sludge")), _xlfn.XLOOKUP($D23,'Calculator Compositions'!$D$25:$D$63,'Calculator Compositions'!G$25:G$63),_xlfn.XLOOKUP($C23,'Calculator Compositions'!$D$25:$D$63,'Calculator Compositions'!G$25:G$63))) ->  | N23: =IF('Input page'!J35<>"",'Input page'!J35,IF(OR(COUNTIF($D23,"By-products*"),COUNTIF($D23,"DAF sludge")), _xlfn.XLOOKUP($D23,'Calculator Compositions'!$D$25:$D$63,'Calculator Compositions'!H$25:H$63),_xlfn.XLOOKUP($C23,'Calculator Compositions'!$D$25:$D$63,'Calculator Compositions'!H$25:H$63))) ->  | O23: =IF('Input page'!K35<>"",'Input page'!K35,IF(OR(COUNTIF($D23,"By-products*"),COUNTIF($D23,"DAF sludge")), _xlfn.XLOOKUP($D23,'Calculator Compositions'!$D$25:$D$63,'Calculator Compositions'!I$25:I$63),_xlfn.XLOOKUP($C23,'Calculator Compositions'!$D$25:$D$63,'Calculator Compositions'!I$25:I$63))) -> 
B24: =+'Input page'!B36 -> 0 | C24: =IF(AND('Input page'!B36="Other",NOT(ISNUMBER(SEARCH("By-products",'Input page'!D36)))),IF('Input page'!D36="DAF Sludge",'Input page'!D36,'Input page'!E36),IF(+'Input page'!B36="Other",'Input page'!D36,'Input page'!C36)) -> 0 | D24: =IF(C24="DAF Sludge",C24,IF(COUNTIF(C24,"*By-products*"),C24,+'Input page'!D36)) -> 0 | E24: =+'Input page'!N36 -> 0 | F24: =+'Input page'!O36 -> 0 | G24: =IF('Input page'!L36<>"",'Input page'!L36,IF(OR(COUNTIF(D24,"By-products*"),COUNTIF(D24,"DAF sludge")),_xlfn.XLOOKUP(D24,'Calculator Compositions'!$D$25:$D$63,'Calculator Compositions'!$M$25:$M$63),_xlfn.XLOOKUP(C24,'Calculator Compositions'!$D$25:$D$63,'Calculator Compositions'!$M$25:$M$63))) ->  | H24: 0 | I24: Tonnes/year | J24: =IF(OR('Input page'!G36<>"",'Input page'!H36<>"",'Input page'!I36<>"",'Input page'!K36<>"",'Input page'!L36<>""),"YES","NO") -> NO | K24: =IF('Input page'!G36<>"",'Input page'!G36,IF(OR(COUNTIF($D24,"By-products*"),COUNTIF($D24,"DAF sludge")), _xlfn.XLOOKUP($D24,'Calculator Compositions'!$D$25:$D$63,'Calculator Compositions'!E$25:E$63),_xlfn.XLOOKUP($C24,'Calculator Compositions'!$D$25:$D$63,'Calculator Compositions'!E$25:E$63))) ->  | L24: =IF('Input page'!H36<>"",'Input page'!H36,IF(OR(COUNTIF($D24,"By-products*"),COUNTIF($D24,"DAF sludge")), _xlfn.XLOOKUP($D24,'Calculator Compositions'!$D$25:$D$63,'Calculator Compositions'!F$25:F$63),_xlfn.XLOOKUP($C24,'Calculator Compositions'!$D$25:$D$63,'Calculator Compositions'!F$25:F$63))) ->  | M24: =IF('Input page'!I36<>"",'Input page'!I36,IF(OR(COUNTIF($D24,"By-products*"),COUNTIF($D24,"DAF sludge")), _xlfn.XLOOKUP($D24,'Calculator Compositions'!$D$25:$D$63,'Calculator Compositions'!G$25:G$63),_xlfn.XLOOKUP($C24,'Calculator Compositions'!$D$25:$D$63,'Calculator Compositions'!G$25:G$63))) ->  | N24: =IF('Input page'!J36<>"",'Input page'!J36,IF(OR(COUNTIF($D24,"By-products*"),COUNTIF($D24,"DAF sludge")), _xlfn.XLOOKUP($D24,'Calculator Compositions'!$D$25:$D$63,'Calculator Compositions'!H$25:H$63),_xlfn.XLOOKUP($C24,'Calculator Compositions'!$D$25:$D$63,'Calculator Compositions'!H$25:H$63))) ->  | O24: =IF('Input page'!K36<>"",'Input page'!K36,IF(OR(COUNTIF($D24,"By-products*"),COUNTIF($D24,"DAF sludge")), _xlfn.XLOOKUP($D24,'Calculator Compositions'!$D$25:$D$63,'Calculator Compositions'!I$25:I$63),_xlfn.XLOOKUP($C24,'Calculator Compositions'!$D$25:$D$63,'Calculator Compositions'!I$25:I$63))) -> 
B25: =+'Input page'!B37 -> 0 | C25: =IF(AND('Input page'!B37="Other",NOT(ISNUMBER(SEARCH("By-products",'Input page'!D37)))),IF('Input page'!D37="DAF Sludge",'Input page'!D37,'Input page'!E37),IF(+'Input page'!B37="Other",'Input page'!D37,'Input page'!C37)) -> 0 | D25: =IF(C25="DAF Sludge",C25,IF(COUNTIF(C25,"*By-products*"),C25,+'Input page'!D37)) -> 0 | E25: =+'Input page'!N37 -> 0 | F25: =+'Input page'!O37 -> 0 | G25: =IF('Input page'!L37<>"",'Input page'!L37,IF(OR(COUNTIF(D25,"By-products*"),COUNTIF(D25,"DAF sludge")),_xlfn.XLOOKUP(D25,'Calculator Compositions'!$D$25:$D$63,'Calculator Compositions'!$M$25:$M$63),_xlfn.XLOOKUP(C25,'Calculator Compositions'!$D$25:$D$63,'Calculator Compositions'!$M$25:$M$63))) ->  | H25: 0 | I25: Tonnes/year | J25: =IF(OR('Input page'!G37<>"",'Input page'!H37<>"",'Input page'!I37<>"",'Input page'!K37<>"",'Input page'!L37<>""),"YES","NO") -> NO | K25: =IF('Input page'!G37<>"",'Input page'!G37,IF(OR(COUNTIF($D25,"By-products*"),COUNTIF($D25,"DAF sludge")), _xlfn.XLOOKUP($D25,'Calculator Compositions'!$D$25:$D$63,'Calculator Compositions'!E$25:E$63),_xlfn.XLOOKUP($C25,'Calculator Compositions'!$D$25:$D$63,'Calculator Compositions'!E$25:E$63))) ->  | L25: =IF('Input page'!H37<>"",'Input page'!H37,IF(OR(COUNTIF($D25,"By-products*"),COUNTIF($D25,"DAF sludge")), _xlfn.XLOOKUP($D25,'Calculator Compositions'!$D$25:$D$63,'Calculator Compositions'!F$25:F$63),_xlfn.XLOOKUP($C25,'Calculator Compositions'!$D$25:$D$63,'Calculator Compositions'!F$25:F$63))) ->  | M25: =IF('Input page'!I37<>"",'Input page'!I37,IF(OR(COUNTIF($D25,"By-products*"),COUNTIF($D25,"DAF sludge")), _xlfn.XLOOKUP($D25,'Calculator Compositions'!$D$25:$D$63,'Calculator Compositions'!G$25:G$63),_xlfn.XLOOKUP($C25,'Calculator Compositions'!$D$25:$D$63,'Calculator Compositions'!G$25:G$63))) ->  | N25: =IF('Input page'!J37<>"",'Input page'!J37,IF(OR(COUNTIF($D25,"By-products*"),COUNTIF($D25,"DAF sludge")), _xlfn.XLOOKUP($D25,'Calculator Compositions'!$D$25:$D$63,'Calculator Compositions'!H$25:H$63),_xlfn.XLOOKUP($C25,'Calculator Compositions'!$D$25:$D$63,'Calculator Compositions'!H$25:H$63))) ->  | O25: =IF('Input page'!K37<>"",'Input page'!K37,IF(OR(COUNTIF($D25,"By-products*"),COUNTIF($D25,"DAF sludge")), _xlfn.XLOOKUP($D25,'Calculator Compositions'!$D$25:$D$63,'Calculator Compositions'!I$25:I$63),_xlfn.XLOOKUP($C25,'Calculator Compositions'!$D$25:$D$63,'Calculator Compositions'!I$25:I$63))) -> 
B26: =+'Input page'!B38 -> 0 | C26: =IF(AND('Input page'!B38="Other",NOT(ISNUMBER(SEARCH("By-products",'Input page'!D38)))),IF('Input page'!D38="DAF Sludge",'Input page'!D38,'Input page'!E38),IF(+'Input page'!B38="Other",'Input page'!D38,'Input page'!C38)) -> 0 | D26: =IF(C26="DAF Sludge",C26,IF(COUNTIF(C26,"*By-products*"),C26,+'Input page'!D38)) -> 0 | E26: =+'Input page'!N38 -> 0 | F26: =+'Input page'!O38 -> 0 | G26: =IF('Input page'!L38<>"",'Input page'!L38,IF(OR(COUNTIF(D26,"By-products*"),COUNTIF(D26,"DAF sludge")),_xlfn.XLOOKUP(D26,'Calculator Compositions'!$D$25:$D$63,'Calculator Compositions'!$M$25:$M$63),_xlfn.XLOOKUP(C26,'Calculator Compositions'!$D$25:$D$63,'Calculator Compositions'!$M$25:$M$63))) ->  | H26: 0 | I26: Tonnes/year | J26: =IF(OR('Input page'!G38<>"",'Input page'!H38<>"",'Input page'!I38<>"",'Input page'!K38<>"",'Input page'!L38<>""),"YES","NO") -> NO | K26: =IF('Input page'!G38<>"",'Input page'!G38,IF(OR(COUNTIF($D26,"By-products*"),COUNTIF($D26,"DAF sludge")), _xlfn.XLOOKUP($D26,'Calculator Compositions'!$D$25:$D$63,'Calculator Compositions'!E$25:E$63),_xlfn.XLOOKUP($C26,'Calculator Compositions'!$D$25:$D$63,'Calculator Compositions'!E$25:E$63))) ->  | L26: =IF('Input page'!H38<>"",'Input page'!H38,IF(OR(COUNTIF($D26,"By-products*"),COUNTIF($D26,"DAF sludge")), _xlfn.XLOOKUP($D26,'Calculator Compositions'!$D$25:$D$63,'Calculator Compositions'!F$25:F$63),_xlfn.XLOOKUP($C26,'Calculator Compositions'!$D$25:$D$63,'Calculator Compositions'!F$25:F$63))) ->  | M26: =IF('Input page'!I38<>"",'Input page'!I38,IF(OR(COUNTIF($D26,"By-products*"),COUNTIF($D26,"DAF sludge")), _xlfn.XLOOKUP($D26,'Calculator Compositions'!$D$25:$D$63,'Calculator Compositions'!G$25:G$63),_xlfn.XLOOKUP($C26,'Calculator Compositions'!$D$25:$D$63,'Calculator Compositions'!G$25:G$63))) ->  | N26: =IF('Input page'!J38<>"",'Input page'!J38,IF(OR(COUNTIF($D26,"By-products*"),COUNTIF($D26,"DAF sludge")), _xlfn.XLOOKUP($D26,'Calculator Compositions'!$D$25:$D$63,'Calculator Compositions'!H$25:H$63),_xlfn.XLOOKUP($C26,'Calculator Compositions'!$D$25:$D$63,'Calculator Compositions'!H$25:H$63))) ->  | O26: =IF('Input page'!K38<>"",'Input page'!K38,IF(OR(COUNTIF($D26,"By-products*"),COUNTIF($D26,"DAF sludge")), _xlfn.XLOOKUP($D26,'Calculator Compositions'!$D$25:$D$63,'Calculator Compositions'!I$25:I$63),_xlfn.XLOOKUP($C26,'Calculator Compositions'!$D$25:$D$63,'Calculator Compositions'!I$25:I$63))) -> 
B27: =+'Input page'!B39 -> 0 | C27: =IF(AND('Input page'!B39="Other",NOT(ISNUMBER(SEARCH("By-products",'Input page'!D39)))),IF('Input page'!D39="DAF Sludge",'Input page'!D39,'Input page'!E39),IF(+'Input page'!B39="Other",'Input page'!D39,'Input page'!C39)) -> 0 | D27: =IF(C27="DAF Sludge",C27,IF(COUNTIF(C27,"*By-products*"),C27,+'Input page'!D39)) -> 0 | E27: =+'Input page'!N39 -> 0 | F27: =+'Input page'!O39 -> 0 | G27: =IF('Input page'!L39<>"",'Input page'!L39,IF(OR(COUNTIF(D27,"By-products*"),COUNTIF(D27,"DAF sludge")),_xlfn.XLOOKUP(D27,'Calculator Compositions'!$D$25:$D$63,'Calculator Compositions'!$M$25:$M$63),_xlfn.XLOOKUP(C27,'Calculator Compositions'!$D$25:$D$63,'Calculator Compositions'!$M$25:$M$63))) ->  | H27: 0 | I27: Tonnes/year | J27: =IF(OR('Input page'!G39<>"",'Input page'!H39<>"",'Input page'!I39<>"",'Input page'!K39<>"",'Input page'!L39<>""),"YES","NO") -> NO | K27: =IF('Input page'!G39<>"",'Input page'!G39,IF(OR(COUNTIF($D27,"By-products*"),COUNTIF($D27,"DAF sludge")), _xlfn.XLOOKUP($D27,'Calculator Compositions'!$D$25:$D$63,'Calculator Compositions'!E$25:E$63),_xlfn.XLOOKUP($C27,'Calculator Compositions'!$D$25:$D$63,'Calculator Compositions'!E$25:E$63))) ->  | L27: =IF('Input page'!H39<>"",'Input page'!H39,IF(OR(COUNTIF($D27,"By-products*"),COUNTIF($D27,"DAF sludge")), _xlfn.XLOOKUP($D27,'Calculator Compositions'!$D$25:$D$63,'Calculator Compositions'!F$25:F$63),_xlfn.XLOOKUP($C27,'Calculator Compositions'!$D$25:$D$63,'Calculator Compositions'!F$25:F$63))) ->  | M27: =IF('Input page'!I39<>"",'Input page'!I39,IF(OR(COUNTIF($D27,"By-products*"),COUNTIF($D27,"DAF sludge")), _xlfn.XLOOKUP($D27,'Calculator Compositions'!$D$25:$D$63,'Calculator Compositions'!G$25:G$63),_xlfn.XLOOKUP($C27,'Calculator Compositions'!$D$25:$D$63,'Calculator Compositions'!G$25:G$63))) ->  | N27: =IF('Input page'!J39<>"",'Input page'!J39,IF(OR(COUNTIF($D27,"By-products*"),COUNTIF($D27,"DAF sludge")), _xlfn.XLOOKUP($D27,'Calculator Compositions'!$D$25:$D$63,'Calculator Compositions'!H$25:H$63),_xlfn.XLOOKUP($C27,'Calculator Compositions'!$D$25:$D$63,'Calculator Compositions'!H$25:H$63))) ->  | O27: =IF('Input page'!K39<>"",'Input page'!K39,IF(OR(COUNTIF($D27,"By-products*"),COUNTIF($D27,"DAF sludge")), _xlfn.XLOOKUP($D27,'Calculator Compositions'!$D$25:$D$63,'Calculator Compositions'!I$25:I$63),_xlfn.XLOOKUP($C27,'Calculator Compositions'!$D$25:$D$63,'Calculator Compositions'!I$25:I$63))) -> 
B28: =+'Input page'!B40 -> 0 | C28: =IF(AND('Input page'!B40="Other",NOT(ISNUMBER(SEARCH("By-products",'Input page'!D40)))),IF('Input page'!D40="DAF Sludge",'Input page'!D40,'Input page'!E40),IF(+'Input page'!B40="Other",'Input page'!D40,'Input page'!C40)) -> 0 | D28: =IF(C28="DAF Sludge",C28,IF(COUNTIF(C28,"*By-products*"),C28,+'Input page'!D40)) -> 0 | E28: =+'Input page'!N40 -> 0 | F28: =+'Input page'!O40 -> 0 | G28: =IF('Input page'!L40<>"",'Input page'!L40,IF(OR(COUNTIF(D28,"By-products*"),COUNTIF(D28,"DAF sludge")),_xlfn.XLOOKUP(D28,'Calculator Compositions'!$D$25:$D$63,'Calculator Compositions'!$M$25:$M$63),_xlfn.XLOOKUP(C28,'Calculator Compositions'!$D$25:$D$63,'Calculator Compositions'!$M$25:$M$63))) ->  | H28: 0 | I28: Tonnes/year | J28: =IF(OR('Input page'!G40<>"",'Input page'!H40<>"",'Input page'!I40<>"",'Input page'!K40<>"",'Input page'!L40<>""),"YES","NO") -> NO | K28: =IF('Input page'!G40<>"",'Input page'!G40,IF(OR(COUNTIF($D28,"By-products*"),COUNTIF($D28,"DAF sludge")), _xlfn.XLOOKUP($D28,'Calculator Compositions'!$D$25:$D$63,'Calculator Compositions'!E$25:E$63),_xlfn.XLOOKUP($C28,'Calculator Compositions'!$D$25:$D$63,'Calculator Compositions'!E$25:E$63))) ->  | L28: =IF('Input page'!H40<>"",'Input page'!H40,IF(OR(COUNTIF($D28,"By-products*"),COUNTIF($D28,"DAF sludge")), _xlfn.XLOOKUP($D28,'Calculator Compositions'!$D$25:$D$63,'Calculator Compositions'!F$25:F$63),_xlfn.XLOOKUP($C28,'Calculator Compositions'!$D$25:$D$63,'Calculator Compositions'!F$25:F$63))) ->  | M28: =IF('Input page'!I40<>"",'Input page'!I40,IF(OR(COUNTIF($D28,"By-products*"),COUNTIF($D28,"DAF sludge")), _xlfn.XLOOKUP($D28,'Calculator Compositions'!$D$25:$D$63,'Calculator Compositions'!G$25:G$63),_xlfn.XLOOKUP($C28,'Calculator Compositions'!$D$25:$D$63,'Calculator Compositions'!G$25:G$63))) ->  | N28: =IF('Input page'!J40<>"",'Input page'!J40,IF(OR(COUNTIF($D28,"By-products*"),COUNTIF($D28,"DAF sludge")), _xlfn.XLOOKUP($D28,'Calculator Compositions'!$D$25:$D$63,'Calculator Compositions'!H$25:H$63),_xlfn.XLOOKUP($C28,'Calculator Compositions'!$D$25:$D$63,'Calculator Compositions'!H$25:H$63))) ->  | O28: =IF('Input page'!K40<>"",'Input page'!K40,IF(OR(COUNTIF($D28,"By-products*"),COUNTIF($D28,"DAF sludge")), _xlfn.XLOOKUP($D28,'Calculator Compositions'!$D$25:$D$63,'Calculator Compositions'!I$25:I$63),_xlfn.XLOOKUP($C28,'Calculator Compositions'!$D$25:$D$63,'Calculator Compositions'!I$25:I$63))) -> 
B29: =+'Input page'!B41 -> 0 | C29: =IF(AND('Input page'!B41="Other",NOT(ISNUMBER(SEARCH("By-products",'Input page'!D41)))),IF('Input page'!D41="DAF Sludge",'Input page'!D41,'Input page'!E41),IF(+'Input page'!B41="Other",'Input page'!D41,'Input page'!C41)) -> 0 | D29: =IF(C29="DAF Sludge",C29,IF(COUNTIF(C29,"*By-products*"),C29,+'Input page'!D41)) -> 0 | E29: =+'Input page'!N41 -> 0 | F29: =+'Input page'!O41 -> 0 | G29: =IF('Input page'!L41<>"",'Input page'!L41,IF(OR(COUNTIF(D29,"By-products*"),COUNTIF(D29,"DAF sludge")),_xlfn.XLOOKUP(D29,'Calculator Compositions'!$D$25:$D$63,'Calculator Compositions'!$M$25:$M$63),_xlfn.XLOOKUP(C29,'Calculator Compositions'!$D$25:$D$63,'Calculator Compositions'!$M$25:$M$63))) ->  | H29: 0 | I29: Tonnes/year | J29: =IF(OR('Input page'!G41<>"",'Input page'!H41<>"",'Input page'!I41<>"",'Input page'!K41<>"",'Input page'!L41<>""),"YES","NO") -> NO | K29: =IF('Input page'!G41<>"",'Input page'!G41,IF(OR(COUNTIF($D29,"By-products*"),COUNTIF($D29,"DAF sludge")), _xlfn.XLOOKUP($D29,'Calculator Compositions'!$D$25:$D$63,'Calculator Compositions'!E$25:E$63),_xlfn.XLOOKUP($C29,'Calculator Compositions'!$D$25:$D$63,'Calculator Compositions'!E$25:E$63))) ->  | L29: =IF('Input page'!H41<>"",'Input page'!H41,IF(OR(COUNTIF($D29,"By-products*"),COUNTIF($D29,"DAF sludge")), _xlfn.XLOOKUP($D29,'Calculator Compositions'!$D$25:$D$63,'Calculator Compositions'!F$25:F$63),_xlfn.XLOOKUP($C29,'Calculator Compositions'!$D$25:$D$63,'Calculator Compositions'!F$25:F$63))) ->  | M29: =IF('Input page'!I41<>"",'Input page'!I41,IF(OR(COUNTIF($D29,"By-products*"),COUNTIF($D29,"DAF sludge")), _xlfn.XLOOKUP($D29,'Calculator Compositions'!$D$25:$D$63,'Calculator Compositions'!G$25:G$63),_xlfn.XLOOKUP($C29,'Calculator Compositions'!$D$25:$D$63,'Calculator Compositions'!G$25:G$63))) ->  | N29: =IF('Input page'!J41<>"",'Input page'!J41,IF(OR(COUNTIF($D29,"By-products*"),COUNTIF($D29,"DAF sludge")), _xlfn.XLOOKUP($D29,'Calculator Compositions'!$D$25:$D$63,'Calculator Compositions'!H$25:H$63),_xlfn.XLOOKUP($C29,'Calculator Compositions'!$D$25:$D$63,'Calculator Compositions'!H$25:H$63))) ->  | O29: =IF('Input page'!K41<>"",'Input page'!K41,IF(OR(COUNTIF($D29,"By-products*"),COUNTIF($D29,"DAF sludge")), _xlfn.XLOOKUP($D29,'Calculator Compositions'!$D$25:$D$63,'Calculator Compositions'!I$25:I$63),_xlfn.XLOOKUP($C29,'Calculator Compositions'!$D$25:$D$63,'Calculator Compositions'!I$25:I$63))) -> 
B30: =+'Input page'!B42 -> 0 | C30: =IF(AND('Input page'!B42="Other",NOT(ISNUMBER(SEARCH("By-products",'Input page'!D42)))),IF('Input page'!D42="DAF Sludge",'Input page'!D42,'Input page'!E42),IF(+'Input page'!B42="Other",'Input page'!D42,'Input page'!C42)) -> 0 | D30: =IF(C30="DAF Sludge",C30,IF(COUNTIF(C30,"*By-products*"),C30,+'Input page'!D42)) -> 0 | E30: =+'Input page'!N42 -> 0 | F30: =+'Input page'!O42 -> 0 | G30: =IF('Input page'!L42<>"",'Input page'!L42,IF(OR(COUNTIF(D30,"By-products*"),COUNTIF(D30,"DAF sludge")),_xlfn.XLOOKUP(D30,'Calculator Compositions'!$D$25:$D$63,'Calculator Compositions'!$M$25:$M$63),_xlfn.XLOOKUP(C30,'Calculator Compositions'!$D$25:$D$63,'Calculator Compositions'!$M$25:$M$63))) ->  | H30: 0 | I30: Tonnes/year | J30: =IF(OR('Input page'!G42<>"",'Input page'!H42<>"",'Input page'!I42<>"",'Input page'!K42<>"",'Input page'!L42<>""),"YES","NO") -> NO | K30: =IF('Input page'!G42<>"",'Input page'!G42,IF(OR(COUNTIF($D30,"By-products*"),COUNTIF($D30,"DAF sludge")), _xlfn.XLOOKUP($D30,'Calculator Compositions'!$D$25:$D$63,'Calculator Compositions'!E$25:E$63),_xlfn.XLOOKUP($C30,'Calculator Compositions'!$D$25:$D$63,'Calculator Compositions'!E$25:E$63))) ->  | L30: =IF('Input page'!H42<>"",'Input page'!H42,IF(OR(COUNTIF($D30,"By-products*"),COUNTIF($D30,"DAF sludge")), _xlfn.XLOOKUP($D30,'Calculator Compositions'!$D$25:$D$63,'Calculator Compositions'!F$25:F$63),_xlfn.XLOOKUP($C30,'Calculator Compositions'!$D$25:$D$63,'Calculator Compositions'!F$25:F$63))) ->  | M30: =IF('Input page'!I42<>"",'Input page'!I42,IF(OR(COUNTIF($D30,"By-products*"),COUNTIF($D30,"DAF sludge")), _xlfn.XLOOKUP($D30,'Calculator Compositions'!$D$25:$D$63,'Calculator Compositions'!G$25:G$63),_xlfn.XLOOKUP($C30,'Calculator Compositions'!$D$25:$D$63,'Calculator Compositions'!G$25:G$63))) ->  | N30: =IF('Input page'!J42<>"",'Input page'!J42,IF(OR(COUNTIF($D30,"By-products*"),COUNTIF($D30,"DAF sludge")), _xlfn.XLOOKUP($D30,'Calculator Compositions'!$D$25:$D$63,'Calculator Compositions'!H$25:H$63),_xlfn.XLOOKUP($C30,'Calculator Compositions'!$D$25:$D$63,'Calculator Compositions'!H$25:H$63))) ->  | O30: =IF('Input page'!K42<>"",'Input page'!K42,IF(OR(COUNTIF($D30,"By-products*"),COUNTIF($D30,"DAF sludge")), _xlfn.XLOOKUP($D30,'Calculator Compositions'!$D$25:$D$63,'Calculator Compositions'!I$25:I$63),_xlfn.XLOOKUP($C30,'Calculator Compositions'!$D$25:$D$63,'Calculator Compositions'!I$25:I$63))) -> 
B31: =+'Input page'!B43 -> 0 | C31: =IF(AND('Input page'!B43="Other",NOT(ISNUMBER(SEARCH("By-products",'Input page'!D43)))),IF('Input page'!D43="DAF Sludge",'Input page'!D43,'Input page'!E43),IF(+'Input page'!B43="Other",'Input page'!D43,'Input page'!C43)) -> 0 | D31: =IF(C31="DAF Sludge",C31,IF(COUNTIF(C31,"*By-products*"),C31,+'Input page'!D43)) -> 0 | E31: =+'Input page'!N43 -> 0 | F31: =+'Input page'!O43 -> 0 | G31: =IF('Input page'!L43<>"",'Input page'!L43,IF(OR(COUNTIF(D31,"By-products*"),COUNTIF(D31,"DAF sludge")),_xlfn.XLOOKUP(D31,'Calculator Compositions'!$D$25:$D$63,'Calculator Compositions'!$M$25:$M$63),_xlfn.XLOOKUP(C31,'Calculator Compositions'!$D$25:$D$63,'Calculator Compositions'!$M$25:$M$63))) ->  | H31: 0 | I31: Tonnes/year | J31: =IF(OR('Input page'!G43<>"",'Input page'!H43<>"",'Input page'!I43<>"",'Input page'!K43<>"",'Input page'!L43<>""),"YES","NO") -> NO | K31: =IF('Input page'!G43<>"",'Input page'!G43,IF(OR(COUNTIF($D31,"By-products*"),COUNTIF($D31,"DAF sludge")), _xlfn.XLOOKUP($D31,'Calculator Compositions'!$D$25:$D$63,'Calculator Compositions'!E$25:E$63),_xlfn.XLOOKUP($C31,'Calculator Compositions'!$D$25:$D$63,'Calculator Compositions'!E$25:E$63))) ->  | L31: =IF('Input page'!H43<>"",'Input page'!H43,IF(OR(COUNTIF($D31,"By-products*"),COUNTIF($D31,"DAF sludge")), _xlfn.XLOOKUP($D31,'Calculator Compositions'!$D$25:$D$63,'Calculator Compositions'!F$25:F$63),_xlfn.XLOOKUP($C31,'Calculator Compositions'!$D$25:$D$63,'Calculator Compositions'!F$25:F$63))) ->  | M31: =IF('Input page'!I43<>"",'Input page'!I43,IF(OR(COUNTIF($D31,"By-products*"),COUNTIF($D31,"DAF sludge")), _xlfn.XLOOKUP($D31,'Calculator Compositions'!$D$25:$D$63,'Calculator Compositions'!G$25:G$63),_xlfn.XLOOKUP($C31,'Calculator Compositions'!$D$25:$D$63,'Calculator Compositions'!G$25:G$63))) ->  | N31: =IF('Input page'!J43<>"",'Input page'!J43,IF(OR(COUNTIF($D31,"By-products*"),COUNTIF($D31,"DAF sludge")), _xlfn.XLOOKUP($D31,'Calculator Compositions'!$D$25:$D$63,'Calculator Compositions'!H$25:H$63),_xlfn.XLOOKUP($C31,'Calculator Compositions'!$D$25:$D$63,'Calculator Compositions'!H$25:H$63))) ->  | O31: =IF('Input page'!K43<>"",'Input page'!K43,IF(OR(COUNTIF($D31,"By-products*"),COUNTIF($D31,"DAF sludge")), _xlfn.XLOOKUP($D31,'Calculator Compositions'!$D$25:$D$63,'Calculator Compositions'!I$25:I$63),_xlfn.XLOOKUP($C31,'Calculator Compositions'!$D$25:$D$63,'Calculator Compositions'!I$25:I$63))) -> 
B32: =+'Input page'!B44 -> 0 | C32: =IF(AND('Input page'!B44="Other",NOT(ISNUMBER(SEARCH("By-products",'Input page'!D44)))),IF('Input page'!D44="DAF Sludge",'Input page'!D44,'Input page'!E44),IF(+'Input page'!B44="Other",'Input page'!D44,'Input page'!C44)) -> 0 | D32: =IF(C32="DAF Sludge",C32,IF(COUNTIF(C32,"*By-products*"),C32,+'Input page'!D44)) -> 0 | E32: =+'Input page'!N44 -> 0 | F32: =+'Input page'!O44 -> 0 | G32: =IF('Input page'!L44<>"",'Input page'!L44,IF(OR(COUNTIF(D32,"By-products*"),COUNTIF(D32,"DAF sludge")),_xlfn.XLOOKUP(D32,'Calculator Compositions'!$D$25:$D$63,'Calculator Compositions'!$M$25:$M$63),_xlfn.XLOOKUP(C32,'Calculator Compositions'!$D$25:$D$63,'Calculator Compositions'!$M$25:$M$63))) ->  | H32: 0 | I32: Tonnes/year | J32: =IF(OR('Input page'!G44<>"",'Input page'!H44<>"",'Input page'!I44<>"",'Input page'!K44<>"",'Input page'!L44<>""),"YES","NO") -> NO | K32: =IF('Input page'!G44<>"",'Input page'!G44,IF(OR(COUNTIF($D32,"By-products*"),COUNTIF($D32,"DAF sludge")), _xlfn.XLOOKUP($D32,'Calculator Compositions'!$D$25:$D$63,'Calculator Compositions'!E$25:E$63),_xlfn.XLOOKUP($C32,'Calculator Compositions'!$D$25:$D$63,'Calculator Compositions'!E$25:E$63))) ->  | L32: =IF('Input page'!H44<>"",'Input page'!H44,IF(OR(COUNTIF($D32,"By-products*"),COUNTIF($D32,"DAF sludge")), _xlfn.XLOOKUP($D32,'Calculator Compositions'!$D$25:$D$63,'Calculator Compositions'!F$25:F$63),_xlfn.XLOOKUP($C32,'Calculator Compositions'!$D$25:$D$63,'Calculator Compositions'!F$25:F$63))) ->  | M32: =IF('Input page'!I44<>"",'Input page'!I44,IF(OR(COUNTIF($D32,"By-products*"),COUNTIF($D32,"DAF sludge")), _xlfn.XLOOKUP($D32,'Calculator Compositions'!$D$25:$D$63,'Calculator Compositions'!G$25:G$63),_xlfn.XLOOKUP($C32,'Calculator Compositions'!$D$25:$D$63,'Calculator Compositions'!G$25:G$63))) ->  | N32: =IF('Input page'!J44<>"",'Input page'!J44,IF(OR(COUNTIF($D32,"By-products*"),COUNTIF($D32,"DAF sludge")), _xlfn.XLOOKUP($D32,'Calculator Compositions'!$D$25:$D$63,'Calculator Compositions'!H$25:H$63),_xlfn.XLOOKUP($C32,'Calculator Compositions'!$D$25:$D$63,'Calculator Compositions'!H$25:H$63))) ->  | O32: =IF('Input page'!K44<>"",'Input page'!K44,IF(OR(COUNTIF($D32,"By-products*"),COUNTIF($D32,"DAF sludge")), _xlfn.XLOOKUP($D32,'Calculator Compositions'!$D$25:$D$63,'Calculator Compositions'!I$25:I$63),_xlfn.XLOOKUP($C32,'Calculator Compositions'!$D$25:$D$63,'Calculator Compositions'!I$25:I$63))) -> 
B33: =+'Input page'!B45 -> 0 | C33: =IF(AND('Input page'!B45="Other",NOT(ISNUMBER(SEARCH("By-products",'Input page'!D45)))),IF('Input page'!D45="DAF Sludge",'Input page'!D45,'Input page'!E45),IF(+'Input page'!B45="Other",'Input page'!D45,'Input page'!C45)) -> 0 | D33: =IF(C33="DAF Sludge",C33,IF(COUNTIF(C33,"*By-products*"),C33,+'Input page'!D45)) -> 0 | E33: =+'Input page'!N45 -> 0 | F33: =+'Input page'!O45 -> 0 | G33: =IF('Input page'!L45<>"",'Input page'!L45,IF(OR(COUNTIF(D33,"By-products*"),COUNTIF(D33,"DAF sludge")),_xlfn.XLOOKUP(D33,'Calculator Compositions'!$D$25:$D$63,'Calculator Compositions'!$M$25:$M$63),_xlfn.XLOOKUP(C33,'Calculator Compositions'!$D$25:$D$63,'Calculator Compositions'!$M$25:$M$63))) ->  | H33: =IF(F33="kL/year",E33*G33/1000,E33) -> 0 | I33: Tonnes/year | J33: =IF(OR('Input page'!G45<>"",'Input page'!H45<>"",'Input page'!I45<>"",'Input page'!K45<>"",'Input page'!L45<>""),"YES","NO") -> NO | K33: =IF('Input page'!G45<>"",'Input page'!G45,IF(OR(COUNTIF($D33,"By-products*"),COUNTIF($D33,"DAF sludge")), _xlfn.XLOOKUP($D33,'Calculator Compositions'!$D$25:$D$63,'Calculator Compositions'!E$25:E$63),_xlfn.XLOOKUP($C33,'Calculator Compositions'!$D$25:$D$63,'Calculator Compositions'!E$25:E$63))) ->  | L33: =IF('Input page'!H45<>"",'Input page'!H45,IF(OR(COUNTIF($D33,"By-products*"),COUNTIF($D33,"DAF sludge")), _xlfn.XLOOKUP($D33,'Calculator Compositions'!$D$25:$D$63,'Calculator Compositions'!F$25:F$63),_xlfn.XLOOKUP($C33,'Calculator Compositions'!$D$25:$D$63,'Calculator Compositions'!F$25:F$63))) ->  | M33: =IF('Input page'!I45<>"",'Input page'!I45,IF(OR(COUNTIF($D33,"By-products*"),COUNTIF($D33,"DAF sludge")), _xlfn.XLOOKUP($D33,'Calculator Compositions'!$D$25:$D$63,'Calculator Compositions'!G$25:G$63),_xlfn.XLOOKUP($C33,'Calculator Compositions'!$D$25:$D$63,'Calculator Compositions'!G$25:G$63))) ->  | N33: =IF('Input page'!J45<>"",'Input page'!J45,IF(OR(COUNTIF($D33,"By-products*"),COUNTIF($D33,"DAF sludge")), _xlfn.XLOOKUP($D33,'Calculator Compositions'!$D$25:$D$63,'Calculator Compositions'!H$25:H$63),_xlfn.XLOOKUP($C33,'Calculator Compositions'!$D$25:$D$63,'Calculator Compositions'!H$25:H$63))) ->  | O33: =IF('Input page'!K45<>"",'Input page'!K45,IF(OR(COUNTIF($D33,"By-products*"),COUNTIF($D33,"DAF sludge")), _xlfn.XLOOKUP($D33,'Calculator Compositions'!$D$25:$D$63,'Calculator Compositions'!I$25:I$63),_xlfn.XLOOKUP($C33,'Calculator Compositions'!$D$25:$D$63,'Calculator Compositions'!I$25:I$63))) -> 
B34: =+'Input page'!B46 -> 0 | C34: =IF(AND('Input page'!B46="Other",NOT(ISNUMBER(SEARCH("By-products",'Input page'!D46)))),IF('Input page'!D46="DAF Sludge",'Input page'!D46,'Input page'!E46),IF(+'Input page'!B46="Other",'Input page'!D46,'Input page'!C46)) -> 0 | D34: =IF(C34="DAF Sludge",C34,IF(COUNTIF(C34,"*By-products*"),C34,+'Input page'!D46)) -> 0 | E34: =+'Input page'!N46 -> 0 | F34: =+'Input page'!O46 -> 0 | G34: =IF('Input page'!L46<>"",'Input page'!L46,IF(OR(COUNTIF(D34,"By-products*"),COUNTIF(D34,"DAF sludge")),_xlfn.XLOOKUP(D34,'Calculator Compositions'!$D$25:$D$63,'Calculator Compositions'!$M$25:$M$63),_xlfn.XLOOKUP(C34,'Calculator Compositions'!$D$25:$D$63,'Calculator Compositions'!$M$25:$M$63))) ->  | H34: 0 | I34: Tonnes/year | J34: =IF(OR('Input page'!G46<>"",'Input page'!H46<>"",'Input page'!I46<>"",'Input page'!K46<>"",'Input page'!L46<>""),"YES","NO") -> NO | K34: =IF('Input page'!G46<>"",'Input page'!G46,IF(OR(COUNTIF($D34,"By-products*"),COUNTIF($D34,"DAF sludge")), _xlfn.XLOOKUP($D34,'Calculator Compositions'!$D$25:$D$63,'Calculator Compositions'!E$25:E$63),_xlfn.XLOOKUP($C34,'Calculator Compositions'!$D$25:$D$63,'Calculator Compositions'!E$25:E$63))) ->  | L34: =IF('Input page'!H46<>"",'Input page'!H46,IF(OR(COUNTIF($D34,"By-products*"),COUNTIF($D34,"DAF sludge")), _xlfn.XLOOKUP($D34,'Calculator Compositions'!$D$25:$D$63,'Calculator Compositions'!F$25:F$63),_xlfn.XLOOKUP($C34,'Calculator Compositions'!$D$25:$D$63,'Calculator Compositions'!F$25:F$63))) ->  | M34: =IF('Input page'!I46<>"",'Input page'!I46,IF(OR(COUNTIF($D34,"By-products*"),COUNTIF($D34,"DAF sludge")), _xlfn.XLOOKUP($D34,'Calculator Compositions'!$D$25:$D$63,'Calculator Compositions'!G$25:G$63),_xlfn.XLOOKUP($C34,'Calculator Compositions'!$D$25:$D$63,'Calculator Compositions'!G$25:G$63))) ->  | N34: =IF('Input page'!J46<>"",'Input page'!J46,IF(OR(COUNTIF($D34,"By-products*"),COUNTIF($D34,"DAF sludge")), _xlfn.XLOOKUP($D34,'Calculator Compositions'!$D$25:$D$63,'Calculator Compositions'!H$25:H$63),_xlfn.XLOOKUP($C34,'Calculator Compositions'!$D$25:$D$63,'Calculator Compositions'!H$25:H$63))) ->  | O34: =IF('Input page'!K46<>"",'Input page'!K46,IF(OR(COUNTIF($D34,"By-products*"),COUNTIF($D34,"DAF sludge")), _xlfn.XLOOKUP($D34,'Calculator Compositions'!$D$25:$D$63,'Calculator Compositions'!I$25:I$63),_xlfn.XLOOKUP($C34,'Calculator Compositions'!$D$25:$D$63,'Calculator Compositions'!I$25:I$63))) -> 
B35: =+'Input page'!B47 -> 0 | C35: =IF(AND('Input page'!B47="Other",NOT(ISNUMBER(SEARCH("By-products",'Input page'!D47)))),IF('Input page'!D47="DAF Sludge",'Input page'!D47,'Input page'!E47),IF(+'Input page'!B47="Other",'Input page'!D47,'Input page'!C47)) -> 0 | D35: =IF(C35="DAF Sludge",C35,IF(COUNTIF(C35,"*By-products*"),C35,+'Input page'!D47)) -> 0 | E35: =+'Input page'!N47 -> 0 | F35: =+'Input page'!O47 -> 0 | G35: =IF('Input page'!L47<>"",'Input page'!L47,IF(OR(COUNTIF(D35,"By-products*"),COUNTIF(D35,"DAF sludge")),_xlfn.XLOOKUP(D35,'Calculator Compositions'!$D$25:$D$63,'Calculator Compositions'!$M$25:$M$63),_xlfn.XLOOKUP(C35,'Calculator Compositions'!$D$25:$D$63,'Calculator Compositions'!$M$25:$M$63))) ->  | H35: 0 | I35: Tonnes/year | J35: =IF(OR('Input page'!G47<>"",'Input page'!H47<>"",'Input page'!I47<>"",'Input page'!K47<>"",'Input page'!L47<>""),"YES","NO") -> NO | K35: =IF('Input page'!G47<>"",'Input page'!G47,IF(OR(COUNTIF($D35,"By-products*"),COUNTIF($D35,"DAF sludge")), _xlfn.XLOOKUP($D35,'Calculator Compositions'!$D$25:$D$63,'Calculator Compositions'!E$25:E$63),_xlfn.XLOOKUP($C35,'Calculator Compositions'!$D$25:$D$63,'Calculator Compositions'!E$25:E$63))) ->  | L35: =IF('Input page'!H47<>"",'Input page'!H47,IF(OR(COUNTIF($D35,"By-products*"),COUNTIF($D35,"DAF sludge")), _xlfn.XLOOKUP($D35,'Calculator Compositions'!$D$25:$D$63,'Calculator Compositions'!F$25:F$63),_xlfn.XLOOKUP($C35,'Calculator Compositions'!$D$25:$D$63,'Calculator Compositions'!F$25:F$63))) ->  | M35: =IF('Input page'!I47<>"",'Input page'!I47,IF(OR(COUNTIF($D35,"By-products*"),COUNTIF($D35,"DAF sludge")), _xlfn.XLOOKUP($D35,'Calculator Compositions'!$D$25:$D$63,'Calculator Compositions'!G$25:G$63),_xlfn.XLOOKUP($C35,'Calculator Compositions'!$D$25:$D$63,'Calculator Compositions'!G$25:G$63))) ->  | N35: =IF('Input page'!J47<>"",'Input page'!J47,IF(OR(COUNTIF($D35,"By-products*"),COUNTIF($D35,"DAF sludge")), _xlfn.XLOOKUP($D35,'Calculator Compositions'!$D$25:$D$63,'Calculator Compositions'!H$25:H$63),_xlfn.XLOOKUP($C35,'Calculator Compositions'!$D$25:$D$63,'Calculator Compositions'!H$25:H$63))) ->  | O35: =IF('Input page'!K47<>"",'Input page'!K47,IF(OR(COUNTIF($D35,"By-products*"),COUNTIF($D35,"DAF sludge")), _xlfn.XLOOKUP($D35,'Calculator Compositions'!$D$25:$D$63,'Calculator Compositions'!I$25:I$63),_xlfn.XLOOKUP($C35,'Calculator Compositions'!$D$25:$D$63,'Calculator Compositions'!I$25:I$63))) -> 
V41: Finished
V42: Product
B43: User Defined Products | V43: only
E44: Annualised Tonnage Calculations | K44: Component breakdown | P44: Component | U44: Milk equivalence
H45: Convert kL/Yr to Tonnes/yr | U45: Basis
B46: Product category | C46: Product type | D46: Waste stream | E46: Estimated volume | F46: Units | G46: Density | H46: Estimated mass | I46: Converted Units | K46: %P | L46: %F | M46: %Lactose | N46: %MSNF | O46: %TS | P46: P | Q46: F | R46: Lactose | S46: MSNF | T46: Total Solids | U46: Protein | V46: Casein | W46: Whey | X46: Fat | Y46: Lactose | Z46: MSNF | AA46: Total Solids
P47: t/yr | Q47: t/yr | R47: t/yr | S47: t/yr | T47: t/yr | U47: t milk/yr equivalence | V47: t milk/yr equivalence | W47: t milk/yr equivalence | X47: t milk/yr equivalence | Y47: t milk/yr equivalence | Z47: t milk/yr equivalence | AA47: t milk/yr equivalence
B48: =+'Input page'!B54 -> 0 | C48: =+IF('Input page'!C54= "Mixed Product",'Input page'!C54,'Input page'!E54) -> 0 | D48: =+'Input page'!D54 -> 0 | E48: =+'Input page'!N54 -> 0 | F48: =+'Input page'!O54 -> 0 | G48: =+'Input page'!L54 -> 0 | H48: =IF(F48="kL/year",E48*G48/1000,E48) -> 0 | I48: Tonnes/year | K48: =+'Input page'!G54 -> 0 | L48: =+'Input page'!H54 -> 0 | M48: =+'Input page'!I54 -> 0 | N48: =+'Input page'!J54 -> 0 | O48: =+'Input page'!K54 -> 0 | P48: =+K48*$H48 -> 0 | Q48: =+L48*$H48 -> 0 | R48: =+M48*$H48 -> 0 | S48: =+N48*$H48 -> 0 | T48: =+O48*$H48 -> 0 | U48: =+P48/$AD$10 -> 0 | V48: =IF(COUNTIF(D48,"*finished product*"),+P48/Raw_milk_Prcnt_Casein,"") ->  | W48: =IF(COUNTIF(D48,"*finished product*"),+P48/(Raw_milk_Prcnt_P*Whey_Protein_Total_Loss_Factor),"") ->  | X48: =+Q48/$AE$10 -> 0 | Y48: =+R48/$AF$10 -> 0 | Z48: =+S48/Raw_milk_Prcnt_SNF -> 0 | AA48: =+T48/$AG$10 -> 0
B49: =+'Input page'!B55 -> 0 | C49: =+IF('Input page'!C55= "Mixed Product",'Input page'!C55,'Input page'!E55) -> 0 | D49: =+'Input page'!D55 -> 0 | E49: =+'Input page'!N55 -> 0 | F49: =+'Input page'!O55 -> 0 | G49: =+'Input page'!L55 -> 0 | H49: =IF(F49="kL/year",E49*G49/1000,E49) -> 0 | I49: Tonnes/year | K49: =+'Input page'!G55 -> 0 | L49: =+'Input page'!H55 -> 0 | M49: =+'Input page'!I55 -> 0 | N49: =+'Input page'!J55 -> 0 | O49: =+'Input page'!K55 -> 0 | P49: =+K49*$H49 -> 0 | Q49: =+L49*$H49 -> 0 | R49: =+M49*$H49 -> 0 | S49: =+N49*$H49 -> 0 | T49: =+O49*$H49 -> 0 | U49: =+P49/$AD$10 -> 0 | V49: =IF(COUNTIF(D49,"*finished product*"),+P49/Raw_milk_Prcnt_Casein,"") ->  | X49: =+Q49/$AE$10 -> 0 | Y49: =+R49/$AF$10 -> 0 | Z49: 0 | AA49: =+T49/$AG$10 -> 0
B50: =+'Input page'!B56 -> 0 | C50: =+IF('Input page'!C56= "Mixed Product",'Input page'!C56,'Input page'!E56) -> 0 | D50: =+'Input page'!D56 -> 0 | E50: =+'Input page'!N56 -> 0 | F50: =+'Input page'!O56 -> 0 | G50: =+'Input page'!L56 -> 0 | H50: 0 | I50: Tonnes/year | K50: =+'Input page'!G56 -> 0 | L50: =+'Input page'!H56 -> 0 | M50: =+'Input page'!I56 -> 0 | N50: =+'Input page'!J56 -> 0 | O50: =+'Input page'!K56 -> 0 | P50: 0 | Q50: 0 | R50: 0 | S50: 0 | T50: 0 | U50: 0 | X50: 0 | Y50: 0 | Z50: 0 | AA50: 0
B51: =+'Input page'!B57 -> 0 | C51: =+IF('Input page'!C57= "Mixed Product",'Input page'!C57,'Input page'!E57) -> 0 | D51: =+'Input page'!D57 -> 0 | E51: =+'Input page'!N57 -> 0 | F51: =+'Input page'!O57 -> 0 | G51: =+'Input page'!L57 -> 0 | H51: 0 | I51: Tonnes/year | K51: =+'Input page'!G57 -> 0 | L51: =+'Input page'!H57 -> 0 | M51: =+'Input page'!I57 -> 0 | N51: =+'Input page'!J57 -> 0 | O51: =+'Input page'!K57 -> 0 | P51: 0 | Q51: 0 | R51: 0 | S51: 0 | T51: 0 | U51: 0 | X51: 0 | Y51: 0 | Z51: 0 | AA51: 0
B52: =+'Input page'!B58 -> 0 | C52: =+IF('Input page'!C58= "Mixed Product",'Input page'!C58,'Input page'!E58) -> 0 | D52: =+'Input page'!D58 -> 0 | E52: =+'Input page'!N58 -> 0 | F52: =+'Input page'!O58 -> 0 | G52: =+'Input page'!L58 -> 0 | H52: 0 | I52: Tonnes/year | K52: =+'Input page'!G58 -> 0 | L52: =+'Input page'!H58 -> 0 | M52: =+'Input page'!I58 -> 0 | N52: =+'Input page'!J58 -> 0 | O52: =+'Input page'!K58 -> 0 | P52: 0 | Q52: 0 | R52: 0 | S52: 0 | T52: 0 | U52: 0 | X52: 0 | Y52: 0 | Z52: 0 | AA52: 0
B53: =+'Input page'!B59 -> 0 | C53: =+IF('Input page'!C59= "Mixed Product",'Input page'!C59,'Input page'!E59) -> 0 | D53: =+'Input page'!D59 -> 0 | E53: =+'Input page'!N59 -> 0 | F53: =+'Input page'!O59 -> 0 | G53: =+'Input page'!L59 -> 0 | H53: 0 | I53: Tonnes/year | K53: =+'Input page'!G59 -> 0 | L53: =+'Input page'!H59 -> 0 | M53: =+'Input page'!I59 -> 0 | N53: =+'Input page'!J59 -> 0 | O53: =+'Input page'!K59 -> 0 | P53: 0 | Q53: 0 | R53: 0 | S53: 0 | T53: 0 | U53: 0 | X53: 0 | Y53: 0 | Z53: 0 | AA53: 0
B54: =+'Input page'!B60 -> 0 | C54: =+IF('Input page'!C60= "Mixed Product",'Input page'!C60,'Input page'!E60) -> 0 | D54: =+'Input page'!D60 -> 0 | E54: =+'Input page'!N60 -> 0 | F54: =+'Input page'!O60 -> 0 | G54: =+'Input page'!L60 -> 0 | H54: 0 | I54: Tonnes/year | K54: =+'Input page'!G60 -> 0 | L54: =+'Input page'!H60 -> 0 | M54: =+'Input page'!I60 -> 0 | N54: =+'Input page'!J60 -> 0 | O54: =+'Input page'!K60 -> 0 | P54: 0 | Q54: 0 | R54: 0 | S54: 0 | T54: 0 | U54: 0 | X54: 0 | Y54: 0 | Z54: 0 | AA54: 0
B55: =+'Input page'!B61 -> 0 | C55: =+IF('Input page'!C61= "Mixed Product",'Input page'!C61,'Input page'!E61) -> 0 | D55: =+'Input page'!D61 -> 0 | E55: =+'Input page'!N61 -> 0 | F55: =+'Input page'!O61 -> 0 | G55: =+'Input page'!L61 -> 0 | H55: 0 | I55: Tonnes/year | K55: =+'Input page'!G61 -> 0 | L55: =+'Input page'!H61 -> 0 | M55: =+'Input page'!I61 -> 0 | N55: =+'Input page'!J61 -> 0 | O55: =+'Input page'!K61 -> 0 | P55: 0 | Q55: 0 | R55: 0 | S55: 0 | T55: 0 | U55: 0 | X55: 0 | Y55: 0 | Z55: 0 | AA55: 0
B56: =+'Input page'!B62 -> 0 | C56: =+IF('Input page'!C62= "Mixed Product",'Input page'!C62,'Input page'!E62) -> 0 | D56: =+'Input page'!D62 -> 0 | E56: =+'Input page'!N62 -> 0 | F56: =+'Input page'!O62 -> 0 | G56: =+'Input page'!L62 -> 0 | H56: 0 | I56: Tonnes/year | K56: =+'Input page'!G62 -> 0 | L56: =+'Input page'!H62 -> 0 | M56: =+'Input page'!I62 -> 0 | N56: =+'Input page'!J62 -> 0 | O56: =+'Input page'!K62 -> 0 | P56: 0 | Q56: 0 | R56: 0 | S56: 0 | T56: 0 | U56: 0 | X56: 0 | Y56: 0 | Z56: 0 | AA56: 0
B57: =+'Input page'!B63 -> 0 | C57: =+IF('Input page'!C63= "Mixed Product",'Input page'!C63,'Input page'!E63) -> 0 | D57: =+'Input page'!D63 -> 0 | E57: =+'Input page'!N63 -> 0 | F57: =+'Input page'!O63 -> 0 | G57: =+'Input page'!L63 -> 0 | H57: 0 | I57: Tonnes/year | K57: =+'Input page'!G63 -> 0 | L57: =+'Input page'!H63 -> 0 | M57: =+'Input page'!I63 -> 0 | N57: =+'Input page'!J63 -> 0 | O57: =+'Input page'!K63 -> 0 | P57: 0 | Q57: 0 | R57: 0 | S57: 0 | T57: 0 | U57: 0 | X57: 0 | Y57: 0 | Z57: 0 | AA57: 0
B58: =+'Input page'!B64 -> 0 | C58: =+IF('Input page'!C64= "Mixed Product",'Input page'!C64,'Input page'!E64) -> 0 | D58: =+'Input page'!D64 -> 0 | E58: =+'Input page'!N64 -> 0 | F58: =+'Input page'!O64 -> 0 | G58: =+'Input page'!L64 -> 0 | H58: 0 | I58: Tonnes/year | K58: =+'Input page'!G64 -> 0 | L58: =+'Input page'!H64 -> 0 | M58: =+'Input page'!I64 -> 0 | N58: =+'Input page'!J64 -> 0 | O58: =+'Input page'!K64 -> 0 | P58: 0 | Q58: 0 | R58: 0 | S58: 0 | T58: 0 | U58: 0 | X58: 0 | Y58: 0 | Z58: 0 | AA58: 0
B59: =+'Input page'!B65 -> 0 | C59: =+IF('Input page'!C65= "Mixed Product",'Input page'!C65,'Input page'!E65) -> 0 | D59: =+'Input page'!D65 -> 0 | E59: =+'Input page'!N65 -> 0 | F59: =+'Input page'!O65 -> 0 | G59: =+'Input page'!L65 -> 0 | H59: 0 | I59: Tonnes/year | K59: =+'Input page'!G65 -> 0 | L59: =+'Input page'!H65 -> 0 | M59: =+'Input page'!I65 -> 0 | N59: =+'Input page'!J65 -> 0 | O59: =+'Input page'!K65 -> 0 | P59: 0 | Q59: 0 | R59: 0 | S59: 0 | T59: 0 | U59: 0 | X59: 0 | Y59: 0 | Z59: 0 | AA59: 0
B60: =+'Input page'!B66 -> 0 | C60: =+IF('Input page'!C66= "Mixed Product",'Input page'!C66,'Input page'!E66) -> 0 | D60: =+'Input page'!D66 -> 0 | E60: =+'Input page'!N66 -> 0 | F60: =+'Input page'!O66 -> 0 | G60: =+'Input page'!L66 -> 0 | H60: 0 | I60: Tonnes/year | K60: =+'Input page'!G66 -> 0 | L60: =+'Input page'!H66 -> 0 | M60: =+'Input page'!I66 -> 0 | N60: =+'Input page'!J66 -> 0 | O60: =+'Input page'!K66 -> 0 | P60: 0 | Q60: 0 | R60: 0 | S60: 0 | T60: 0 | U60: 0 | X60: 0 | Y60: 0 | Z60: 0 | AA60: 0
B61: =+'Input page'!B67 -> 0 | C61: =+IF('Input page'!C67= "Mixed Product",'Input page'!C67,'Input page'!E67) -> 0 | D61: =+'Input page'!D67 -> 0 | E61: =+'Input page'!N67 -> 0 | F61: =+'Input page'!O67 -> 0 | G61: =+'Input page'!L67 -> 0 | H61: 0 | I61: Tonnes/year | K61: =+'Input page'!G67 -> 0 | L61: =+'Input page'!H67 -> 0 | M61: =+'Input page'!I67 -> 0 | N61: =+'Input page'!J67 -> 0 | O61: =+'Input page'!K67 -> 0 | P61: 0 | Q61: 0 | R61: 0 | S61: 0 | T61: 0 | U61: 0 | X61: 0 | Y61: 0 | Z61: 0 | AA61: 0

Sheet Food Waste Table (hidden)
B1: DAIRY EQUIVALENCE CALCULATOR | S1: =$S$2 -> Food Waste Table
B2: Client: | C2: =BaseInfo_ClientName -> Dairy Australia | R2: Area: | S2: Food Waste Table
B3: Project: | C3: =BaseInfo_Project -> 2614DP24 | R3: Revision: | S3: =BaseInfo_Revision -> V2.7
B4: Site 1: | C4: =BaseInfo_Site -> 0 | R4: Project Ref: | S4: =BaseInfo_ProjectReference -> 2614DP24
A7: Pre-defined Dairy Food Waste
D8: Annualised | E8: Component | J8: Milk equivalence
D9: Tonnage
A10: Product category | B10: Product type | C10: Description | E10: Protein | F10: Fat | G10: Lactose | H10: MSNF | I10: Total Solids | J10: Protein | K10: Casein | L10: Whey Protein | M10: Fat | N10: Lactose | O10: MSNF | P10: Total Solids
D11: t/yr | E11: t/yr | F11: t/yr | G11: t/yr | H11: t/yr | I11: t/yr | J11: t/yr | K11: t/yr | L11: t/yr | M11: t/yr | N11: t/yr | O11: t/yr | P11: t/yr
A12: Milk | B12: =Milk -> Fresh milk | D12: =SUMIFS('Waste tons and component smry'!$H$12:$H$38,'Waste tons and component smry'!$C$12:$C$38,B12) -> 0 | E12: =SUMIFS('Waste tons and component smry'!P$12:P$38,'Waste tons and component smry'!$C$12:$C$38,$B12) -> 0 | F12: =SUMIFS('Waste tons and component smry'!Q$12:Q$38,'Waste tons and component smry'!$C$12:$C$38,$B12) -> 0 | G12: =SUMIFS('Waste tons and component smry'!R$12:R$38,'Waste tons and component smry'!$C$12:$C$38,$B12) -> 0 | H12: =SUMIFS('Waste tons and component smry'!S$12:S$38,'Waste tons and component smry'!$C$12:$C$38,$B12) -> 0 | I12: =SUMIFS('Waste tons and component smry'!T$12:T$38,'Waste tons and component smry'!$C$12:$C$38,$B12) -> 0 | J12: =SUMIFS('Waste tons and component smry'!U$12:U$38,'Waste tons and component smry'!$C$12:$C$38,$B12) -> 0 | K12: =SUMIFS('Waste tons and component smry'!V$12:V$38,'Waste tons and component smry'!$C$12:$C$38,$B12) -> 0 | L12: =SUMIFS('Waste tons and component smry'!W$12:W$38,'Waste tons and component smry'!$C$12:$C$38,$B12) -> 0 | M12: =SUMIFS('Waste tons and component smry'!X$12:X$38,'Waste tons and component smry'!$C$12:$C$38,$B12) -> 0 | N12: =SUMIFS('Waste tons and component smry'!Y$12:Y$38,'Waste tons and component smry'!$C$12:$C$38,$B12) -> 0 | O12: =SUMIFS('Waste tons and component smry'!Z$12:Z$38,'Waste tons and component smry'!$C$12:$C$38,$B12) -> 0 | P12: =SUMIFS('Waste tons and component smry'!AA$12:AA$38,'Waste tons and component smry'!$C$12:$C$38,$B12) -> 0
B13: Flavoured milk | D13: =SUMIFS('Waste tons and component smry'!$H$12:$H$38,'Waste tons and component smry'!$C$12:$C$38,B13) -> 0 | E13: =SUMIFS('Waste tons and component smry'!P$12:P$38,'Waste tons and component smry'!$C$12:$C$38,$B13) -> 0 | F13: =SUMIFS('Waste tons and component smry'!Q$12:Q$38,'Waste tons and component smry'!$C$12:$C$38,$B13) -> 0 | G13: =SUMIFS('Waste tons and component smry'!R$12:R$38,'Waste tons and component smry'!$C$12:$C$38,$B13) -> 0 | H13: =SUMIFS('Waste tons and component smry'!S$12:S$38,'Waste tons and component smry'!$C$12:$C$38,$B13) -> 0 | I13: =SUMIFS('Waste tons and component smry'!T$12:T$38,'Waste tons and component smry'!$C$12:$C$38,$B13) -> 0 | J13: =SUMIFS('Waste tons and component smry'!U$12:U$38,'Waste tons and component smry'!$C$12:$C$38,$B13) -> 0 | K13: =SUMIFS('Waste tons and component smry'!V$12:V$38,'Waste tons and component smry'!$C$12:$C$38,$B13) -> 0 | L13: =SUMIFS('Waste tons and component smry'!W$12:W$38,'Waste tons and component smry'!$C$12:$C$38,$B13) -> 0 | M13: =SUMIFS('Waste tons and component smry'!X$12:X$38,'Waste tons and component smry'!$C$12:$C$38,$B13) -> 0 | N13: =SUMIFS('Waste tons and component smry'!Y$12:Y$38,'Waste tons and component smry'!$C$12:$C$38,$B13) -> 0 | O13: =SUMIFS('Waste tons and component smry'!Z$12:Z$38,'Waste tons and component smry'!$C$12:$C$38,$B13) -> 0 | P13: =SUMIFS('Waste tons and component smry'!AA$12:AA$38,'Waste tons and component smry'!$C$12:$C$38,$B13) -> 0
B14: ESL/UHT | D14: =SUMIFS('Waste tons and component smry'!$H$12:$H$38,'Waste tons and component smry'!$C$12:$C$38,B14) -> 0 | E14: =SUMIFS('Waste tons and component smry'!P$12:P$38,'Waste tons and component smry'!$C$12:$C$38,$B14) -> 0 | F14: =SUMIFS('Waste tons and component smry'!Q$12:Q$38,'Waste tons and component smry'!$C$12:$C$38,$B14) -> 0 | G14: =SUMIFS('Waste tons and component smry'!R$12:R$38,'Waste tons and component smry'!$C$12:$C$38,$B14) -> 0 | H14: =SUMIFS('Waste tons and component smry'!S$12:S$38,'Waste tons and component smry'!$C$12:$C$38,$B14) -> 0 | I14: =SUMIFS('Waste tons and component smry'!T$12:T$38,'Waste tons and component smry'!$C$12:$C$38,$B14) -> 0 | J14: =SUMIFS('Waste tons and component smry'!U$12:U$38,'Waste tons and component smry'!$C$12:$C$38,$B14) -> 0 | K14: =SUMIFS('Waste tons and component smry'!V$12:V$38,'Waste tons and component smry'!$C$12:$C$38,$B14) -> 0 | L14: =SUMIFS('Waste tons and component smry'!W$12:W$38,'Waste tons and component smry'!$C$12:$C$38,$B14) -> 0 | M14: =SUMIFS('Waste tons and component smry'!X$12:X$38,'Waste tons and component smry'!$C$12:$C$38,$B14) -> 0 | N14: =SUMIFS('Waste tons and component smry'!Y$12:Y$38,'Waste tons and component smry'!$C$12:$C$38,$B14) -> 0 | O14: =SUMIFS('Waste tons and component smry'!Z$12:Z$38,'Waste tons and component smry'!$C$12:$C$38,$B14) -> 0 | P14: =SUMIFS('Waste tons and component smry'!AA$12:AA$38,'Waste tons and component smry'!$C$12:$C$38,$B14) -> 0
A16: Cheese | B16: =Cheese -> Hard Cheese | D16: =SUMIFS('Waste tons and component smry'!$H$12:$H$38,'Waste tons and component smry'!$C$12:$C$38,B16) -> 0 | E16: =SUMIFS('Waste tons and component smry'!P$12:P$38,'Waste tons and component smry'!$C$12:$C$38,$B16) -> 0 | F16: =SUMIFS('Waste tons and component smry'!Q$12:Q$38,'Waste tons and component smry'!$C$12:$C$38,$B16) -> 0 | G16: =SUMIFS('Waste tons and component smry'!R$12:R$38,'Waste tons and component smry'!$C$12:$C$38,$B16) -> 0 | H16: =SUMIFS('Waste tons and component smry'!S$12:S$38,'Waste tons and component smry'!$C$12:$C$38,$B16) -> 0 | I16: =SUMIFS('Waste tons and component smry'!T$12:T$38,'Waste tons and component smry'!$C$12:$C$38,$B16) -> 0 | J16: =SUMIFS('Waste tons and component smry'!U$12:U$38,'Waste tons and component smry'!$C$12:$C$38,$B16) -> 0 | K16: =SUMIFS('Waste tons and component smry'!V$12:V$38,'Waste tons and component smry'!$C$12:$C$38,$B16) -> 0 | L16: =SUMIFS('Waste tons and component smry'!W$12:W$38,'Waste tons and component smry'!$C$12:$C$38,$B16) -> 0 | M16: =SUMIFS('Waste tons and component smry'!X$12:X$38,'Waste tons and component smry'!$C$12:$C$38,$B16) -> 0 | N16: =SUMIFS('Waste tons and component smry'!Y$12:Y$38,'Waste tons and component smry'!$C$12:$C$38,$B16) -> 0 | O16: =SUMIFS('Waste tons and component smry'!Z$12:Z$38,'Waste tons and component smry'!$C$12:$C$38,$B16) -> 0 | P16: =SUMIFS('Waste tons and component smry'!AA$12:AA$38,'Waste tons and component smry'!$C$12:$C$38,$B16) -> 0
B17: Soft Cheese | D17: =SUMIFS('Waste tons and component smry'!$H$12:$H$38,'Waste tons and component smry'!$C$12:$C$38,B17) -> 0 | E17: =SUMIFS('Waste tons and component smry'!P$12:P$38,'Waste tons and component smry'!$C$12:$C$38,$B17) -> 0 | F17: =SUMIFS('Waste tons and component smry'!Q$12:Q$38,'Waste tons and component smry'!$C$12:$C$38,$B17) -> 0 | G17: =SUMIFS('Waste tons and component smry'!R$12:R$38,'Waste tons and component smry'!$C$12:$C$38,$B17) -> 0 | H17: =SUMIFS('Waste tons and component smry'!S$12:S$38,'Waste tons and component smry'!$C$12:$C$38,$B17) -> 0 | I17: =SUMIFS('Waste tons and component smry'!T$12:T$38,'Waste tons and component smry'!$C$12:$C$38,$B17) -> 0 | J17: =SUMIFS('Waste tons and component smry'!U$12:U$38,'Waste tons and component smry'!$C$12:$C$38,$B17) -> 0 | K17: =SUMIFS('Waste tons and component smry'!V$12:V$38,'Waste tons and component smry'!$C$12:$C$38,$B17) -> 0 | L17: =SUMIFS('Waste tons and component smry'!W$12:W$38,'Waste tons and component smry'!$C$12:$C$38,$B17) -> 0 | M17: =SUMIFS('Waste tons and component smry'!X$12:X$38,'Waste tons and component smry'!$C$12:$C$38,$B17) -> 0 | N17: =SUMIFS('Waste tons and component smry'!Y$12:Y$38,'Waste tons and component smry'!$C$12:$C$38,$B17) -> 0 | O17: =SUMIFS('Waste tons and component smry'!Z$12:Z$38,'Waste tons and component smry'!$C$12:$C$38,$B17) -> 0 | P17: =SUMIFS('Waste tons and component smry'!AA$12:AA$38,'Waste tons and component smry'!$C$12:$C$38,$B17) -> 0
B18: Ricotta | D18: =SUMIFS('Waste tons and component smry'!$H$12:$H$38,'Waste tons and component smry'!$C$12:$C$38,B18) -> 0 | E18: =SUMIFS('Waste tons and component smry'!P$12:P$38,'Waste tons and component smry'!$C$12:$C$38,$B18) -> 0 | F18: =SUMIFS('Waste tons and component smry'!Q$12:Q$38,'Waste tons and component smry'!$C$12:$C$38,$B18) -> 0 | G18: =SUMIFS('Waste tons and component smry'!R$12:R$38,'Waste tons and component smry'!$C$12:$C$38,$B18) -> 0 | H18: =SUMIFS('Waste tons and component smry'!S$12:S$38,'Waste tons and component smry'!$C$12:$C$38,$B18) -> 0 | I18: =SUMIFS('Waste tons and component smry'!T$12:T$38,'Waste tons and component smry'!$C$12:$C$38,$B18) -> 0 | J18: =SUMIFS('Waste tons and component smry'!U$12:U$38,'Waste tons and component smry'!$C$12:$C$38,$B18) -> 0 | K18: =SUMIFS('Waste tons and component smry'!V$12:V$38,'Waste tons and component smry'!$C$12:$C$38,$B18) -> 0 | L18: =SUMIFS('Waste tons and component smry'!W$12:W$38,'Waste tons and component smry'!$C$12:$C$38,$B18) -> 0 | M18: =SUMIFS('Waste tons and component smry'!X$12:X$38,'Waste tons and component smry'!$C$12:$C$38,$B18) -> 0 | N18: =SUMIFS('Waste tons and component smry'!Y$12:Y$38,'Waste tons and component smry'!$C$12:$C$38,$B18) -> 0 | O18: =SUMIFS('Waste tons and component smry'!Z$12:Z$38,'Waste tons and component smry'!$C$12:$C$38,$B18) -> 0 | P18: =SUMIFS('Waste tons and component smry'!AA$12:AA$38,'Waste tons and component smry'!$C$12:$C$38,$B18) -> 0
A20: Fresh | B20: =Fresh -> Butter | D20: =SUMIFS('Waste tons and component smry'!$H$12:$H$38,'Waste tons and component smry'!$C$12:$C$38,B20) -> 0 | E20: =SUMIFS('Waste tons and component smry'!P$12:P$38,'Waste tons and component smry'!$C$12:$C$38,$B20) -> 0 | F20: =SUMIFS('Waste tons and component smry'!Q$12:Q$38,'Waste tons and component smry'!$C$12:$C$38,$B20) -> 0 | G20: =SUMIFS('Waste tons and component smry'!R$12:R$38,'Waste tons and component smry'!$C$12:$C$38,$B20) -> 0 | H20: =SUMIFS('Waste tons and component smry'!S$12:S$38,'Waste tons and component smry'!$C$12:$C$38,$B20) -> 0 | I20: =SUMIFS('Waste tons and component smry'!T$12:T$38,'Waste tons and component smry'!$C$12:$C$38,$B20) -> 0 | J20: =SUMIFS('Waste tons and component smry'!U$12:U$38,'Waste tons and component smry'!$C$12:$C$38,$B20) -> 0 | K20: =SUMIFS('Waste tons and component smry'!V$12:V$38,'Waste tons and component smry'!$C$12:$C$38,$B20) -> 0 | L20: =SUMIFS('Waste tons and component smry'!W$12:W$38,'Waste tons and component smry'!$C$12:$C$38,$B20) -> 0 | M20: =SUMIFS('Waste tons and component smry'!X$12:X$38,'Waste tons and component smry'!$C$12:$C$38,$B20) -> 0 | N20: =SUMIFS('Waste tons and component smry'!Y$12:Y$38,'Waste tons and component smry'!$C$12:$C$38,$B20) -> 0 | O20: =SUMIFS('Waste tons and component smry'!Z$12:Z$38,'Waste tons and component smry'!$C$12:$C$38,$B20) -> 0 | P20: =SUMIFS('Waste tons and component smry'!AA$12:AA$38,'Waste tons and component smry'!$C$12:$C$38,$B20) -> 0
B21: Cream | D21: =SUMIFS('Waste tons and component smry'!$H$12:$H$38,'Waste tons and component smry'!$C$12:$C$38,B21) -> 0 | E21: =SUMIFS('Waste tons and component smry'!P$12:P$38,'Waste tons and component smry'!$C$12:$C$38,$B21) -> 0 | F21: =SUMIFS('Waste tons and component smry'!Q$12:Q$38,'Waste tons and component smry'!$C$12:$C$38,$B21) -> 0 | G21: =SUMIFS('Waste tons and component smry'!R$12:R$38,'Waste tons and component smry'!$C$12:$C$38,$B21) -> 0 | H21: =SUMIFS('Waste tons and component smry'!S$12:S$38,'Waste tons and component smry'!$C$12:$C$38,$B21) -> 0 | I21: =SUMIFS('Waste tons and component smry'!T$12:T$38,'Waste tons and component smry'!$C$12:$C$38,$B21) -> 0 | J21: =SUMIFS('Waste tons and component smry'!U$12:U$38,'Waste tons and component smry'!$C$12:$C$38,$B21) -> 0 | K21: =SUMIFS('Waste tons and component smry'!V$12:V$38,'Waste tons and component smry'!$C$12:$C$38,$B21) -> 0 | L21: =SUMIFS('Waste tons and component smry'!W$12:W$38,'Waste tons and component smry'!$C$12:$C$38,$B21) -> 0 | M21: =SUMIFS('Waste tons and component smry'!X$12:X$38,'Waste tons and component smry'!$C$12:$C$38,$B21) -> 0 | N21: =SUMIFS('Waste tons and component smry'!Y$12:Y$38,'Waste tons and component smry'!$C$12:$C$38,$B21) -> 0 | O21: =SUMIFS('Waste tons and component smry'!Z$12:Z$38,'Waste tons and component smry'!$C$12:$C$38,$B21) -> 0 | P21: =SUMIFS('Waste tons and component smry'!AA$12:AA$38,'Waste tons and component smry'!$C$12:$C$38,$B21) -> 0
B22: Desserts | D22: =SUMIFS('Waste tons and component smry'!$H$12:$H$38,'Waste tons and component smry'!$C$12:$C$38,B22) -> 0 | E22: =SUMIFS('Waste tons and component smry'!P$12:P$38,'Waste tons and component smry'!$C$12:$C$38,$B22) -> 0 | F22: =SUMIFS('Waste tons and component smry'!Q$12:Q$38,'Waste tons and component smry'!$C$12:$C$38,$B22) -> 0 | G22: =SUMIFS('Waste tons and component smry'!R$12:R$38,'Waste tons and component smry'!$C$12:$C$38,$B22) -> 0 | H22: =SUMIFS('Waste tons and component smry'!S$12:S$38,'Waste tons and component smry'!$C$12:$C$38,$B22) -> 0 | I22: =SUMIFS('Waste tons and component smry'!T$12:T$38,'Waste tons and component smry'!$C$12:$C$38,$B22) -> 0 | J22: =SUMIFS('Waste tons and component smry'!U$12:U$38,'Waste tons and component smry'!$C$12:$C$38,$B22) -> 0 | K22: =SUMIFS('Waste tons and component smry'!V$12:V$38,'Waste tons and component smry'!$C$12:$C$38,$B22) -> 0 | L22: =SUMIFS('Waste tons and component smry'!W$12:W$38,'Waste tons and component smry'!$C$12:$C$38,$B22) -> 0 | M22: =SUMIFS('Waste tons and component smry'!X$12:X$38,'Waste tons and component smry'!$C$12:$C$38,$B22) -> 0 | N22: =SUMIFS('Waste tons and component smry'!Y$12:Y$38,'Waste tons and component smry'!$C$12:$C$38,$B22) -> 0 | O22: =SUMIFS('Waste tons and component smry'!Z$12:Z$38,'Waste tons and component smry'!$C$12:$C$38,$B22) -> 0 | P22: =SUMIFS('Waste tons and component smry'!AA$12:AA$38,'Waste tons and component smry'!$C$12:$C$38,$B22) -> 0
B23: Sour Cream | D23: =SUMIFS('Waste tons and component smry'!$H$12:$H$38,'Waste tons and component smry'!$C$12:$C$38,B23) -> 0 | E23: =SUMIFS('Waste tons and component smry'!P$12:P$38,'Waste tons and component smry'!$C$12:$C$38,$B23) -> 0 | F23: =SUMIFS('Waste tons and component smry'!Q$12:Q$38,'Waste tons and component smry'!$C$12:$C$38,$B23) -> 0 | G23: =SUMIFS('Waste tons and component smry'!R$12:R$38,'Waste tons and component smry'!$C$12:$C$38,$B23) -> 0 | H23: =SUMIFS('Waste tons and component smry'!S$12:S$38,'Waste tons and component smry'!$C$12:$C$38,$B23) -> 0 | I23: =SUMIFS('Waste tons and component smry'!T$12:T$38,'Waste tons and component smry'!$C$12:$C$38,$B23) -> 0 | J23: =SUMIFS('Waste tons and component smry'!U$12:U$38,'Waste tons and component smry'!$C$12:$C$38,$B23) -> 0 | K23: =SUMIFS('Waste tons and component smry'!V$12:V$38,'Waste tons and component smry'!$C$12:$C$38,$B23) -> 0 | L23: =SUMIFS('Waste tons and component smry'!W$12:W$38,'Waste tons and component smry'!$C$12:$C$38,$B23) -> 0 | M23: =SUMIFS('Waste tons and component smry'!X$12:X$38,'Waste tons and component smry'!$C$12:$C$38,$B23) -> 0 | N23: =SUMIFS('Waste tons and component smry'!Y$12:Y$38,'Waste tons and component smry'!$C$12:$C$38,$B23) -> 0 | O23: =SUMIFS('Waste tons and component smry'!Z$12:Z$38,'Waste tons and component smry'!$C$12:$C$38,$B23) -> 0 | P23: =SUMIFS('Waste tons and component smry'!AA$12:AA$38,'Waste tons and component smry'!$C$12:$C$38,$B23) -> 0
B24: Yoghurt | D24: =SUMIFS('Waste tons and component smry'!$H$12:$H$38,'Waste tons and component smry'!$C$12:$C$38,B24) -> 0 | E24: =SUMIFS('Waste tons and component smry'!P$12:P$38,'Waste tons and component smry'!$C$12:$C$38,$B24) -> 0 | F24: =SUMIFS('Waste tons and component smry'!Q$12:Q$38,'Waste tons and component smry'!$C$12:$C$38,$B24) -> 0 | G24: =SUMIFS('Waste tons and component smry'!R$12:R$38,'Waste tons and component smry'!$C$12:$C$38,$B24) -> 0 | H24: =SUMIFS('Waste tons and component smry'!S$12:S$38,'Waste tons and component smry'!$C$12:$C$38,$B24) -> 0 | I24: =SUMIFS('Waste tons and component smry'!T$12:T$38,'Waste tons and component smry'!$C$12:$C$38,$B24) -> 0 | J24: =SUMIFS('Waste tons and component smry'!U$12:U$38,'Waste tons and component smry'!$C$12:$C$38,$B24) -> 0 | K24: =SUMIFS('Waste tons and component smry'!V$12:V$38,'Waste tons and component smry'!$C$12:$C$38,$B24) -> 0 | L24: =SUMIFS('Waste tons and component smry'!W$12:W$38,'Waste tons and component smry'!$C$12:$C$38,$B24) -> 0 | M24: =SUMIFS('Waste tons and component smry'!X$12:X$38,'Waste tons and component smry'!$C$12:$C$38,$B24) -> 0 | N24: =SUMIFS('Waste tons and component smry'!Y$12:Y$38,'Waste tons and component smry'!$C$12:$C$38,$B24) -> 0 | O24: =SUMIFS('Waste tons and component smry'!Z$12:Z$38,'Waste tons and component smry'!$C$12:$C$38,$B24) -> 0 | P24: =SUMIFS('Waste tons and component smry'!AA$12:AA$38,'Waste tons and component smry'!$C$12:$C$38,$B24) -> 0
A26: Frozen | B26: =Frozen -> Frozen Cream | D26: =SUMIFS('Waste tons and component smry'!$H$12:$H$38,'Waste tons and component smry'!$C$12:$C$38,B26) -> 0 | E26: =SUMIFS('Waste tons and component smry'!P$12:P$38,'Waste tons and component smry'!$C$12:$C$38,$B26) -> 0 | F26: =SUMIFS('Waste tons and component smry'!Q$12:Q$38,'Waste tons and component smry'!$C$12:$C$38,$B26) -> 0 | G26: =SUMIFS('Waste tons and component smry'!R$12:R$38,'Waste tons and component smry'!$C$12:$C$38,$B26) -> 0 | H26: =SUMIFS('Waste tons and component smry'!S$12:S$38,'Waste tons and component smry'!$C$12:$C$38,$B26) -> 0 | I26: =SUMIFS('Waste tons and component smry'!T$12:T$38,'Waste tons and component smry'!$C$12:$C$38,$B26) -> 0 | J26: =SUMIFS('Waste tons and component smry'!U$12:U$38,'Waste tons and component smry'!$C$12:$C$38,$B26) -> 0 | K26: =SUMIFS('Waste tons and component smry'!V$12:V$38,'Waste tons and component smry'!$C$12:$C$38,$B26) -> 0 | L26: =SUMIFS('Waste tons and component smry'!W$12:W$38,'Waste tons and component smry'!$C$12:$C$38,$B26) -> 0 | M26: =SUMIFS('Waste tons and component smry'!X$12:X$38,'Waste tons and component smry'!$C$12:$C$38,$B26) -> 0 | N26: =SUMIFS('Waste tons and component smry'!Y$12:Y$38,'Waste tons and component smry'!$C$12:$C$38,$B26) -> 0 | O26: =SUMIFS('Waste tons and component smry'!Z$12:Z$38,'Waste tons and component smry'!$C$12:$C$38,$B26) -> 0 | P26: =SUMIFS('Waste tons and component smry'!AA$12:AA$38,'Waste tons and component smry'!$C$12:$C$38,$B26) -> 0
B27: Frozen Yoghurt | D27: =SUMIFS('Waste tons and component smry'!$H$12:$H$38,'Waste tons and component smry'!$C$12:$C$38,B27) -> 0 | E27: =SUMIFS('Waste tons and component smry'!P$12:P$38,'Waste tons and component smry'!$C$12:$C$38,$B27) -> 0 | F27: =SUMIFS('Waste tons and component smry'!Q$12:Q$38,'Waste tons and component smry'!$C$12:$C$38,$B27) -> 0 | G27: =SUMIFS('Waste tons and component smry'!R$12:R$38,'Waste tons and component smry'!$C$12:$C$38,$B27) -> 0 | H27: =SUMIFS('Waste tons and component smry'!S$12:S$38,'Waste tons and component smry'!$C$12:$C$38,$B27) -> 0 | I27: =SUMIFS('Waste tons and component smry'!T$12:T$38,'Waste tons and component smry'!$C$12:$C$38,$B27) -> 0 | J27: =SUMIFS('Waste tons and component smry'!U$12:U$38,'Waste tons and component smry'!$C$12:$C$38,$B27) -> 0 | K27: =SUMIFS('Waste tons and component smry'!V$12:V$38,'Waste tons and component smry'!$C$12:$C$38,$B27) -> 0 | L27: =SUMIFS('Waste tons and component smry'!W$12:W$38,'Waste tons and component smry'!$C$12:$C$38,$B27) -> 0 | M27: =SUMIFS('Waste tons and component smry'!X$12:X$38,'Waste tons and component smry'!$C$12:$C$38,$B27) -> 0 | N27: =SUMIFS('Waste tons and component smry'!Y$12:Y$38,'Waste tons and component smry'!$C$12:$C$38,$B27) -> 0 | O27: =SUMIFS('Waste tons and component smry'!Z$12:Z$38,'Waste tons and component smry'!$C$12:$C$38,$B27) -> 0 | P27: =SUMIFS('Waste tons and component smry'!AA$12:AA$38,'Waste tons and component smry'!$C$12:$C$38,$B27) -> 0
B28: Icecream | D28: =SUMIFS('Waste tons and component smry'!$H$12:$H$38,'Waste tons and component smry'!$C$12:$C$38,B28) -> 0 | E28: =SUMIFS('Waste tons and component smry'!P$12:P$38,'Waste tons and component smry'!$C$12:$C$38,$B28) -> 0 | F28: =SUMIFS('Waste tons and component smry'!Q$12:Q$38,'Waste tons and component smry'!$C$12:$C$38,$B28) -> 0 | G28: =SUMIFS('Waste tons and component smry'!R$12:R$38,'Waste tons and component smry'!$C$12:$C$38,$B28) -> 0 | H28: =SUMIFS('Waste tons and component smry'!S$12:S$38,'Waste tons and component smry'!$C$12:$C$38,$B28) -> 0 | I28: =SUMIFS('Waste tons and component smry'!T$12:T$38,'Waste tons and component smry'!$C$12:$C$38,$B28) -> 0 | J28: =SUMIFS('Waste tons and component smry'!U$12:U$38,'Waste tons and component smry'!$C$12:$C$38,$B28) -> 0 | K28: =SUMIFS('Waste tons and component smry'!V$12:V$38,'Waste tons and component smry'!$C$12:$C$38,$B28) -> 0 | L28: =SUMIFS('Waste tons and component smry'!W$12:W$38,'Waste tons and component smry'!$C$12:$C$38,$B28) -> 0 | M28: =SUMIFS('Waste tons and component smry'!X$12:X$38,'Waste tons and component smry'!$C$12:$C$38,$B28) -> 0 | N28: =SUMIFS('Waste tons and component smry'!Y$12:Y$38,'Waste tons and component smry'!$C$12:$C$38,$B28) -> 0 | O28: =SUMIFS('Waste tons and component smry'!Z$12:Z$38,'Waste tons and component smry'!$C$12:$C$38,$B28) -> 0 | P28: =SUMIFS('Waste tons and component smry'!AA$12:AA$38,'Waste tons and component smry'!$C$12:$C$38,$B28) -> 0
A30: Powders | B30: =Powders -> Skim Milk Powder | D30: =SUMIFS('Waste tons and component smry'!$H$12:$H$38,'Waste tons and component smry'!$C$12:$C$38,B30) -> 0 | E30: =SUMIFS('Waste tons and component smry'!P$12:P$38,'Waste tons and component smry'!$C$12:$C$38,$B30) -> 0 | F30: =SUMIFS('Waste tons and component smry'!Q$12:Q$38,'Waste tons and component smry'!$C$12:$C$38,$B30) -> 0 | G30: =SUMIFS('Waste tons and component smry'!R$12:R$38,'Waste tons and component smry'!$C$12:$C$38,$B30) -> 0 | H30: =SUMIFS('Waste tons and component smry'!S$12:S$38,'Waste tons and component smry'!$C$12:$C$38,$B30) -> 0 | I30: =SUMIFS('Waste tons and component smry'!T$12:T$38,'Waste tons and component smry'!$C$12:$C$38,$B30) -> 0 | J30: =SUMIFS('Waste tons and component smry'!U$12:U$38,'Waste tons and component smry'!$C$12:$C$38,$B30) -> 0 | K30: =SUMIFS('Waste tons and component smry'!V$12:V$38,'Waste tons and component smry'!$C$12:$C$38,$B30) -> 0 | L30: =SUMIFS('Waste tons and component smry'!W$12:W$38,'Waste tons and component smry'!$C$12:$C$38,$B30) -> 0 | M30: =SUMIFS('Waste tons and component smry'!X$12:X$38,'Waste tons and component smry'!$C$12:$C$38,$B30) -> 0 | N30: =SUMIFS('Waste tons and component smry'!Y$12:Y$38,'Waste tons and component smry'!$C$12:$C$38,$B30) -> 0 | O30: =SUMIFS('Waste tons and component smry'!Z$12:Z$38,'Waste tons and component smry'!$C$12:$C$38,$B30) -> 0 | P30: =SUMIFS('Waste tons and component smry'!AA$12:AA$38,'Waste tons and component smry'!$C$12:$C$38,$B30) -> 0
B31: Whole Milk Powder | D31: =SUMIFS('Waste tons and component smry'!$H$12:$H$38,'Waste tons and component smry'!$C$12:$C$38,B31) -> 0 | E31: =SUMIFS('Waste tons and component smry'!P$12:P$38,'Waste tons and component smry'!$C$12:$C$38,$B31) -> 0 | F31: =SUMIFS('Waste tons and component smry'!Q$12:Q$38,'Waste tons and component smry'!$C$12:$C$38,$B31) -> 0 | G31: =SUMIFS('Waste tons and component smry'!R$12:R$38,'Waste tons and component smry'!$C$12:$C$38,$B31) -> 0 | H31: =SUMIFS('Waste tons and component smry'!S$12:S$38,'Waste tons and component smry'!$C$12:$C$38,$B31) -> 0 | I31: =SUMIFS('Waste tons and component smry'!T$12:T$38,'Waste tons and component smry'!$C$12:$C$38,$B31) -> 0 | J31: =SUMIFS('Waste tons and component smry'!U$12:U$38,'Waste tons and component smry'!$C$12:$C$38,$B31) -> 0 | K31: =SUMIFS('Waste tons and component smry'!V$12:V$38,'Waste tons and component smry'!$C$12:$C$38,$B31) -> 0 | L31: =SUMIFS('Waste tons and component smry'!W$12:W$38,'Waste tons and component smry'!$C$12:$C$38,$B31) -> 0 | M31: =SUMIFS('Waste tons and component smry'!X$12:X$38,'Waste tons and component smry'!$C$12:$C$38,$B31) -> 0 | N31: =SUMIFS('Waste tons and component smry'!Y$12:Y$38,'Waste tons and component smry'!$C$12:$C$38,$B31) -> 0 | O31: =SUMIFS('Waste tons and component smry'!Z$12:Z$38,'Waste tons and component smry'!$C$12:$C$38,$B31) -> 0 | P31: =SUMIFS('Waste tons and component smry'!AA$12:AA$38,'Waste tons and component smry'!$C$12:$C$38,$B31) -> 0
B32: Whey Powder | D32: =SUMIFS('Waste tons and component smry'!$H$12:$H$38,'Waste tons and component smry'!$C$12:$C$38,B32) -> 0 | E32: =SUMIFS('Waste tons and component smry'!P$12:P$38,'Waste tons and component smry'!$C$12:$C$38,$B32) -> 0 | F32: =SUMIFS('Waste tons and component smry'!Q$12:Q$38,'Waste tons and component smry'!$C$12:$C$38,$B32) -> 0 | G32: =SUMIFS('Waste tons and component smry'!R$12:R$38,'Waste tons and component smry'!$C$12:$C$38,$B32) -> 0 | H32: =SUMIFS('Waste tons and component smry'!S$12:S$38,'Waste tons and component smry'!$C$12:$C$38,$B32) -> 0 | I32: =SUMIFS('Waste tons and component smry'!T$12:T$38,'Waste tons and component smry'!$C$12:$C$38,$B32) -> 0 | J32: =SUMIFS('Waste tons and component smry'!U$12:U$38,'Waste tons and component smry'!$C$12:$C$38,$B32) -> 0 | K32: =SUMIFS('Waste tons and component smry'!V$12:V$38,'Waste tons and component smry'!$C$12:$C$38,$B32) -> 0 | L32: =SUMIFS('Waste tons and component smry'!W$12:W$38,'Waste tons and component smry'!$C$12:$C$38,$B32) -> 0 | M32: =SUMIFS('Waste tons and component smry'!X$12:X$38,'Waste tons and component smry'!$C$12:$C$38,$B32) -> 0 | N32: =SUMIFS('Waste tons and component smry'!Y$12:Y$38,'Waste tons and component smry'!$C$12:$C$38,$B32) -> 0 | O32: =SUMIFS('Waste tons and component smry'!Z$12:Z$38,'Waste tons and component smry'!$C$12:$C$38,$B32) -> 0 | P32: =SUMIFS('Waste tons and component smry'!AA$12:AA$38,'Waste tons and component smry'!$C$12:$C$38,$B32) -> 0
B33: WPI Powder | D33: =SUMIFS('Waste tons and component smry'!$H$12:$H$38,'Waste tons and component smry'!$C$12:$C$38,B33) -> 0 | E33: =SUMIFS('Waste tons and component smry'!P$12:P$38,'Waste tons and component smry'!$C$12:$C$38,$B33) -> 0 | F33: =SUMIFS('Waste tons and component smry'!Q$12:Q$38,'Waste tons and component smry'!$C$12:$C$38,$B33) -> 0 | G33: =SUMIFS('Waste tons and component smry'!R$12:R$38,'Waste tons and component smry'!$C$12:$C$38,$B33) -> 0 | H33: =SUMIFS('Waste tons and component smry'!S$12:S$38,'Waste tons and component smry'!$C$12:$C$38,$B33) -> 0 | I33: =SUMIFS('Waste tons and component smry'!T$12:T$38,'Waste tons and component smry'!$C$12:$C$38,$B33) -> 0 | J33: =SUMIFS('Waste tons and component smry'!U$12:U$38,'Waste tons and component smry'!$C$12:$C$38,$B33) -> 0 | K33: =SUMIFS('Waste tons and component smry'!V$12:V$38,'Waste tons and component smry'!$C$12:$C$38,$B33) -> 0 | L33: =SUMIFS('Waste tons and component smry'!W$12:W$38,'Waste tons and component smry'!$C$12:$C$38,$B33) -> 0 | M33: =SUMIFS('Waste tons and component smry'!X$12:X$38,'Waste tons and component smry'!$C$12:$C$38,$B33) -> 0 | N33: =SUMIFS('Waste tons and component smry'!Y$12:Y$38,'Waste tons and component smry'!$C$12:$C$38,$B33) -> 0 | O33: =SUMIFS('Waste tons and component smry'!Z$12:Z$38,'Waste tons and component smry'!$C$12:$C$38,$B33) -> 0 | P33: =SUMIFS('Waste tons and component smry'!AA$12:AA$38,'Waste tons and component smry'!$C$12:$C$38,$B33) -> 0
B34: Nutritional/Protein Powders | D34: =SUMIFS('Waste tons and component smry'!$H$12:$H$38,'Waste tons and component smry'!$C$12:$C$38,B34) -> 0 | E34: =SUMIFS('Waste tons and component smry'!P$12:P$38,'Waste tons and component smry'!$C$12:$C$38,$B34) -> 0 | F34: =SUMIFS('Waste tons and component smry'!Q$12:Q$38,'Waste tons and component smry'!$C$12:$C$38,$B34) -> 0 | G34: =SUMIFS('Waste tons and component smry'!R$12:R$38,'Waste tons and component smry'!$C$12:$C$38,$B34) -> 0 | H34: =SUMIFS('Waste tons and component smry'!S$12:S$38,'Waste tons and component smry'!$C$12:$C$38,$B34) -> 0 | I34: =SUMIFS('Waste tons and component smry'!T$12:T$38,'Waste tons and component smry'!$C$12:$C$38,$B34) -> 0 | J34: =SUMIFS('Waste tons and component smry'!U$12:U$38,'Waste tons and component smry'!$C$12:$C$38,$B34) -> 0 | K34: =SUMIFS('Waste tons and component smry'!V$12:V$38,'Waste tons and component smry'!$C$12:$C$38,$B34) -> 0 | L34: =SUMIFS('Waste tons and component smry'!W$12:W$38,'Waste tons and component smry'!$C$12:$C$38,$B34) -> 0 | M34: =SUMIFS('Waste tons and component smry'!X$12:X$38,'Waste tons and component smry'!$C$12:$C$38,$B34) -> 0 | N34: =SUMIFS('Waste tons and component smry'!Y$12:Y$38,'Waste tons and component smry'!$C$12:$C$38,$B34) -> 0 | O34: =SUMIFS('Waste tons and component smry'!Z$12:Z$38,'Waste tons and component smry'!$C$12:$C$38,$B34) -> 0 | P34: =SUMIFS('Waste tons and component smry'!AA$12:AA$38,'Waste tons and component smry'!$C$12:$C$38,$B34) -> 0
B35: Infant Formula | D35: =SUMIFS('Waste tons and component smry'!$H$12:$H$38,'Waste tons and component smry'!$C$12:$C$38,B35) -> 0 | E35: =SUMIFS('Waste tons and component smry'!P$12:P$38,'Waste tons and component smry'!$C$12:$C$38,$B35) -> 0 | F35: =SUMIFS('Waste tons and component smry'!Q$12:Q$38,'Waste tons and component smry'!$C$12:$C$38,$B35) -> 0 | G35: =SUMIFS('Waste tons and component smry'!R$12:R$38,'Waste tons and component smry'!$C$12:$C$38,$B35) -> 0 | H35: =SUMIFS('Waste tons and component smry'!S$12:S$38,'Waste tons and component smry'!$C$12:$C$38,$B35) -> 0 | I35: =SUMIFS('Waste tons and component smry'!T$12:T$38,'Waste tons and component smry'!$C$12:$C$38,$B35) -> 0 | J35: =SUMIFS('Waste tons and component smry'!U$12:U$38,'Waste tons and component smry'!$C$12:$C$38,$B35) -> 0 | K35: =SUMIFS('Waste tons and component smry'!V$12:V$38,'Waste tons and component smry'!$C$12:$C$38,$B35) -> 0 | L35: =SUMIFS('Waste tons and component smry'!W$12:W$38,'Waste tons and component smry'!$C$12:$C$38,$B35) -> 0 | M35: =SUMIFS('Waste tons and component smry'!X$12:X$38,'Waste tons and component smry'!$C$12:$C$38,$B35) -> 0 | N35: =SUMIFS('Waste tons and component smry'!Y$12:Y$38,'Waste tons and component smry'!$C$12:$C$38,$B35) -> 0 | O35: =SUMIFS('Waste tons and component smry'!Z$12:Z$38,'Waste tons and component smry'!$C$12:$C$38,$B35) -> 0 | P35: =SUMIFS('Waste tons and component smry'!AA$12:AA$38,'Waste tons and component smry'!$C$12:$C$38,$B35) -> 0
A37: By Products | B37: =By_products -> By-products - Lactose Concentrate | D37: =SUMIFS('Waste tons and component smry'!$H$12:$H$38,'Waste tons and component smry'!$D$12:$D$38,B37) -> 0 | E37: =SUMIFS('Waste tons and component smry'!P$12:P$38,'Waste tons and component smry'!$D$12:$D$38,$B37) -> 0 | F37: =SUMIFS('Waste tons and component smry'!Q$12:Q$38,'Waste tons and component smry'!$D$12:$D$38,$B37) -> 0 | G37: =SUMIFS('Waste tons and component smry'!R$12:R$38,'Waste tons and component smry'!$D$12:$D$38,$B37) -> 0 | H37: =SUMIFS('Waste tons and component smry'!S$12:S$38,'Waste tons and component smry'!$C$12:$C$38,$B37) -> 0 | I37: =SUMIFS('Waste tons and component smry'!T$12:T$38,'Waste tons and component smry'!$D$12:$D$38,$B37) -> 0 | J37: =SUMIFS('Waste tons and component smry'!U$12:U$38,'Waste tons and component smry'!$D$12:$D$38,$B37) -> 0 | K37: =SUMIFS('Waste tons and component smry'!V$12:V$38,'Waste tons and component smry'!$D$12:$D$38,$B37) -> 0 | L37: =SUMIFS('Waste tons and component smry'!W$12:W$38,'Waste tons and component smry'!$C$12:$C$38,$B37) -> 0 | M37: =SUMIFS('Waste tons and component smry'!X$12:X$38,'Waste tons and component smry'!$D$12:$D$38,$B37) -> 0 | N37: =SUMIFS('Waste tons and component smry'!Y$12:Y$38,'Waste tons and component smry'!$D$12:$D$38,$B37) -> 0 | O37: =SUMIFS('Waste tons and component smry'!Z$12:Z$38,'Waste tons and component smry'!$C$12:$C$38,$B37) -> 0 | P37: =SUMIFS('Waste tons and component smry'!AA$12:AA$38,'Waste tons and component smry'!$D$12:$D$38,$B37) -> 0
B38: By-products - Mother Liquor | D38: =SUMIFS('Waste tons and component smry'!$H$12:$H$38,'Waste tons and component smry'!$D$12:$D$38,B38) -> 0 | E38: =SUMIFS('Waste tons and component smry'!P$12:P$38,'Waste tons and component smry'!$D$12:$D$38,$B38) -> 0 | F38: =SUMIFS('Waste tons and component smry'!Q$12:Q$38,'Waste tons and component smry'!$D$12:$D$38,$B38) -> 0 | G38: =SUMIFS('Waste tons and component smry'!R$12:R$38,'Waste tons and component smry'!$D$12:$D$38,$B38) -> 0 | H38: =SUMIFS('Waste tons and component smry'!S$12:S$38,'Waste tons and component smry'!$C$12:$C$38,$B38) -> 0 | I38: =SUMIFS('Waste tons and component smry'!T$12:T$38,'Waste tons and component smry'!$D$12:$D$38,$B38) -> 0 | J38: =SUMIFS('Waste tons and component smry'!U$12:U$38,'Waste tons and component smry'!$D$12:$D$38,$B38) -> 0 | K38: =SUMIFS('Waste tons and component smry'!V$12:V$38,'Waste tons and component smry'!$D$12:$D$38,$B38) -> 0 | L38: =SUMIFS('Waste tons and component smry'!W$12:W$38,'Waste tons and component smry'!$C$12:$C$38,$B38) -> 0 | M38: =SUMIFS('Waste tons and component smry'!X$12:X$38,'Waste tons and component smry'!$D$12:$D$38,$B38) -> 0 | N38: =SUMIFS('Waste tons and component smry'!Y$12:Y$38,'Waste tons and component smry'!$D$12:$D$38,$B38) -> 0 | O38: =SUMIFS('Waste tons and component smry'!Z$12:Z$38,'Waste tons and component smry'!$C$12:$C$38,$B38) -> 0 | P38: =SUMIFS('Waste tons and component smry'!AA$12:AA$38,'Waste tons and component smry'!$D$12:$D$38,$B38) -> 0
B39: By-products - Acid whey | D39: =SUMIFS('Waste tons and component smry'!$H$12:$H$38,'Waste tons and component smry'!$D$12:$D$38,B39) -> 0 | E39: =SUMIFS('Waste tons and component smry'!P$12:P$38,'Waste tons and component smry'!$D$12:$D$38,$B39) -> 0 | F39: =SUMIFS('Waste tons and component smry'!Q$12:Q$38,'Waste tons and component smry'!$D$12:$D$38,$B39) -> 0 | G39: =SUMIFS('Waste tons and component smry'!R$12:R$38,'Waste tons and component smry'!$D$12:$D$38,$B39) -> 0 | H39: =SUMIFS('Waste tons and component smry'!S$12:S$38,'Waste tons and component smry'!$C$12:$C$38,$B39) -> 0 | I39: =SUMIFS('Waste tons and component smry'!T$12:T$38,'Waste tons and component smry'!$D$12:$D$38,$B39) -> 0 | J39: =SUMIFS('Waste tons and component smry'!U$12:U$38,'Waste tons and component smry'!$D$12:$D$38,$B39) -> 0 | K39: =SUMIFS('Waste tons and component smry'!V$12:V$38,'Waste tons and component smry'!$D$12:$D$38,$B39) -> 0 | L39: =SUMIFS('Waste tons and component smry'!W$12:W$38,'Waste tons and component smry'!$C$12:$C$38,$B39) -> 0 | M39: =SUMIFS('Waste tons and component smry'!X$12:X$38,'Waste tons and component smry'!$D$12:$D$38,$B39) -> 0 | N39: =SUMIFS('Waste tons and component smry'!Y$12:Y$38,'Waste tons and component smry'!$D$12:$D$38,$B39) -> 0 | O39: =SUMIFS('Waste tons and component smry'!Z$12:Z$38,'Waste tons and component smry'!$C$12:$C$38,$B39) -> 0 | P39: =SUMIFS('Waste tons and component smry'!AA$12:AA$38,'Waste tons and component smry'!$D$12:$D$38,$B39) -> 0
B40: By-products - Salty Whey | D40: =SUMIFS('Waste tons and component smry'!$H$12:$H$38,'Waste tons and component smry'!$D$12:$D$38,B40) -> 0 | E40: =SUMIFS('Waste tons and component smry'!P$12:P$38,'Waste tons and component smry'!$D$12:$D$38,$B40) -> 0 | F40: =SUMIFS('Waste tons and component smry'!Q$12:Q$38,'Waste tons and component smry'!$D$12:$D$38,$B40) -> 0 | G40: =SUMIFS('Waste tons and component smry'!R$12:R$38,'Waste tons and component smry'!$D$12:$D$38,$B40) -> 0 | H40: =SUMIFS('Waste tons and component smry'!S$12:S$38,'Waste tons and component smry'!$C$12:$C$38,$B40) -> 0 | I40: =SUMIFS('Waste tons and component smry'!T$12:T$38,'Waste tons and component smry'!$D$12:$D$38,$B40) -> 0 | J40: =SUMIFS('Waste tons and component smry'!U$12:U$38,'Waste tons and component smry'!$D$12:$D$38,$B40) -> 0 | K40: =SUMIFS('Waste tons and component smry'!V$12:V$38,'Waste tons and component smry'!$D$12:$D$38,$B40) -> 0 | L40: =SUMIFS('Waste tons and component smry'!W$12:W$38,'Waste tons and component smry'!$C$12:$C$38,$B40) -> 0 | M40: =SUMIFS('Waste tons and component smry'!X$12:X$38,'Waste tons and component smry'!$D$12:$D$38,$B40) -> 0 | N40: =SUMIFS('Waste tons and component smry'!Y$12:Y$38,'Waste tons and component smry'!$D$12:$D$38,$B40) -> 0 | O40: =SUMIFS('Waste tons and component smry'!Z$12:Z$38,'Waste tons and component smry'!$C$12:$C$38,$B40) -> 0 | P40: =SUMIFS('Waste tons and component smry'!AA$12:AA$38,'Waste tons and component smry'!$D$12:$D$38,$B40) -> 0
A42: DAF Sludge | B42: =DAF_Sludge -> DAF Sludge | D42: =SUMIFS('Waste tons and component smry'!$H$12:$H$38,'Waste tons and component smry'!$D$12:$D$38,B42) -> 0 | E42: =SUMIFS('Waste tons and component smry'!P$12:P$38,'Waste tons and component smry'!$D$12:$D$38,$B42) -> 0 | F42: =SUMIFS('Waste tons and component smry'!Q$12:Q$38,'Waste tons and component smry'!$D$12:$D$38,$B42) -> 0 | G42: =SUMIFS('Waste tons and component smry'!R$12:R$38,'Waste tons and component smry'!$D$12:$D$38,$B42) -> 0 | H42: =SUMIFS('Waste tons and component smry'!S$12:S$38,'Waste tons and component smry'!$C$12:$C$38,$B42) -> 0 | I42: =SUMIFS('Waste tons and component smry'!T$12:T$38,'Waste tons and component smry'!$D$12:$D$38,$B42) -> 0 | J42: =SUMIFS('Waste tons and component smry'!U$12:U$38,'Waste tons and component smry'!$D$12:$D$38,$B42) -> 0 | K42: =SUMIFS('Waste tons and component smry'!V$12:V$38,'Waste tons and component smry'!$D$12:$D$38,$B42) -> 0 | L42: =SUMIFS('Waste tons and component smry'!W$12:W$38,'Waste tons and component smry'!$C$12:$C$38,$B42) -> 0 | M42: =SUMIFS('Waste tons and component smry'!X$12:X$38,'Waste tons and component smry'!$D$12:$D$38,$B42) -> 0 | N42: =SUMIFS('Waste tons and component smry'!Y$12:Y$38,'Waste tons and component smry'!$D$12:$D$38,$B42) -> 0 | O42: =SUMIFS('Waste tons and component smry'!Z$12:Z$38,'Waste tons and component smry'!$C$12:$C$38,$B42) -> 0 | P42: =SUMIFS('Waste tons and component smry'!AA$12:AA$38,'Waste tons and component smry'!$D$12:$D$38,$B42) -> 0
A49: User Defined Products
D50: Annualised | E50: Component | J50: Milk equivalence
D51: Tonnage
A52: Product category | B52: Product type | C52: Waste Stream | E52: P | F52: F | G52: Lactose | H52: MSNF | I52: Total Solids | J52: Protein | K52: Casein | L52: Whey Protein | M52: Fat | N52: Lactose | O52: MSNF | P52: Total Solids
D53: t/yr | E53: t/yr | F53: t/yr | G53: t/yr | H53: t/yr | I53: t/yr | J53: t/yr | K53: t/yr | L53: t/yr | M53: t/yr | N53: t/yr | O53: t/yr | P53: t/yr
A54: Other | C54: =Waste_Stream -> Finished product - Packaged | D54: =SUMIFS('Waste tons and component smry'!$H$48:$H$61,'Waste tons and component smry'!$D$48:$D$61,C54) -> 0 | E54: =SUMIFS('Waste tons and component smry'!P$48:P$61,'Waste tons and component smry'!$D$48:$D$61,$C54) -> 0 | F54: =SUMIFS('Waste tons and component smry'!Q$48:Q$61,'Waste tons and component smry'!$D$48:$D$61,$C54) -> 0 | G54: =SUMIFS('Waste tons and component smry'!R$48:R$61,'Waste tons and component smry'!$D$48:$D$61,$C54) -> 0 | H54: =SUMIFS('Waste tons and component smry'!S$48:S$61,'Waste tons and component smry'!$D$48:$D$61,$C54) -> 0 | I54: =SUMIFS('Waste tons and component smry'!T$48:T$61,'Waste tons and component smry'!$D$48:$D$61,$C54) -> 0 | J54: =SUMIFS('Waste tons and component smry'!U$48:U$61,'Waste tons and component smry'!$D$48:$D$61,$C54) -> 0 | K54: =SUMIFS('Waste tons and component smry'!V$48:V$61,'Waste tons and component smry'!$D$48:$D$61,$C54) -> 0 | L54: =SUMIFS('Waste tons and component smry'!W$48:W$61,'Waste tons and component smry'!$D$48:$D$61,$C54) -> 0 | M54: =SUMIFS('Waste tons and component smry'!X$48:X$61,'Waste tons and component smry'!$D$48:$D$61,$C54) -> 0 | N54: =SUMIFS('Waste tons and component smry'!Y$48:Y$61,'Waste tons and component smry'!$D$48:$D$61,$C54) -> 0 | O54: =SUMIFS('Waste tons and component smry'!Z$48:Z$61,'Waste tons and component smry'!$D$48:$D$61,$C54) -> 0 | P54: =SUMIFS('Waste tons and component smry'!AA$48:AA$61,'Waste tons and component smry'!$D$48:$D$61,$C54) -> 0 | R54: Only products in other categories that are not defined
C55: Finished product - unpackaged | D55: =SUMIFS('Waste tons and component smry'!$H$48:$H$61,'Waste tons and component smry'!$D$48:$D$61,C55) -> 0 | E55: =SUMIFS('Waste tons and component smry'!P$48:P$61,'Waste tons and component smry'!$D$48:$D$61,$C55) -> 0 | F55: =SUMIFS('Waste tons and component smry'!Q$48:Q$61,'Waste tons and component smry'!$D$48:$D$61,$C55) -> 0 | G55: =SUMIFS('Waste tons and component smry'!R$48:R$61,'Waste tons and component smry'!$D$48:$D$61,$C55) -> 0 | H55: =SUMIFS('Waste tons and component smry'!S$48:S$61,'Waste tons and component smry'!$D$48:$D$61,$C55) -> 0 | I55: =SUMIFS('Waste tons and component smry'!T$48:T$61,'Waste tons and component smry'!$D$48:$D$61,$C55) -> 0 | J55: =SUMIFS('Waste tons and component smry'!U$48:U$61,'Waste tons and component smry'!$D$48:$D$61,$C55) -> 0 | K55: =SUMIFS('Waste tons and component smry'!V$48:V$61,'Waste tons and component smry'!$D$48:$D$61,$C55) -> 0 | L55: =SUMIFS('Waste tons and component smry'!W$48:W$61,'Waste tons and component smry'!$D$48:$D$61,$C55) -> 0 | M55: =SUMIFS('Waste tons and component smry'!X$48:X$61,'Waste tons and component smry'!$D$48:$D$61,$C55) -> 0 | N55: =SUMIFS('Waste tons and component smry'!Y$48:Y$61,'Waste tons and component smry'!$D$48:$D$61,$C55) -> 0 | O55: =SUMIFS('Waste tons and component smry'!Z$48:Z$61,'Waste tons and component smry'!$D$48:$D$61,$C55) -> 0 | P55: =SUMIFS('Waste tons and component smry'!AA$48:AA$61,'Waste tons and component smry'!$D$48:$D$61,$C55) -> 0
C56: Unfinished product - Unpackaged | D56: =SUMIFS('Waste tons and component smry'!$H$48:$H$61,'Waste tons and component smry'!$D$48:$D$61,C56) -> 0 | E56: =SUMIFS('Waste tons and component smry'!P$48:P$61,'Waste tons and component smry'!$D$48:$D$61,$C56) -> 0 | F56: =SUMIFS('Waste tons and component smry'!Q$48:Q$61,'Waste tons and component smry'!$D$48:$D$61,$C56) -> 0 | G56: =SUMIFS('Waste tons and component smry'!R$48:R$61,'Waste tons and component smry'!$D$48:$D$61,$C56) -> 0 | H56: =SUMIFS('Waste tons and component smry'!S$48:S$61,'Waste tons and component smry'!$D$48:$D$61,$C56) -> 0 | I56: =SUMIFS('Waste tons and component smry'!T$48:T$61,'Waste tons and component smry'!$D$48:$D$61,$C56) -> 0 | J56: =SUMIFS('Waste tons and component smry'!U$48:U$61,'Waste tons and component smry'!$D$48:$D$61,$C56) -> 0 | K56: =SUMIFS('Waste tons and component smry'!V$48:V$61,'Waste tons and component smry'!$D$48:$D$61,$C56) -> 0 | L56: =SUMIFS('Waste tons and component smry'!W$48:W$61,'Waste tons and component smry'!$D$48:$D$61,$C56) -> 0 | M56: =SUMIFS('Waste tons and component smry'!X$48:X$61,'Waste tons and component smry'!$D$48:$D$61,$C56) -> 0 | N56: =SUMIFS('Waste tons and component smry'!Y$48:Y$61,'Waste tons and component smry'!$D$48:$D$61,$C56) -> 0 | O56: =SUMIFS('Waste tons and component smry'!Z$48:Z$61,'Waste tons and component smry'!$D$48:$D$61,$C56) -> 0 | P56: =SUMIFS('Waste tons and component smry'!AA$48:AA$61,'Waste tons and component smry'!$D$48:$D$61,$C56) -> 0
C57: Unfinished product - intermediates | D57: =SUMIFS('Waste tons and component smry'!$H$48:$H$61,'Waste tons and component smry'!$D$48:$D$61,C57) -> 0 | E57: =SUMIFS('Waste tons and component smry'!P$48:P$61,'Waste tons and component smry'!$D$48:$D$61,$C57) -> 0 | F57: =SUMIFS('Waste tons and component smry'!Q$48:Q$61,'Waste tons and component smry'!$D$48:$D$61,$C57) -> 0 | G57: =SUMIFS('Waste tons and component smry'!R$48:R$61,'Waste tons and component smry'!$D$48:$D$61,$C57) -> 0 | H57: =SUMIFS('Waste tons and component smry'!S$48:S$61,'Waste tons and component smry'!$D$48:$D$61,$C57) -> 0 | I57: =SUMIFS('Waste tons and component smry'!T$48:T$61,'Waste tons and component smry'!$D$48:$D$61,$C57) -> 0 | J57: =SUMIFS('Waste tons and component smry'!U$48:U$61,'Waste tons and component smry'!$D$48:$D$61,$C57) -> 0 | K57: =SUMIFS('Waste tons and component smry'!V$48:V$61,'Waste tons and component smry'!$D$48:$D$61,$C57) -> 0 | L57: =SUMIFS('Waste tons and component smry'!W$48:W$61,'Waste tons and component smry'!$D$48:$D$61,$C57) -> 0 | M57: =SUMIFS('Waste tons and component smry'!X$48:X$61,'Waste tons and component smry'!$D$48:$D$61,$C57) -> 0 | N57: =SUMIFS('Waste tons and component smry'!Y$48:Y$61,'Waste tons and component smry'!$D$48:$D$61,$C57) -> 0 | O57: =SUMIFS('Waste tons and component smry'!Z$48:Z$61,'Waste tons and component smry'!$D$48:$D$61,$C57) -> 0 | P57: =SUMIFS('Waste tons and component smry'!AA$48:AA$61,'Waste tons and component smry'!$D$48:$D$61,$C57) -> 0
C58: Unfinished product - Raw | D58: =SUMIFS('Waste tons and component smry'!$H$48:$H$61,'Waste tons and component smry'!$D$48:$D$61,C58) -> 0 | E58: =SUMIFS('Waste tons and component smry'!P$48:P$61,'Waste tons and component smry'!$D$48:$D$61,$C58) -> 0 | F58: =SUMIFS('Waste tons and component smry'!Q$48:Q$61,'Waste tons and component smry'!$D$48:$D$61,$C58) -> 0 | G58: =SUMIFS('Waste tons and component smry'!R$48:R$61,'Waste tons and component smry'!$D$48:$D$61,$C58) -> 0 | H58: =SUMIFS('Waste tons and component smry'!S$48:S$61,'Waste tons and component smry'!$D$48:$D$61,$C58) -> 0 | I58: =SUMIFS('Waste tons and component smry'!T$48:T$61,'Waste tons and component smry'!$D$48:$D$61,$C58) -> 0 | J58: =SUMIFS('Waste tons and component smry'!U$48:U$61,'Waste tons and component smry'!$D$48:$D$61,$C58) -> 0 | K58: =SUMIFS('Waste tons and component smry'!V$48:V$61,'Waste tons and component smry'!$D$48:$D$61,$C58) -> 0 | L58: =SUMIFS('Waste tons and component smry'!W$48:W$61,'Waste tons and component smry'!$D$48:$D$61,$C58) -> 0 | M58: =SUMIFS('Waste tons and component smry'!X$48:X$61,'Waste tons and component smry'!$D$48:$D$61,$C58) -> 0 | N58: =SUMIFS('Waste tons and component smry'!Y$48:Y$61,'Waste tons and component smry'!$D$48:$D$61,$C58) -> 0 | O58: =SUMIFS('Waste tons and component smry'!Z$48:Z$61,'Waste tons and component smry'!$D$48:$D$61,$C58) -> 0 | P58: =SUMIFS('Waste tons and component smry'!AA$48:AA$61,'Waste tons and component smry'!$D$48:$D$61,$C58) -> 0
D59: =SUMIFS('Waste tons and component smry'!$H$48:$H$61,'Waste tons and component smry'!$D$48:$D$61,C59) -> 0 | E59: =SUMIFS('Waste tons and component smry'!P$48:P$61,'Waste tons and component smry'!$D$48:$D$61,$C59) -> 0 | F59: =SUMIFS('Waste tons and component smry'!Q$48:Q$61,'Waste tons and component smry'!$D$48:$D$61,$C59) -> 0 | G59: =SUMIFS('Waste tons and component smry'!R$48:R$61,'Waste tons and component smry'!$D$48:$D$61,$C59) -> 0 | H59: =SUMIFS('Waste tons and component smry'!S$48:S$61,'Waste tons and component smry'!$D$48:$D$61,$C59) -> 0 | I59: =SUMIFS('Waste tons and component smry'!T$48:T$61,'Waste tons and component smry'!$D$48:$D$61,$C59) -> 0 | J59: =SUMIFS('Waste tons and component smry'!U$48:U$61,'Waste tons and component smry'!$D$48:$D$61,$C59) -> 0 | K59: =SUMIFS('Waste tons and component smry'!V$48:V$61,'Waste tons and component smry'!$D$48:$D$61,$C59) -> 0 | L59: =SUMIFS('Waste tons and component smry'!W$48:W$61,'Waste tons and component smry'!$D$48:$D$61,$C59) -> 0 | M59: =SUMIFS('Waste tons and component smry'!X$48:X$61,'Waste tons and component smry'!$D$48:$D$61,$C59) -> 0 | N59: =SUMIFS('Waste tons and component smry'!Y$48:Y$61,'Waste tons and component smry'!$D$48:$D$61,$C59) -> 0 | O59: =SUMIFS('Waste tons and component smry'!Z$48:Z$61,'Waste tons and component smry'!$D$48:$D$61,$C59) -> 0 | P59: =SUMIFS('Waste tons and component smry'!AA$48:AA$61,'Waste tons and component smry'!$D$48:$D$61,$C59) -> 0
D60: =SUMIFS('Waste tons and component smry'!$H$48:$H$61,'Waste tons and component smry'!$D$48:$D$61,C60) -> 0 | E60: =SUMIFS('Waste tons and component smry'!P$48:P$61,'Waste tons and component smry'!$D$48:$D$61,$C60) -> 0 | F60: =SUMIFS('Waste tons and component smry'!Q$48:Q$61,'Waste tons and component smry'!$D$48:$D$61,$C60) -> 0 | G60: =SUMIFS('Waste tons and component smry'!R$48:R$61,'Waste tons and component smry'!$D$48:$D$61,$C60) -> 0 | H60: =SUMIFS('Waste tons and component smry'!S$48:S$61,'Waste tons and component smry'!$D$48:$D$61,$C60) -> 0 | I60: =SUMIFS('Waste tons and component smry'!T$48:T$61,'Waste tons and component smry'!$D$48:$D$61,$C60) -> 0 | J60: =SUMIFS('Waste tons and component smry'!U$48:U$61,'Waste tons and component smry'!$D$48:$D$61,$C60) -> 0 | K60: =SUMIFS('Waste tons and component smry'!V$48:V$61,'Waste tons and component smry'!$D$48:$D$61,$C60) -> 0 | L60: =SUMIFS('Waste tons and component smry'!W$48:W$61,'Waste tons and component smry'!$D$48:$D$61,$C60) -> 0 | M60: =SUMIFS('Waste tons and component smry'!X$48:X$61,'Waste tons and component smry'!$D$48:$D$61,$C60) -> 0 | N60: =SUMIFS('Waste tons and component smry'!Y$48:Y$61,'Waste tons and component smry'!$D$48:$D$61,$C60) -> 0 | O60: =SUMIFS('Waste tons and component smry'!Z$48:Z$61,'Waste tons and component smry'!$D$48:$D$61,$C60) -> 0 | P60: =SUMIFS('Waste tons and component smry'!AA$48:AA$61,'Waste tons and component smry'!$D$48:$D$61,$C60) -> 0
D61: =SUMIFS('Waste tons and component smry'!$H$48:$H$61,'Waste tons and component smry'!$D$48:$D$61,C61) -> 0 | E61: =SUMIFS('Waste tons and component smry'!P$48:P$61,'Waste tons and component smry'!$D$48:$D$61,$C61) -> 0 | F61: =SUMIFS('Waste tons and component smry'!Q$48:Q$61,'Waste tons and component smry'!$D$48:$D$61,$C61) -> 0 | G61: =SUMIFS('Waste tons and component smry'!R$48:R$61,'Waste tons and component smry'!$D$48:$D$61,$C61) -> 0 | H61: =SUMIFS('Waste tons and component smry'!S$48:S$61,'Waste tons and component smry'!$D$48:$D$61,$C61) -> 0 | I61: =SUMIFS('Waste tons and component smry'!T$48:T$61,'Waste tons and component smry'!$D$48:$D$61,$C61) -> 0 | J61: =SUMIFS('Waste tons and component smry'!U$48:U$61,'Waste tons and component smry'!$D$48:$D$61,$C61) -> 0 | K61: =SUMIFS('Waste tons and component smry'!V$48:V$61,'Waste tons and component smry'!$D$48:$D$61,$C61) -> 0 | L61: =SUMIFS('Waste tons and component smry'!W$48:W$61,'Waste tons and component smry'!$D$48:$D$61,$C61) -> 0 | M61: =SUMIFS('Waste tons and component smry'!X$48:X$61,'Waste tons and component smry'!$D$48:$D$61,$C61) -> 0 | N61: =SUMIFS('Waste tons and component smry'!Y$48:Y$61,'Waste tons and component smry'!$D$48:$D$61,$C61) -> 0 | O61: =SUMIFS('Waste tons and component smry'!Z$48:Z$61,'Waste tons and component smry'!$D$48:$D$61,$C61) -> 0 | P61: =SUMIFS('Waste tons and component smry'!AA$48:AA$61,'Waste tons and component smry'!$D$48:$D$61,$C61) -> 0
D62: =SUMIFS('Waste tons and component smry'!$H$48:$H$61,'Waste tons and component smry'!$D$48:$D$61,C62) -> 0 | E62: =SUMIFS('Waste tons and component smry'!P$48:P$61,'Waste tons and component smry'!$D$48:$D$61,$C62) -> 0 | F62: =SUMIFS('Waste tons and component smry'!Q$48:Q$61,'Waste tons and component smry'!$D$48:$D$61,$C62) -> 0 | G62: =SUMIFS('Waste tons and component smry'!R$48:R$61,'Waste tons and component smry'!$D$48:$D$61,$C62) -> 0 | H62: =SUMIFS('Waste tons and component smry'!S$48:S$61,'Waste tons and component smry'!$D$48:$D$61,$C62) -> 0 | I62: =SUMIFS('Waste tons and component smry'!T$48:T$61,'Waste tons and component smry'!$D$48:$D$61,$C62) -> 0 | J62: =SUMIFS('Waste tons and component smry'!U$48:U$61,'Waste tons and component smry'!$D$48:$D$61,$C62) -> 0 | K62: =SUMIFS('Waste tons and component smry'!V$48:V$61,'Waste tons and component smry'!$D$48:$D$61,$C62) -> 0 | L62: =SUMIFS('Waste tons and component smry'!W$48:W$61,'Waste tons and component smry'!$D$48:$D$61,$C62) -> 0 | M62: =SUMIFS('Waste tons and component smry'!X$48:X$61,'Waste tons and component smry'!$D$48:$D$61,$C62) -> 0 | N62: =SUMIFS('Waste tons and component smry'!Y$48:Y$61,'Waste tons and component smry'!$D$48:$D$61,$C62) -> 0 | O62: =SUMIFS('Waste tons and component smry'!Z$48:Z$61,'Waste tons and component smry'!$D$48:$D$61,$C62) -> 0 | P62: =SUMIFS('Waste tons and component smry'!AA$48:AA$61,'Waste tons and component smry'!$D$48:$D$61,$C62) -> 0
D63: =SUMIFS('Waste tons and component smry'!$H$48:$H$61,'Waste tons and component smry'!$D$48:$D$61,C63) -> 0 | E63: =SUMIFS('Waste tons and component smry'!P$48:P$61,'Waste tons and component smry'!$D$48:$D$61,$C63) -> 0 | F63: =SUMIFS('Waste tons and component smry'!Q$48:Q$61,'Waste tons and component smry'!$D$48:$D$61,$C63) -> 0 | G63: =SUMIFS('Waste tons and component smry'!R$48:R$61,'Waste tons and component smry'!$D$48:$D$61,$C63) -> 0 | H63: =SUMIFS('Waste tons and component smry'!S$48:S$61,'Waste tons and component smry'!$D$48:$D$61,$C63) -> 0 | I63: =SUMIFS('Waste tons and component smry'!T$48:T$61,'Waste tons and component smry'!$D$48:$D$61,$C63) -> 0 | J63: =SUMIFS('Waste tons and component smry'!U$48:U$61,'Waste tons and component smry'!$D$48:$D$61,$C63) -> 0 | K63: =SUMIFS('Waste tons and component smry'!V$48:V$61,'Waste tons and component smry'!$D$48:$D$61,$C63) -> 0 | L63: =SUMIFS('Waste tons and component smry'!W$48:W$61,'Waste tons and component smry'!$D$48:$D$61,$C63) -> 0 | M63: =SUMIFS('Waste tons and component smry'!X$48:X$61,'Waste tons and component smry'!$D$48:$D$61,$C63) -> 0 | N63: =SUMIFS('Waste tons and component smry'!Y$48:Y$61,'Waste tons and component smry'!$D$48:$D$61,$C63) -> 0 | O63: =SUMIFS('Waste tons and component smry'!Z$48:Z$61,'Waste tons and component smry'!$D$48:$D$61,$C63) -> 0 | P63: =SUMIFS('Waste tons and component smry'!AA$48:AA$61,'Waste tons and component smry'!$D$48:$D$61,$C63) -> 0
D64: =SUMIFS('Waste tons and component smry'!$H$48:$H$61,'Waste tons and component smry'!$D$48:$D$61,C64) -> 0 | E64: =SUMIFS('Waste tons and component smry'!P$48:P$61,'Waste tons and component smry'!$D$48:$D$61,$C64) -> 0 | F64: =SUMIFS('Waste tons and component smry'!Q$48:Q$61,'Waste tons and component smry'!$D$48:$D$61,$C64) -> 0 | G64: =SUMIFS('Waste tons and component smry'!R$48:R$61,'Waste tons and component smry'!$D$48:$D$61,$C64) -> 0 | H64: =SUMIFS('Waste tons and component smry'!S$48:S$61,'Waste tons and component smry'!$D$48:$D$61,$C64) -> 0 | I64: =SUMIFS('Waste tons and component smry'!T$48:T$61,'Waste tons and component smry'!$D$48:$D$61,$C64) -> 0 | J64: =SUMIFS('Waste tons and component smry'!U$48:U$61,'Waste tons and component smry'!$D$48:$D$61,$C64) -> 0 | K64: =SUMIFS('Waste tons and component smry'!V$48:V$61,'Waste tons and component smry'!$D$48:$D$61,$C64) -> 0 | L64: =SUMIFS('Waste tons and component smry'!W$48:W$61,'Waste tons and component smry'!$D$48:$D$61,$C64) -> 0 | M64: =SUMIFS('Waste tons and component smry'!X$48:X$61,'Waste tons and component smry'!$D$48:$D$61,$C64) -> 0 | N64: =SUMIFS('Waste tons and component smry'!Y$48:Y$61,'Waste tons and component smry'!$D$48:$D$61,$C64) -> 0 | O64: =SUMIFS('Waste tons and component smry'!Z$48:Z$61,'Waste tons and component smry'!$D$48:$D$61,$C64) -> 0 | P64: =SUMIFS('Waste tons and component smry'!AA$48:AA$61,'Waste tons and component smry'!$D$48:$D$61,$C64) -> 0

Sheet Waste Water Conversion (hidden)
B1: DESIGN BASIS | K1: =$K$2 -> Waste Water conversion
B2: Client: | C2: =BaseInfo_ClientName -> Dairy Australia | J2: Area: | K2: Waste Water conversion
B3: Project: | C3: =BaseInfo_Project -> 2614DP24 | J3: Revision: | K3: =BaseInfo_Revision -> V2.7
B4: Site 1: | C4: =BaseInfo_Site -> 0 | J4: Project Ref: | K4: =BaseInfo_ProjectReference -> 2614DP24
B8: Water conversion
C10: For | D10: 1 | E10: kg raw milk
D11: %P | E11: %F | F11: %Lactose | N11: Basis
B12: Composition of Raw milk (typical) | D12: =Raw_milk_Prcnt_P -> 0.034 | E12: =Raw_milk_Prcnt_F -> 0.043 | F12: =Raw_milk_Prcnt_Lactose -> 0.049
N13: Waste water in reported in terms of:
B14: Recorded waste water | D14: Estimated volume | E14: units | F14: Std Units | H14: Annualised organic load | J14: Milk equivalence
B16: Annual waste water/effluent | D16: =+'Input page'!C73 -> 0 | E16: =+'Input page'!D73 -> 0 | F16: =IF(E16="kL/year",D16/1000,IF(E16="L/year",D16/1000000,D16)) -> 0 | G16: ML/yr
B17: Ave BOD | D17: =+'Input page'!C74 -> 0 | E17: =+'Input page'!D74 -> 0 | F17: =+D17 -> 0 | G17: mg/L | H17: =+F16*10^6*F17/1000/1000 -> 0 | I17: kg BOD/yr | J17: =+H17/Raw_Milk_BOD_kg_per_kg_Milk -> 0 | K17: kg Raw Milk | O17: Volume
B18: Ave COD | D18: =+'Input page'!C75 -> 0 | E18: =+'Input page'!D75 -> 0 | F18: =+D18 -> 0 | G18: mg/L | H18: =+F16*10^6*F18/1000/1000 -> 0 | I18: kg COD/yr | J18: =+H18/Raw_Milk_COD_kg_per_kg_Milk -> 0 | K18: kg Raw Milk | O18: BOD
O19: COD
O20: Pre or post treatment
N22: For Pre treatment
N24: All we can do is convert state BOD and COD values of milk
N25: The translate the waste water to these values
N27: if we compositional analysis of waste water - can get better resolution
D30: %P | E30: %F | F30: %Lactose | G30: Total | N30: For post treat:
B31: COD calculation for Raw milk | D31: =Raw_milk_Prcnt_P*Assumptions!F51 -> 0.04624 | E31: =Raw_milk_Prcnt_F*Assumptions!G51 -> 0.129 | F31: =Raw_milk_Prcnt_Lactose*Assumptions!H51 -> 0.05488 | G31: =SUM(D31:F31) -> 0.23012 | H31: kg COD/kg Raw Milk | J31: Raw_Milk_COD_kg_per_kg_Milk
B32: BOD calculation for Raw milk | D32: =Raw_milk_Prcnt_P*Assumptions!F52 -> 0.03502 | E32: =Raw_milk_Prcnt_F*Assumptions!G52 -> 0.03827 | F32: =Raw_milk_Prcnt_Lactose*Assumptions!H52 -> 0.0343 | G32: =SUM(D32:F32) -> 0.10759 | H32: kg BOD/kg Raw Milk | J32: Raw_Milk_BOD_kg_per_kg_Milk | N32: This is very difficult - how does this translate to dairy solids???

Sheet >>>OUTPUTS >>>

Sheet Mass Balance (hidden)
B1: DESIGN BASIS | K1: =$K$2 -> Overall Mass Balance
B2: Client: | C2: =BaseInfo_ClientName -> Dairy Australia | J2: Area: | K2: Overall Mass Balance
B3: Project: | C3: =BaseInfo_Project -> 2614DP24 | J3: Revision: | K3: =BaseInfo_Revision -> V2.7
B4: Site 1: | C4: =BaseInfo_Site -> 0 | J4: Project Ref: | K4: =BaseInfo_ProjectReference -> 2614DP24
B8: Mass Basis: | G8: Annual production
B10: Mass Balance: | C10: INPUTS
B12: Plant INPUTS
B13: Milk | C13: =+'Input page'!B12 -> Unprocessed milk | D13: =IF('Input page'!D12="kL/year",'Input page'!C12*J23/1000,IF('Input page'!D12="Tonnes/year",'Input page'!C12)) -> FALSE | E13: Tonnes/year
B14: Other | C14: Cream | D14: =IF('Input page'!D13="kL/year",'Input page'!C13*J24/1000,IF('Input page'!D13="Tonnes/year",'Input page'!C13)) -> FALSE | E14: Tonnes/year
C15: Powder | D15: =IF('Input page'!D14="kL/year",'Input page'!C14*J25/1000,IF('Input page'!D14="Tonnes/year",'Input page'!C14)) -> FALSE | E15: Tonnes/year
C16: Butter | D16: =IF('Input page'!D15="kL/year",'Input page'!C15*J26/1000,IF('Input page'!D15="Tonnes/year",'Input page'!C15)) -> FALSE | E16: Tonnes/year
C17: AMF | D17: =IF('Input page'!D16="kL/year",'Input page'!C16*J27/1000,IF('Input page'!D16="Tonnes/year",'Input page'!C16)) -> FALSE | E17: Tonnes/year
C18: TOTAL | D18: =SUM(D13:D17) -> 0 | E18: Tonnes/year
B20: Milk solids calculator
B22: Composition of inputs | F22: %P | G22: %F | H22: % Lactose | I22: %TS | J22: Density (kg/L)
C23: Unprocessed milk | F23: =_xlfn.XLOOKUP('Mass Balance'!$C23,'Calculator Compositions'!$D$13:$D$17,'Calculator Compositions'!E$13:E$17) -> 0.034 | G23: =_xlfn.XLOOKUP('Mass Balance'!$C23,'Calculator Compositions'!$D$13:$D$17,'Calculator Compositions'!F$13:F$17) -> 0.043 | H23: =_xlfn.XLOOKUP('Mass Balance'!$C23,'Calculator Compositions'!$D$13:$D$17,'Calculator Compositions'!G$13:G$17) -> 0.034 | I23: =_xlfn.XLOOKUP('Mass Balance'!$C23,'Calculator Compositions'!$D$13:$D$17,'Calculator Compositions'!I$13:I$17) -> 0.1334 | J23: =+'Calculator Compositions'!M13 -> 1035
C24: Cream | F24: =_xlfn.XLOOKUP('Mass Balance'!$C24,'Calculator Compositions'!$D$13:$D$17,'Calculator Compositions'!E$13:E$17) -> 0.021 | G24: =_xlfn.XLOOKUP('Mass Balance'!$C24,'Calculator Compositions'!$D$13:$D$17,'Calculator Compositions'!F$13:F$17) -> 0.4 | H24: =_xlfn.XLOOKUP('Mass Balance'!$C24,'Calculator Compositions'!$D$13:$D$17,'Calculator Compositions'!G$13:G$17) -> 0.031 | I24: =_xlfn.XLOOKUP('Mass Balance'!$C24,'Calculator Compositions'!$D$13:$D$17,'Calculator Compositions'!I$13:I$17) -> 0.457 | J24: =+'Calculator Compositions'!M14 -> 1000.8
C25: Powder | F25: =_xlfn.XLOOKUP('Mass Balance'!$C25,'Calculator Compositions'!$D$13:$D$17,'Calculator Compositions'!E$13:E$17) -> 0.35 | G25: =_xlfn.XLOOKUP('Mass Balance'!$C25,'Calculator Compositions'!$D$13:$D$17,'Calculator Compositions'!F$13:F$17) -> 0.1 | H25: =_xlfn.XLOOKUP('Mass Balance'!$C25,'Calculator Compositions'!$D$13:$D$17,'Calculator Compositions'!G$13:G$17) -> 0.519 | I25: =_xlfn.XLOOKUP('Mass Balance'!$C25,'Calculator Compositions'!$D$13:$D$17,'Calculator Compositions'!I$13:I$17) -> 0.957 | J25: =+'Calculator Compositions'!M15 -> 0
C26: Butter | F26: =_xlfn.XLOOKUP('Mass Balance'!$C26,'Calculator Compositions'!$D$13:$D$17,'Calculator Compositions'!E$13:E$17) -> 0.02 | G26: =_xlfn.XLOOKUP('Mass Balance'!$C26,'Calculator Compositions'!$D$13:$D$17,'Calculator Compositions'!F$13:F$17) -> 0.8 | H26: =_xlfn.XLOOKUP('Mass Balance'!$C26,'Calculator Compositions'!$D$13:$D$17,'Calculator Compositions'!G$13:G$17) -> 0 | I26: =_xlfn.XLOOKUP('Mass Balance'!$C26,'Calculator Compositions'!$D$13:$D$17,'Calculator Compositions'!I$13:I$17) -> 0.84 | J26: =+'Calculator Compositions'!M16 -> 957
C27: AMF | F27: =_xlfn.XLOOKUP('Mass Balance'!$C27,'Calculator Compositions'!$D$13:$D$17,'Calculator Compositions'!E$13:E$17) -> 0 | G27: =_xlfn.XLOOKUP('Mass Balance'!$C27,'Calculator Compositions'!$D$13:$D$17,'Calculator Compositions'!F$13:F$17) -> 0.99 | H27: =_xlfn.XLOOKUP('Mass Balance'!$C27,'Calculator Compositions'!$D$13:$D$17,'Calculator Compositions'!G$13:G$17) -> 0 | I27: =_xlfn.XLOOKUP('Mass Balance'!$C27,'Calculator Compositions'!$D$13:$D$17,'Calculator Compositions'!I$13:I$17) -> 0.99 | J27: =+'Calculator Compositions'!M17 -> 928
B29: Solids inputs | F29: t P/yr | G29: t F/yr | H29: t Lactose/yr | I29: t Solids/yr
C30: Unprocessed milk | F30: =+F23*$D13 -> 0 | G30: =+G23*$D13 -> 0 | H30: 0 | I30: 0
C31: Cream | F31: =+F24*$D14 -> 0 | G31: 0 | H31: 0 | I31: 0
C32: Powder | F32: =+F25*$D15 -> 0 | G32: 0 | H32: 0 | I32: 0
C33: Butter | F33: =+F26*$D16 -> 0 | G33: 0 | H33: 0 | I33: 0
C34: AMF | F34: =+F27*$D17 -> 0 | G34: 0 | H34: 0 | I34: 0
D36: TOTAL IN | F36: =SUM(F30:F35) -> 0 | G36: =SUM(G30:G35) -> 0 | H36: =SUM(H30:H35) -> 0 | I36: =SUM(I30:I35) -> 0
B38: Mass Balance: | C38: OUTPUTS
B40: Plant OUTPUTS | C40: Finished Products
F41: Annual tonnages | H41: Component annualised masses (t/yr)
H42: t P/yr | I42: t F/yr | J42: t Lactose/yr | K42: t Solids/yr
C43: Milk
C44: Flavoured milk | F44: =+'Input page'!#REF! ->  | G44: =IF(ISBLANK('Input page'!#REF!)=TRUE,"",'Input page'!#REF!) ->  | H44: =_xlfn.XLOOKUP($C44,'Calculator Compositions'!$D$25:$D$28,'Calculator Compositions'!E$25:E$28)*$F44 ->  | I44: =_xlfn.XLOOKUP($C44,'Calculator Compositions'!$D$25:$D$28,'Calculator Compositions'!F$25:F$28)*$F44 ->  | J44: =_xlfn.XLOOKUP($C44,'Calculator Compositions'!$D$25:$D$28,'Calculator Compositions'!G$25:G$28)*$F44 ->  | K44: =_xlfn.XLOOKUP($C44,'Calculator Compositions'!$D$25:$D$28,'Calculator Compositions'!I$25:I$28)*$F44 -> 
C45: Fresh milk | F45: =+'Input page'!#REF! ->  | G45: =IF(ISBLANK('Input page'!#REF!)=TRUE,"",'Input page'!#REF!) ->  | H45: =_xlfn.XLOOKUP($C45,'Calculator Compositions'!$D$25:$D$28,'Calculator Compositions'!E$25:E$28)*$F45 ->  | I45: =_xlfn.XLOOKUP($C45,'Calculator Compositions'!$D$25:$D$28,'Calculator Compositions'!F$25:F$28)*$F45 ->  | J45: =_xlfn.XLOOKUP($C45,'Calculator Compositions'!$D$25:$D$28,'Calculator Compositions'!G$25:G$28)*$F45 ->  | K45: =_xlfn.XLOOKUP($C45,'Calculator Compositions'!$D$25:$D$28,'Calculator Compositions'!I$25:I$28)*$F45 -> 
C46: ESL/UHT | F46: =+'Input page'!#REF! ->  | G46: =IF(ISBLANK('Input page'!#REF!)=TRUE,"",'Input page'!#REF!) ->  | H46: =_xlfn.XLOOKUP($C46,'Calculator Compositions'!$D$25:$D$28,'Calculator Compositions'!E$25:E$28)*$F46 ->  | I46: =_xlfn.XLOOKUP($C46,'Calculator Compositions'!$D$25:$D$28,'Calculator Compositions'!F$25:F$28)*$F46 ->  | J46: =_xlfn.XLOOKUP($C46,'Calculator Compositions'!$D$25:$D$28,'Calculator Compositions'!G$25:G$28)*$F46 ->  | K46: =_xlfn.XLOOKUP($C46,'Calculator Compositions'!$D$25:$D$28,'Calculator Compositions'!I$25:I$28)*$F46 -> 
C47: Other (please specify) | F47: =+'Input page'!#REF! ->  | G47: =IF(ISBLANK('Input page'!#REF!)=TRUE,"",'Input page'!#REF!) ->  | H47: =_xlfn.XLOOKUP($C47,'Calculator Compositions'!$D$25:$D$28,'Calculator Compositions'!E$25:E$28)*$F47 ->  | I47: =_xlfn.XLOOKUP($C47,'Calculator Compositions'!$D$25:$D$28,'Calculator Compositions'!F$25:F$28)*$F47 ->  | J47: =_xlfn.XLOOKUP($C47,'Calculator Compositions'!$D$25:$D$28,'Calculator Compositions'!G$25:G$28)*$F47 ->  | K47: =_xlfn.XLOOKUP($C47,'Calculator Compositions'!$D$25:$D$28,'Calculator Compositions'!I$25:I$28)*$F47 -> 
C48: Cheese
C49: Hard cheese | F49: =+'Input page'!#REF! ->  | G49: =IF(ISBLANK('Input page'!#REF!)=TRUE,"",'Input page'!#REF!) ->  | H49: =_xlfn.XLOOKUP($C49,'Calculator Compositions'!$D$29:$D$32,'Calculator Compositions'!E$29:E$32)*$F49 ->  | I49: =_xlfn.XLOOKUP($C49,'Calculator Compositions'!$D$29:$D$32,'Calculator Compositions'!F$29:F$32)*$F49 ->  | J49: =_xlfn.XLOOKUP($C49,'Calculator Compositions'!$D$29:$D$32,'Calculator Compositions'!G$29:G$32)*$F49 ->  | K49: =_xlfn.XLOOKUP($C49,'Calculator Compositions'!$D$29:$D$32,'Calculator Compositions'!I$29:I$32)*$F49 -> 
C50: Soft Cheese | F50: =+'Input page'!#REF! ->  | G50: =IF(ISBLANK('Input page'!#REF!)=TRUE,"",'Input page'!#REF!) ->  | H50: =_xlfn.XLOOKUP($C50,'Calculator Compositions'!$D$29:$D$32,'Calculator Compositions'!E$29:E$32)*$F50 ->  | I50: =_xlfn.XLOOKUP($C50,'Calculator Compositions'!$D$29:$D$32,'Calculator Compositions'!F$29:F$32)*$F50 ->  | J50: =_xlfn.XLOOKUP($C50,'Calculator Compositions'!$D$29:$D$32,'Calculator Compositions'!G$29:G$32)*$F50 ->  | K50: =_xlfn.XLOOKUP($C50,'Calculator Compositions'!$D$29:$D$32,'Calculator Compositions'!I$29:I$32)*$F50 -> 
C51: Ricotta | F51: =+'Input page'!#REF! ->  | G51: =IF(ISBLANK('Input page'!#REF!)=TRUE,"",'Input page'!#REF!) ->  | H51: =_xlfn.XLOOKUP($C51,'Calculator Compositions'!$D$29:$D$32,'Calculator Compositions'!E$29:E$32)*$F51 ->  | I51: =_xlfn.XLOOKUP($C51,'Calculator Compositions'!$D$29:$D$32,'Calculator Compositions'!F$29:F$32)*$F51 ->  | J51: =_xlfn.XLOOKUP($C51,'Calculator Compositions'!$D$29:$D$32,'Calculator Compositions'!G$29:G$32)*$F51 ->  | K51: =_xlfn.XLOOKUP($C51,'Calculator Compositions'!$D$29:$D$32,'Calculator Compositions'!I$29:I$32)*$F51 -> 
C52: Other (please specify) | F52: =+'Input page'!#REF! ->  | G52: =IF(ISBLANK('Input page'!#REF!)=TRUE,"",'Input page'!#REF!) ->  | H52: =_xlfn.XLOOKUP($C52,'Calculator Compositions'!$D$29:$D$32,'Calculator Compositions'!E$29:E$32)*$F52 ->  | I52: =_xlfn.XLOOKUP($C52,'Calculator Compositions'!$D$29:$D$32,'Calculator Compositions'!F$29:F$32)*$F52 ->  | J52: =_xlfn.XLOOKUP($C52,'Calculator Compositions'!$D$29:$D$32,'Calculator Compositions'!G$29:G$32)*$F52 ->  | K52: =_xlfn.XLOOKUP($C52,'Calculator Compositions'!$D$29:$D$32,'Calculator Compositions'!I$29:I$32)*$F52 -> 
C53: Fresh
C54: Butter | F54: =+'Input page'!#REF! ->  | G54: =IF(ISBLANK('Input page'!#REF!)=TRUE,"",'Input page'!#REF!) ->  | H54: =_xlfn.XLOOKUP($C54,'Calculator Compositions'!$D$33:$D$39,'Calculator Compositions'!E$33:E$39)*$F54 ->  | I54: =_xlfn.XLOOKUP($C54,'Calculator Compositions'!$D$33:$D$39,'Calculator Compositions'!F$33:F$39)*$F54 ->  | J54: =_xlfn.XLOOKUP($C54,'Calculator Compositions'!$D$33:$D$39,'Calculator Compositions'!G$33:G$39)*$F54 ->  | K54: =_xlfn.XLOOKUP($C54,'Calculator Compositions'!$D$33:$D$39,'Calculator Compositions'!I$33:I$39)*$F54 -> 
C55: Cream | F55: =+'Input page'!#REF! ->  | G55: =IF(ISBLANK('Input page'!#REF!)=TRUE,"",'Input page'!#REF!) ->  | H55: =_xlfn.XLOOKUP($C55,'Calculator Compositions'!$D$33:$D$39,'Calculator Compositions'!E$33:E$39)*$F55 ->  | I55: =_xlfn.XLOOKUP($C55,'Calculator Compositions'!$D$33:$D$39,'Calculator Compositions'!F$33:F$39)*$F55 ->  | J55: =_xlfn.XLOOKUP($C55,'Calculator Compositions'!$D$33:$D$39,'Calculator Compositions'!G$33:G$39)*$F55 ->  | K55: =_xlfn.XLOOKUP($C55,'Calculator Compositions'!$D$33:$D$39,'Calculator Compositions'!I$33:I$39)*$F55 -> 
C56: Desserts | F56: 1 | G56: =IF(ISBLANK('Input page'!#REF!)=TRUE,"",'Input page'!#REF!) ->  | H56: =_xlfn.XLOOKUP($C56,'Calculator Compositions'!$D$33:$D$39,'Calculator Compositions'!E$33:E$39)*$F56 -> 0.037 | I56: =_xlfn.XLOOKUP($C56,'Calculator Compositions'!$D$33:$D$39,'Calculator Compositions'!F$33:F$39)*$F56 -> 0.033 | J56: =_xlfn.XLOOKUP($C56,'Calculator Compositions'!$D$33:$D$39,'Calculator Compositions'!G$33:G$39)*$F56 -> 0.044 | K56: =_xlfn.XLOOKUP($C56,'Calculator Compositions'!$D$33:$D$39,'Calculator Compositions'!I$33:I$39)*$F56 -> 0.128
C57: Sour cream | F57: =+'Input page'!#REF! ->  | G57: =IF(ISBLANK('Input page'!#REF!)=TRUE,"",'Input page'!#REF!) ->  | H57: =_xlfn.XLOOKUP($C57,'Calculator Compositions'!$D$33:$D$39,'Calculator Compositions'!E$33:E$39)*$F57 ->  | I57: =_xlfn.XLOOKUP($C57,'Calculator Compositions'!$D$33:$D$39,'Calculator Compositions'!F$33:F$39)*$F57 ->  | J57: =_xlfn.XLOOKUP($C57,'Calculator Compositions'!$D$33:$D$39,'Calculator Compositions'!G$33:G$39)*$F57 ->  | K57: =_xlfn.XLOOKUP($C57,'Calculator Compositions'!$D$33:$D$39,'Calculator Compositions'!I$33:I$39)*$F57 -> 
C58: Yoghurt | F58: =+'Input page'!#REF! ->  | G58: =IF(ISBLANK('Input page'!#REF!)=TRUE,"",'Input page'!#REF!) ->  | H58: =_xlfn.XLOOKUP($C58,'Calculator Compositions'!$D$33:$D$39,'Calculator Compositions'!E$33:E$39)*$F58 ->  | I58: =_xlfn.XLOOKUP($C58,'Calculator Compositions'!$D$33:$D$39,'Calculator Compositions'!F$33:F$39)*$F58 ->  | J58: =_xlfn.XLOOKUP($C58,'Calculator Compositions'!$D$33:$D$39,'Calculator Compositions'!G$33:G$39)*$F58 ->  | K58: =_xlfn.XLOOKUP($C58,'Calculator Compositions'!$D$33:$D$39,'Calculator Compositions'!I$33:I$39)*$F58 -> 
C59: Other (please specify) | F59: =+'Input page'!#REF! ->  | G59: =IF(ISBLANK('Input page'!#REF!)=TRUE,"",'Input page'!#REF!) ->  | H59: =_xlfn.XLOOKUP($C59,'Calculator Compositions'!$D$33:$D$39,'Calculator Compositions'!E$33:E$39)*$F59 ->  | I59: =_xlfn.XLOOKUP($C59,'Calculator Compositions'!$D$33:$D$39,'Calculator Compositions'!F$33:F$39)*$F59 ->  | J59: =_xlfn.XLOOKUP($C59,'Calculator Compositions'!$D$33:$D$39,'Calculator Compositions'!G$33:G$39)*$F59 ->  | K59: =_xlfn.XLOOKUP($C59,'Calculator Compositions'!$D$33:$D$39,'Calculator Compositions'!I$33:I$39)*$F59 -> 
C60: Frozen
C61: Frozen cream | F61: =+'Input page'!#REF! ->  | G61: =IF(ISBLANK('Input page'!#REF!)=TRUE,"",'Input page'!#REF!) ->  | H61: =_xlfn.XLOOKUP($C61,'Calculator Compositions'!$D$40:$D$43,'Calculator Compositions'!E$40:E$43)*$F61 ->  | I61: =_xlfn.XLOOKUP($C61,'Calculator Compositions'!$D$40:$D$43,'Calculator Compositions'!F$40:F$43)*$F61 ->  | J61: =_xlfn.XLOOKUP($C61,'Calculator Compositions'!$D$40:$D$43,'Calculator Compositions'!G$40:G$43)*$F61 ->  | K61: =_xlfn.XLOOKUP($C61,'Calculator Compositions'!$D$40:$D$43,'Calculator Compositions'!I$40:I$43)*$F61 -> 
C62: Frozen yoghurt | F62: =+'Input page'!#REF! ->  | G62: =IF(ISBLANK('Input page'!#REF!)=TRUE,"",'Input page'!#REF!) ->  | H62: =_xlfn.XLOOKUP($C62,'Calculator Compositions'!$D$40:$D$43,'Calculator Compositions'!E$40:E$43)*$F62 ->  | I62: =_xlfn.XLOOKUP($C62,'Calculator Compositions'!$D$40:$D$43,'Calculator Compositions'!F$40:F$43)*$F62 ->  | J62: =_xlfn.XLOOKUP($C62,'Calculator Compositions'!$D$40:$D$43,'Calculator Compositions'!G$40:G$43)*$F62 ->  | K62: =_xlfn.XLOOKUP($C62,'Calculator Compositions'!$D$40:$D$43,'Calculator Compositions'!I$40:I$43)*$F62 -> 
C63: Icecream | F63: =+'Input page'!#REF! ->  | G63: =IF(ISBLANK('Input page'!#REF!)=TRUE,"",'Input page'!#REF!) ->  | H63: =_xlfn.XLOOKUP($C63,'Calculator Compositions'!$D$40:$D$43,'Calculator Compositions'!E$40:E$43)*$F63 ->  | I63: =_xlfn.XLOOKUP($C63,'Calculator Compositions'!$D$40:$D$43,'Calculator Compositions'!F$40:F$43)*$F63 ->  | J63: =_xlfn.XLOOKUP($C63,'Calculator Compositions'!$D$40:$D$43,'Calculator Compositions'!G$40:G$43)*$F63 ->  | K63: =_xlfn.XLOOKUP($C63,'Calculator Compositions'!$D$40:$D$43,'Calculator Compositions'!I$40:I$43)*$F63 -> 
C64: Other (please specify) | F64: =+'Input page'!#REF! ->  | G64: =IF(ISBLANK('Input page'!#REF!)=TRUE,"",'Input page'!#REF!) ->  | H64: =_xlfn.XLOOKUP($C64,'Calculator Compositions'!$D$40:$D$43,'Calculator Compositions'!E$40:E$43)*$F64 ->  | I64: =_xlfn.XLOOKUP($C64,'Calculator Compositions'!$D$40:$D$43,'Calculator Compositions'!F$40:F$43)*$F64 ->  | J64: =_xlfn.XLOOKUP($C64,'Calculator Compositions'!$D$40:$D$43,'Calculator Compositions'!G$40:G$43)*$F64 ->  | K64: =_xlfn.XLOOKUP($C64,'Calculator Compositions'!$D$40:$D$43,'Calculator Compositions'!I$40:I$43)*$F64 -> 
C65: Powders
C66: Milk powders | F66: =+'Input page'!#REF! ->  | G66: =IF(ISBLANK('Input page'!#REF!)=TRUE,"",'Input page'!#REF!) ->  | H66: =_xlfn.XLOOKUP($C66,'Calculator Compositions'!$D$44:$D$50,'Calculator Compositions'!E$44:E$50)*$F66 ->  | I66: =_xlfn.XLOOKUP($C66,'Calculator Compositions'!$D$44:$D$50,'Calculator Compositions'!F$44:F$50)*$F66 ->  | J66: =_xlfn.XLOOKUP($C66,'Calculator Compositions'!$D$44:$D$50,'Calculator Compositions'!G$44:G$50)*$F66 ->  | K66: =_xlfn.XLOOKUP($C66,'Calculator Compositions'!$D$44:$D$50,'Calculator Compositions'!I$44:I$50)*$F66 -> 
C67: Whey powders | F67: =+'Input page'!#REF! ->  | G67: =IF(ISBLANK('Input page'!#REF!)=TRUE,"",'Input page'!#REF!) ->  | H67: =_xlfn.XLOOKUP($C67,'Calculator Compositions'!$D$44:$D$50,'Calculator Compositions'!E$44:E$50)*$F67 ->  | I67: =_xlfn.XLOOKUP($C67,'Calculator Compositions'!$D$44:$D$50,'Calculator Compositions'!F$44:F$50)*$F67 ->  | J67: =_xlfn.XLOOKUP($C67,'Calculator Compositions'!$D$44:$D$50,'Calculator Compositions'!G$44:G$50)*$F67 ->  | K67: =_xlfn.XLOOKUP($C67,'Calculator Compositions'!$D$44:$D$50,'Calculator Compositions'!I$44:I$50)*$F67 -> 
C68: Nutritional/protein powders | F68: =+'Input page'!#REF! ->  | G68: =IF(ISBLANK('Input page'!#REF!)=TRUE,"",'Input page'!#REF!) ->  | H68: =_xlfn.XLOOKUP($C68,'Calculator Compositions'!$D$44:$D$50,'Calculator Compositions'!E$44:E$50)*$F68 ->  | I68: =_xlfn.XLOOKUP($C68,'Calculator Compositions'!$D$44:$D$50,'Calculator Compositions'!F$44:F$50)*$F68 ->  | J68: =_xlfn.XLOOKUP($C68,'Calculator Compositions'!$D$44:$D$50,'Calculator Compositions'!G$44:G$50)*$F68 ->  | K68: =_xlfn.XLOOKUP($C68,'Calculator Compositions'!$D$44:$D$50,'Calculator Compositions'!I$44:I$50)*$F68 -> 
C69: Infant formula | F69: =+'Input page'!#REF! ->  | G69: =IF(ISBLANK('Input page'!#REF!)=TRUE,"",'Input page'!#REF!) ->  | H69: =_xlfn.XLOOKUP($C69,'Calculator Compositions'!$D$44:$D$50,'Calculator Compositions'!E$44:E$50)*$F69 ->  | I69: =_xlfn.XLOOKUP($C69,'Calculator Compositions'!$D$44:$D$50,'Calculator Compositions'!F$44:F$50)*$F69 ->  | J69: =_xlfn.XLOOKUP($C69,'Calculator Compositions'!$D$44:$D$50,'Calculator Compositions'!G$44:G$50)*$F69 ->  | K69: =_xlfn.XLOOKUP($C69,'Calculator Compositions'!$D$44:$D$50,'Calculator Compositions'!I$44:I$50)*$F69 -> 
C70: Other (please specify) | F70: =+'Input page'!#REF! ->  | G70: =IF(ISBLANK('Input page'!#REF!)=TRUE,"",'Input page'!#REF!) ->  | H70: =_xlfn.XLOOKUP($C70,'Calculator Compositions'!$D$44:$D$50,'Calculator Compositions'!E$44:E$50)*$F70 ->  | I70: =_xlfn.XLOOKUP($C70,'Calculator Compositions'!$D$44:$D$50,'Calculator Compositions'!F$44:F$50)*$F70 ->  | J70: =_xlfn.XLOOKUP($C70,'Calculator Compositions'!$D$44:$D$50,'Calculator Compositions'!G$44:G$50)*$F70 ->  | K70: =_xlfn.XLOOKUP($C70,'Calculator Compositions'!$D$44:$D$50,'Calculator Compositions'!I$44:I$50)*$F70 -> 
C71: Other | G71: =IF(ISBLANK('Input page'!#REF!)=TRUE,"",'Input page'!#REF!) -> 
C72: Please specify | F72: =+'Input page'!#REF! ->  | G72: =IF(ISBLANK('Input page'!#REF!)=TRUE,"",'Input page'!#REF!) ->  | H72: =_xlfn.XLOOKUP($C72,'Calculator Compositions'!$D$51:$D$51,'Calculator Compositions'!E$51:E$51)*$F72 ->  | I72: =_xlfn.XLOOKUP($C72,'Calculator Compositions'!$D$51:$D$51,'Calculator Compositions'!F$51:F$51)*$F72 ->  | J72: =_xlfn.XLOOKUP($C72,'Calculator Compositions'!$D$51:$D$51,'Calculator Compositions'!G$51:G$51)*$F72 ->  | K72: =_xlfn.XLOOKUP($C72,'Calculator Compositions'!$D$51:$D$51,'Calculator Compositions'!I$51:I$51)*$F72 -> 
C74: TOTAL Products OUT | F74: =SUM(F44:F72) ->  | G74: Tonnes/year | H74: =SUM(H44:H72) ->  | I74: =SUM(I44:I72) ->  | J74: =SUM(J44:J72) ->  | K74: =SUM(K44:K72) -> 
C76: INTERMEDIATE Mass Balance
F78: Annual tonnages | H78: Component annualised masses (t/yr)
H79: t P/yr | I79: t F/yr | J79: t Lactose/yr | K79: t Solids/yr
C80: Inputs | F80: =+D18 -> 0 | G80: =+E18 -> Tonnes/year | H80: =+F36 -> 0 | I80: =+G36 -> 0 | J80: =+H36 -> 0 | K80: =+I36 -> 0
C81: Outputs | F81: =+F74 ->  | G81: Tonnes/year
C82: LOSSES | F82: =+F81-F80 ->  | H82: =+H81-H80 -> 
C84: Food Waste Stream
F85: Annual tonnages | H85: Component annualised masses (t/yr)
C86: Product category | D86: Product type | E86: Waste stream | H86: t P/yr | I86: t F/yr | J86: t Lactose/yr | K86: t Solids/yr
C87: Milk
C88: Fresh milk | E88: Unfinished product - Raw | F88: =+'Waste tons and component smry'!H12 -> 0 | G88: Tonnes/year | H88: =_xlfn.XLOOKUP($C88,'Calculator Compositions'!$D$25:$D$28,'Calculator Compositions'!E$25:E$28)*$F88 -> 0 | I88: =_xlfn.XLOOKUP($C88,'Calculator Compositions'!$D$25:$D$28,'Calculator Compositions'!F$25:F$28)*$F88 -> 0 | J88: =_xlfn.XLOOKUP($C88,'Calculator Compositions'!$D$25:$D$28,'Calculator Compositions'!G$25:G$28)*$F88 -> 0 | K88: =_xlfn.XLOOKUP($C88,'Calculator Compositions'!$D$25:$D$28,'Calculator Compositions'!I$25:I$28)*$F88 -> 0
C89: Flavoured milk | E89: Finished product - unpackaged | F89: =+'Waste tons and component smry'!H13 -> 0 | G89: Tonnes/year | H89: =_xlfn.XLOOKUP($C89,'Calculator Compositions'!$D$25:$D$28,'Calculator Compositions'!E$25:E$28)*$F89 -> 0 | I89: =_xlfn.XLOOKUP($C89,'Calculator Compositions'!$D$25:$D$28,'Calculator Compositions'!F$25:F$28)*$F89 -> 0 | J89: =_xlfn.XLOOKUP($C89,'Calculator Compositions'!$D$25:$D$28,'Calculator Compositions'!G$25:G$28)*$F89 -> 0 | K89: =_xlfn.XLOOKUP($C89,'Calculator Compositions'!$D$25:$D$28,'Calculator Compositions'!I$25:I$28)*$F89 -> 0
C90: ESL/UHT | E90: Finished product - Packaged | F90: =+'Waste tons and component smry'!H14 -> 0 | G90: Tonnes/year | H90: =_xlfn.XLOOKUP($C90,'Calculator Compositions'!$D$25:$D$28,'Calculator Compositions'!E$25:E$28)*$F90 -> 0 | I90: =_xlfn.XLOOKUP($C90,'Calculator Compositions'!$D$25:$D$28,'Calculator Compositions'!F$25:F$28)*$F90 -> 0 | J90: =_xlfn.XLOOKUP($C90,'Calculator Compositions'!$D$25:$D$28,'Calculator Compositions'!G$25:G$28)*$F90 -> 0 | K90: =_xlfn.XLOOKUP($C90,'Calculator Compositions'!$D$25:$D$28,'Calculator Compositions'!I$25:I$28)*$F90 -> 0
C91: other | F91: 0
C92: Cheese
C93: Hard Cheese | E93: Finished product - packaged | F93: =+'Waste tons and component smry'!H15 -> 0 | G93: Tonnes/year | H93: =_xlfn.XLOOKUP($C93,'Calculator Compositions'!$D$29:$D$32,'Calculator Compositions'!E$29:E$32)*$F93 -> 0 | I93: =_xlfn.XLOOKUP($C93,'Calculator Compositions'!$D$29:$D$32,'Calculator Compositions'!F$29:F$32)*$F93 -> 0 | J93: =_xlfn.XLOOKUP($C93,'Calculator Compositions'!$D$29:$D$32,'Calculator Compositions'!G$29:G$32)*$F93 -> 0 | K93: =_xlfn.XLOOKUP($C93,'Calculator Compositions'!$D$29:$D$32,'Calculator Compositions'!I$29:I$32)*$F93 -> 0
C94: Soft Cheese | E94: Unfinished product - intermediates | F94: =+'Waste tons and component smry'!H16 -> 0 | G94: Tonnes/year | H94: =_xlfn.XLOOKUP($C94,'Calculator Compositions'!$D$29:$D$32,'Calculator Compositions'!E$29:E$32)*$F94 -> 0 | I94: =_xlfn.XLOOKUP($C94,'Calculator Compositions'!$D$29:$D$32,'Calculator Compositions'!F$29:F$32)*$F94 -> 0 | J94: =_xlfn.XLOOKUP($C94,'Calculator Compositions'!$D$29:$D$32,'Calculator Compositions'!G$29:G$32)*$F94 -> 0 | K94: =_xlfn.XLOOKUP($C94,'Calculator Compositions'!$D$29:$D$32,'Calculator Compositions'!I$29:I$32)*$F94 -> 0
C95: Ricotta | E95: Unfinished product - Raw | F95: =+'Waste tons and component smry'!H17 -> 0 | G95: Tonnes/year | H95: =_xlfn.XLOOKUP($C95,'Calculator Compositions'!$D$29:$D$32,'Calculator Compositions'!E$29:E$32)*$F95 -> 0 | I95: =_xlfn.XLOOKUP($C95,'Calculator Compositions'!$D$29:$D$32,'Calculator Compositions'!F$29:F$32)*$F95 -> 0 | J95: =_xlfn.XLOOKUP($C95,'Calculator Compositions'!$D$29:$D$32,'Calculator Compositions'!G$29:G$32)*$F95 -> 0 | K95: =_xlfn.XLOOKUP($C95,'Calculator Compositions'!$D$29:$D$32,'Calculator Compositions'!I$29:I$32)*$F95 -> 0
C97: Fresh
C98: Butter | E98: Finished product - unpackaged | F98: =+'Waste tons and component smry'!H18 -> 0 | G98: Tonnes/year | H98: =_xlfn.XLOOKUP($C98,'Calculator Compositions'!$D$33:$D$39,'Calculator Compositions'!E$33:E$39)*$F98 -> 0 | I98: =_xlfn.XLOOKUP($C98,'Calculator Compositions'!$D$33:$D$39,'Calculator Compositions'!F$33:F$39)*$F98 -> 0 | J98: =_xlfn.XLOOKUP($C98,'Calculator Compositions'!$D$33:$D$39,'Calculator Compositions'!G$33:G$39)*$F98 -> 0 | K98: =_xlfn.XLOOKUP($C98,'Calculator Compositions'!$D$33:$D$39,'Calculator Compositions'!I$33:I$39)*$F98 -> 0
C99: Cream | E99: Finished product - unpackaged | F99: =+'Waste tons and component smry'!H19 -> 0 | G99: Tonnes/year | H99: =_xlfn.XLOOKUP($C99,'Calculator Compositions'!$D$33:$D$39,'Calculator Compositions'!E$33:E$39)*$F99 -> 0 | I99: =_xlfn.XLOOKUP($C99,'Calculator Compositions'!$D$33:$D$39,'Calculator Compositions'!F$33:F$39)*$F99 -> 0 | J99: =_xlfn.XLOOKUP($C99,'Calculator Compositions'!$D$33:$D$39,'Calculator Compositions'!G$33:G$39)*$F99 -> 0 | K99: =_xlfn.XLOOKUP($C99,'Calculator Compositions'!$D$33:$D$39,'Calculator Compositions'!I$33:I$39)*$F99 -> 0
C100: Desserts | E100: Finished product - Packaged | F100: =+'Waste tons and component smry'!H20 -> 0 | G100: Tonnes/year | H100: =_xlfn.XLOOKUP($C100,'Calculator Compositions'!$D$33:$D$39,'Calculator Compositions'!E$33:E$39)*$F100 -> 0 | I100: =_xlfn.XLOOKUP($C100,'Calculator Compositions'!$D$33:$D$39,'Calculator Compositions'!F$33:F$39)*$F100 -> 0 | J100: =_xlfn.XLOOKUP($C100,'Calculator Compositions'!$D$33:$D$39,'Calculator Compositions'!G$33:G$39)*$F100 -> 0 | K100: =_xlfn.XLOOKUP($C100,'Calculator Compositions'!$D$33:$D$39,'Calculator Compositions'!I$33:I$39)*$F100 -> 0
C101: Sour Cream | E101: Unfinished product - intermediates | F101: =+'Waste tons and component smry'!H21 -> 0 | G101: Tonnes/year | H101: =_xlfn.XLOOKUP($C101,'Calculator Compositions'!$D$33:$D$39,'Calculator Compositions'!E$33:E$39)*$F101 -> 0 | I101: =_xlfn.XLOOKUP($C101,'Calculator Compositions'!$D$33:$D$39,'Calculator Compositions'!F$33:F$39)*$F101 -> 0 | J101: =_xlfn.XLOOKUP($C101,'Calculator Compositions'!$D$33:$D$39,'Calculator Compositions'!G$33:G$39)*$F101 -> 0 | K101: =_xlfn.XLOOKUP($C101,'Calculator Compositions'!$D$33:$D$39,'Calculator Compositions'!I$33:I$39)*$F101 -> 0
C102: Yoghurt | E102: Finished product - unpackaged | F102: =+'Waste tons and component smry'!H22 -> 0 | G102: Tonnes/year | H102: =_xlfn.XLOOKUP($C102,'Calculator Compositions'!$D$33:$D$39,'Calculator Compositions'!E$33:E$39)*$F102 -> 0 | I102: =_xlfn.XLOOKUP($C102,'Calculator Compositions'!$D$33:$D$39,'Calculator Compositions'!F$33:F$39)*$F102 -> 0 | J102: =_xlfn.XLOOKUP($C102,'Calculator Compositions'!$D$33:$D$39,'Calculator Compositions'!G$33:G$39)*$F102 -> 0 | K102: =_xlfn.XLOOKUP($C102,'Calculator Compositions'!$D$33:$D$39,'Calculator Compositions'!I$33:I$39)*$F102 -> 0
C104: Frozen
C105: Frozen Cream | E105: Unfinished product - intermediates | F105: =+'Waste tons and component smry'!H23 -> 0 | G105: Tonnes/year | H105: =_xlfn.XLOOKUP($C105,'Calculator Compositions'!$D$40:$D$43,'Calculator Compositions'!E$40:E$43)*$F105 -> 0 | I105: =_xlfn.XLOOKUP($C105,'Calculator Compositions'!$D$40:$D$43,'Calculator Compositions'!F$40:F$43)*$F105 -> 0 | J105: =_xlfn.XLOOKUP($C105,'Calculator Compositions'!$D$40:$D$43,'Calculator Compositions'!G$40:G$43)*$F105 -> 0 | K105: =_xlfn.XLOOKUP($C105,'Calculator Compositions'!$D$40:$D$43,'Calculator Compositions'!I$40:I$43)*$F105 -> 0
C106: Frozen Yoghurt | E106: Finished product - unpackaged | F106: =+'Waste tons and component smry'!H24 -> 0 | G106: Tonnes/year | H106: =_xlfn.XLOOKUP($C106,'Calculator Compositions'!$D$40:$D$43,'Calculator Compositions'!E$40:E$43)*$F106 -> 0 | I106: =_xlfn.XLOOKUP($C106,'Calculator Compositions'!$D$40:$D$43,'Calculator Compositions'!F$40:F$43)*$F106 -> 0 | J106: =_xlfn.XLOOKUP($C106,'Calculator Compositions'!$D$40:$D$43,'Calculator Compositions'!G$40:G$43)*$F106 -> 0 | K106: =_xlfn.XLOOKUP($C106,'Calculator Compositions'!$D$40:$D$43,'Calculator Compositions'!I$40:I$43)*$F106 -> 0
C107: Icecream | E107: Finished product - unpackaged | F107: =+'Waste tons and component smry'!H25 -> 0 | G107: Tonnes/year | H107: =_xlfn.XLOOKUP($C107,'Calculator Compositions'!$D$40:$D$43,'Calculator Compositions'!E$40:E$43)*$F107 -> 0 | I107: =_xlfn.XLOOKUP($C107,'Calculator Compositions'!$D$40:$D$43,'Calculator Compositions'!F$40:F$43)*$F107 -> 0 | J107: =_xlfn.XLOOKUP($C107,'Calculator Compositions'!$D$40:$D$43,'Calculator Compositions'!G$40:G$43)*$F107 -> 0 | K107: =_xlfn.XLOOKUP($C107,'Calculator Compositions'!$D$40:$D$43,'Calculator Compositions'!I$40:I$43)*$F107 -> 0
C109: Powders
C110: Milk Powders | E110: Finished product - Packaged | F110: =+'Waste tons and component smry'!H26 -> 0 | G110: Tonnes/year | H110: =_xlfn.XLOOKUP($C110,'Calculator Compositions'!$D$44:$D$50,'Calculator Compositions'!E$44:E$50)*$F110 ->  | I110: =_xlfn.XLOOKUP($C110,'Calculator Compositions'!$D$44:$D$50,'Calculator Compositions'!F$44:F$50)*$F110 ->  | J110: =_xlfn.XLOOKUP($C110,'Calculator Compositions'!$D$44:$D$50,'Calculator Compositions'!G$44:G$50)*$F110 ->  | K110: =_xlfn.XLOOKUP($C110,'Calculator Compositions'!$D$44:$D$50,'Calculator Compositions'!I$44:I$50)*$F110 -> 
C111: Whey Powders | E111: Finished product - Packaged | F111: =+'Waste tons and component smry'!H27 -> 0 | G111: Tonnes/year | H111: =_xlfn.XLOOKUP($C111,'Calculator Compositions'!$D$44:$D$50,'Calculator Compositions'!E$44:E$50)*$F111 ->  | I111: =_xlfn.XLOOKUP($C111,'Calculator Compositions'!$D$44:$D$50,'Calculator Compositions'!F$44:F$50)*$F111 ->  | J111: =_xlfn.XLOOKUP($C111,'Calculator Compositions'!$D$44:$D$50,'Calculator Compositions'!G$44:G$50)*$F111 ->  | K111: =_xlfn.XLOOKUP($C111,'Calculator Compositions'!$D$44:$D$50,'Calculator Compositions'!I$44:I$50)*$F111 -> 
C112: Nutritional/Protein Powders | E112: Finished product - Packaged | F112: =+'Waste tons and component smry'!H28 -> 0 | G112: Tonnes/year | H112: =_xlfn.XLOOKUP($C112,'Calculator Compositions'!$D$44:$D$50,'Calculator Compositions'!E$44:E$50)*$F112 -> 0 | I112: =_xlfn.XLOOKUP($C112,'Calculator Compositions'!$D$44:$D$50,'Calculator Compositions'!F$44:F$50)*$F112 -> 0 | J112: =_xlfn.XLOOKUP($C112,'Calculator Compositions'!$D$44:$D$50,'Calculator Compositions'!G$44:G$50)*$F112 -> 0 | K112: =_xlfn.XLOOKUP($C112,'Calculator Compositions'!$D$44:$D$50,'Calculator Compositions'!I$44:I$50)*$F112 -> 0
C113: Infant Formula | E113: Finished product - Packaged | F113: =+'Waste tons and component smry'!H29 -> 0 | G113: Tonnes/year | H113: =_xlfn.XLOOKUP($C113,'Calculator Compositions'!$D$44:$D$50,'Calculator Compositions'!E$44:E$50)*$F113 -> 0 | I113: =_xlfn.XLOOKUP($C113,'Calculator Compositions'!$D$44:$D$50,'Calculator Compositions'!F$44:F$50)*$F113 -> 0 | J113: =_xlfn.XLOOKUP($C113,'Calculator Compositions'!$D$44:$D$50,'Calculator Compositions'!G$44:G$50)*$F113 -> 0 | K113: =_xlfn.XLOOKUP($C113,'Calculator Compositions'!$D$44:$D$50,'Calculator Compositions'!I$44:I$50)*$F113 -> 0
C115: Byproducts
C116: Specified in Column E | E116: By-products - Lactose Concentrate | F116: =+'Waste tons and component smry'!H30 -> 0 | G116: Tonnes/year | H116: =_xlfn.XLOOKUP($E116,'Calculator Compositions'!$D$25:$D$57,'Calculator Compositions'!E$25:E$57) -> 0.005 | I116: =_xlfn.XLOOKUP($E116,'Calculator Compositions'!$D$25:$D$57,'Calculator Compositions'!F$25:F$57) -> 0.001 | J116: =_xlfn.XLOOKUP($E116,'Calculator Compositions'!$D$25:$D$57,'Calculator Compositions'!G$25:G$57) -> 0.47 | K116: =_xlfn.XLOOKUP($E116,'Calculator Compositions'!$D$25:$D$57,'Calculator Compositions'!I$25:I$57) -> 0.55
C117: Specified in Column E | E117: By-products - Mother Liquor | F117: =+'Waste tons and component smry'!H31 -> 0 | G117: Tonnes/year | H117: =_xlfn.XLOOKUP($E117,'Calculator Compositions'!$D$25:$D$57,'Calculator Compositions'!E$25:E$57) -> 0.00635 | I117: =_xlfn.XLOOKUP($E117,'Calculator Compositions'!$D$25:$D$57,'Calculator Compositions'!F$25:F$57) -> 0.00083 | J117: =_xlfn.XLOOKUP($E117,'Calculator Compositions'!$D$25:$D$57,'Calculator Compositions'!G$25:G$57) -> 0.18492 | K117: =_xlfn.XLOOKUP($E117,'Calculator Compositions'!$D$25:$D$57,'Calculator Compositions'!I$25:I$57) -> 0.276
C118: Specified in Column E | E118: By-products - Acid whey | F118: =+'Waste tons and component smry'!H32 -> 0 | G118: Tonnes/year | H118: =_xlfn.XLOOKUP($E118,'Calculator Compositions'!$D$25:$D$57,'Calculator Compositions'!E$25:E$57) -> 0.0075 | I118: =_xlfn.XLOOKUP($E118,'Calculator Compositions'!$D$25:$D$57,'Calculator Compositions'!F$25:F$57) -> 0.0005 | J118: =_xlfn.XLOOKUP($E118,'Calculator Compositions'!$D$25:$D$57,'Calculator Compositions'!G$25:G$57) -> 0.04 | K118: =_xlfn.XLOOKUP($E118,'Calculator Compositions'!$D$25:$D$57,'Calculator Compositions'!I$25:I$57) -> 0.056
C119: Specified in Column E | E119: By-products - Salty whey | F119: =+'Waste tons and component smry'!H33 -> 0 | G119: Tonnes/year | H119: =_xlfn.XLOOKUP($E119,'Calculator Compositions'!$D$25:$D$57,'Calculator Compositions'!E$25:E$57) -> 0.006 | I119: =_xlfn.XLOOKUP($E119,'Calculator Compositions'!$D$25:$D$57,'Calculator Compositions'!F$25:F$57) -> 0.006 | J119: =_xlfn.XLOOKUP($E119,'Calculator Compositions'!$D$25:$D$57,'Calculator Compositions'!G$25:G$57) -> 0.04 | K119: =_xlfn.XLOOKUP($E119,'Calculator Compositions'!$D$25:$D$57,'Calculator Compositions'!I$25:I$57) -> 0.124
C120: Specified in Column E | E120: DAF Sludge | F120: =+'Waste tons and component smry'!H34 -> 0 | G120: Tonnes/year
C122: TOTAL Products OUT | F122: =SUM(F92:F120) -> 0 | G122: Tonnes/year | H122: =SUM(H92:H120) ->  | I122: =SUM(I92:I120) ->  | J122: =SUM(J92:J120) ->  | K122: =SUM(K92:K120) -> 
C125: INTERMEDIATE Mass Balance
F127: Annual tonnages | H127: Component annualised masses (t/yr)
H128: t P/yr | I128: t F/yr | J128: t Lactose/yr | K128: t Solids/yr
C129: Inputs | F129: =+D18 -> 0 | H129: =+F36 -> 0 | I129: =+G36 -> 0 | J129: 0 | K129: 0
C130: Outputs | F130: =+F74+F122 ->  | G130: t/yr | H130: =+H74+H122 ->  | I130: =+I74+I122 -> 
C131: BALANCE | F131: =+F130-F129 ->  | H131: =+H130-H129 -> 

Sheet Dairy Equivalence Calculator
B1: DAIRY EQUIVALENCE CALCULATOR | P1: =$P$2 -> Dairy Equivalence Calculator
B2: Client: | C2: =BaseInfo_ClientName -> Dairy Australia | O2: Area: | P2: Dairy Equivalence Calculator
B3: Project: | C3: =BaseInfo_Project -> 2614DP24 | O3: Revision: | P3: =BaseInfo_Revision -> V2.7
O4: Project Ref: | P4: =BaseInfo_ProjectReference -> 2614DP24
B8: Food Waste Dairy Equivalence
C15: Product type | G15: Component | K15: Raw Milk Equivalence | N15: Conversion factor
F16: TOTAL VOLUME | G16: Protein | H16: Fat | I16: Lactose | J16: Total Solids
F17: t/year | G17: t/yr | H17: t/yr | I17: t/yr | J17: t/yr | K17: Basis DEFAULT setting | L17: SELECTABLE Basis | M17: t milk equiv/yr | N17: t milk equiv /t product
C18: =+'Food Waste Table'!A12 -> Milk
D19: =+'Food Waste Table'!B12 -> Fresh milk | F19: =+IFERROR(_xlfn.XLOOKUP(D19,'Food Waste Table'!$B$12:$B$36,'Food Waste Table'!$D$12:$D$36),0) -> 0 | G19: =_xlfn.XLOOKUP($D19,'Food Waste Table'!$B$12:$B$36,'Food Waste Table'!E$12:E$36) -> 0 | H19: =_xlfn.XLOOKUP($D19,'Food Waste Table'!$B$12:$B$36,'Food Waste Table'!F$12:F$36) -> 0 | I19: =_xlfn.XLOOKUP($D19,'Food Waste Table'!$B$12:$B$36,'Food Waste Table'!G$12:G$36) -> 0 | J19: =_xlfn.XLOOKUP($D19,'Food Waste Table'!$B$12:$B$36,'Food Waste Table'!I$12:I$36) -> 0 | K19: MSNF | L19: MSNF | M19: =IFERROR(INDEX('Food Waste Table'!$J$12:$P$42,_xlfn.XMATCH(D19,'Food Waste Table'!$B$12:$B$42),_xlfn.XMATCH(L19,'Food Waste Table'!$J$10:$P$10)),0) -> 0 | N19: =IFERROR(+M19/F19,"") -> 
D20: =+'Food Waste Table'!B13 -> Flavoured milk | F20: =+IFERROR(_xlfn.XLOOKUP(D20,'Food Waste Table'!$B$12:$B$36,'Food Waste Table'!$D$12:$D$36),0) -> 0 | G20: =_xlfn.XLOOKUP($D20,'Food Waste Table'!$B$12:$B$36,'Food Waste Table'!E$12:E$36) -> 0 | H20: =_xlfn.XLOOKUP($D20,'Food Waste Table'!$B$12:$B$36,'Food Waste Table'!F$12:F$36) -> 0 | I20: =_xlfn.XLOOKUP($D20,'Food Waste Table'!$B$12:$B$36,'Food Waste Table'!G$12:G$36) -> 0 | J20: =_xlfn.XLOOKUP($D20,'Food Waste Table'!$B$12:$B$36,'Food Waste Table'!I$12:I$36) -> 0 | K20: MSNF | L20: MSNF | M20: =IFERROR(INDEX('Food Waste Table'!$J$12:$P$42,_xlfn.XMATCH(D20,'Food Waste Table'!$B$12:$B$42),_xlfn.XMATCH(L20,'Food Waste Table'!$J$10:$P$10)),0) -> 0 | N20: =IFERROR(+M20/F20,"") -> 
D21: =+'Food Waste Table'!B14 -> ESL/UHT | F21: =+IFERROR(_xlfn.XLOOKUP(D21,'Food Waste Table'!$B$12:$B$36,'Food Waste Table'!$D$12:$D$36),0) -> 0 | G21: =_xlfn.XLOOKUP($D21,'Food Waste Table'!$B$12:$B$36,'Food Waste Table'!E$12:E$36) -> 0 | H21: =_xlfn.XLOOKUP($D21,'Food Waste Table'!$B$12:$B$36,'Food Waste Table'!F$12:F$36) -> 0 | I21: =_xlfn.XLOOKUP($D21,'Food Waste Table'!$B$12:$B$36,'Food Waste Table'!G$12:G$36) -> 0 | J21: =_xlfn.XLOOKUP($D21,'Food Waste Table'!$B$12:$B$36,'Food Waste Table'!I$12:I$36) -> 0 | K21: MSNF | L21: MSNF | M21: =IFERROR(INDEX('Food Waste Table'!$J$12:$P$42,_xlfn.XMATCH(D21,'Food Waste Table'!$B$12:$B$42),_xlfn.XMATCH(L21,'Food Waste Table'!$J$10:$P$10)),0) -> 0
D22: TOTAL | F22: =SUM(F19:F21) -> 0 | G22: =SUM(G19:G21) -> 0 | H22: 0 | I22: 0 | J22: 0 | M22: =SUM(M19:M21) -> 0
C24: =+'Food Waste Table'!A16 -> Cheese
D25: =+'Food Waste Table'!B16 -> Hard Cheese | F25: =+IFERROR(_xlfn.XLOOKUP(D25,'Food Waste Table'!$B$12:$B$36,'Food Waste Table'!$D$12:$D$36),0) -> 0 | G25: =_xlfn.XLOOKUP($D25,'Food Waste Table'!$B$12:$B$36,'Food Waste Table'!E$12:E$36) -> 0 | H25: =_xlfn.XLOOKUP($D25,'Food Waste Table'!$B$12:$B$36,'Food Waste Table'!F$12:F$36) -> 0 | I25: =_xlfn.XLOOKUP($D25,'Food Waste Table'!$B$12:$B$36,'Food Waste Table'!G$12:G$36) -> 0 | J25: =_xlfn.XLOOKUP($D25,'Food Waste Table'!$B$12:$B$36,'Food Waste Table'!I$12:I$36) -> 0 | K25: Casein | L25: Casein | M25: =IFERROR(INDEX('Food Waste Table'!$J$12:$P$42,_xlfn.XMATCH(D25,'Food Waste Table'!$B$12:$B$42),_xlfn.XMATCH(L25,'Food Waste Table'!$J$10:$P$10)),0) -> 0 | N25: =IFERROR(+M25/F25,"") -> 
D26: =+'Food Waste Table'!B17 -> Soft Cheese | F26: =+IFERROR(_xlfn.XLOOKUP(D26,'Food Waste Table'!$B$12:$B$36,'Food Waste Table'!$D$12:$D$36),0) -> 0 | G26: =_xlfn.XLOOKUP($D26,'Food Waste Table'!$B$12:$B$36,'Food Waste Table'!E$12:E$36) -> 0 | H26: =_xlfn.XLOOKUP($D26,'Food Waste Table'!$B$12:$B$36,'Food Waste Table'!F$12:F$36) -> 0 | I26: =_xlfn.XLOOKUP($D26,'Food Waste Table'!$B$12:$B$36,'Food Waste Table'!G$12:G$36) -> 0 | J26: =_xlfn.XLOOKUP($D26,'Food Waste Table'!$B$12:$B$36,'Food Waste Table'!I$12:I$36) -> 0 | K26: Casein | L26: Casein | M26: =IFERROR(INDEX('Food Waste Table'!$J$12:$P$42,_xlfn.XMATCH(D26,'Food Waste Table'!$B$12:$B$42),_xlfn.XMATCH(L26,'Food Waste Table'!$J$10:$P$10)),0) -> 0 | N26: =IFERROR(+M26/F26,"") -> 
D27: =+'Food Waste Table'!B18 -> Ricotta | F27: =+IFERROR(_xlfn.XLOOKUP(D27,'Food Waste Table'!$B$12:$B$36,'Food Waste Table'!$D$12:$D$36),0) -> 0 | G27: =_xlfn.XLOOKUP($D27,'Food Waste Table'!$B$12:$B$36,'Food Waste Table'!E$12:E$36) -> 0 | H27: =_xlfn.XLOOKUP($D27,'Food Waste Table'!$B$12:$B$36,'Food Waste Table'!F$12:F$36) -> 0 | I27: =_xlfn.XLOOKUP($D27,'Food Waste Table'!$B$12:$B$36,'Food Waste Table'!G$12:G$36) -> 0 | J27: =_xlfn.XLOOKUP($D27,'Food Waste Table'!$B$12:$B$36,'Food Waste Table'!I$12:I$36) -> 0 | K27: Whey Protein | L27: Whey Protein | M27: =IFERROR(INDEX('Food Waste Table'!$J$12:$P$42,_xlfn.XMATCH(D27,'Food Waste Table'!$B$12:$B$42),_xlfn.XMATCH(L27,'Food Waste Table'!$J$10:$P$10)),0) -> 0
D28: TOTAL | F28: =SUM(F25:F27) -> 0 | G28: =SUM(G25:G27) -> 0 | H28: 0 | I28: 0 | J28: 0 | M28: =SUM(M25:M27) -> 0
C30: =+'Food Waste Table'!A20 -> Fresh
D31: =+'Food Waste Table'!B20 -> Butter | F31: =+IFERROR(_xlfn.XLOOKUP(D31,'Food Waste Table'!$B$12:$B$36,'Food Waste Table'!$D$12:$D$36),0) -> 0 | G31: =_xlfn.XLOOKUP($D31,'Food Waste Table'!$B$12:$B$36,'Food Waste Table'!E$12:E$36) -> 0 | H31: =_xlfn.XLOOKUP($D31,'Food Waste Table'!$B$12:$B$36,'Food Waste Table'!F$12:F$36) -> 0 | I31: =_xlfn.XLOOKUP($D31,'Food Waste Table'!$B$12:$B$36,'Food Waste Table'!G$12:G$36) -> 0 | J31: =_xlfn.XLOOKUP($D31,'Food Waste Table'!$B$12:$B$36,'Food Waste Table'!I$12:I$36) -> 0 | K31: Fat | L31: Fat | M31: =IFERROR(INDEX('Food Waste Table'!$J$12:$P$42,_xlfn.XMATCH(D31,'Food Waste Table'!$B$12:$B$42),_xlfn.XMATCH(L31,'Food Waste Table'!$J$10:$P$10)),0) -> 0 | N31: =IFERROR(+M31/F31,"") -> 
D32: =+'Food Waste Table'!B21 -> Cream | F32: =+IFERROR(_xlfn.XLOOKUP(D32,'Food Waste Table'!$B$12:$B$36,'Food Waste Table'!$D$12:$D$36),0) -> 0 | G32: =_xlfn.XLOOKUP($D32,'Food Waste Table'!$B$12:$B$36,'Food Waste Table'!E$12:E$36) -> 0 | H32: =_xlfn.XLOOKUP($D32,'Food Waste Table'!$B$12:$B$36,'Food Waste Table'!F$12:F$36) -> 0 | I32: =_xlfn.XLOOKUP($D32,'Food Waste Table'!$B$12:$B$36,'Food Waste Table'!G$12:G$36) -> 0 | J32: =_xlfn.XLOOKUP($D32,'Food Waste Table'!$B$12:$B$36,'Food Waste Table'!I$12:I$36) -> 0 | K32: Fat | L32: Fat | M32: =IFERROR(INDEX('Food Waste Table'!$J$12:$P$42,_xlfn.XMATCH(D32,'Food Waste Table'!$B$12:$B$42),_xlfn.XMATCH(L32,'Food Waste Table'!$J$10:$P$10)),0) -> 0 | N32: =IFERROR(+M32/F32,"") -> 
D33: =+'Food Waste Table'!B22 -> Desserts | F33: =+IFERROR(_xlfn.XLOOKUP(D33,'Food Waste Table'!$B$12:$B$36,'Food Waste Table'!$D$12:$D$36),0) -> 0 | G33: =_xlfn.XLOOKUP($D33,'Food Waste Table'!$B$12:$B$36,'Food Waste Table'!E$12:E$36) -> 0 | H33: =_xlfn.XLOOKUP($D33,'Food Waste Table'!$B$12:$B$36,'Food Waste Table'!F$12:F$36) -> 0 | I33: =_xlfn.XLOOKUP($D33,'Food Waste Table'!$B$12:$B$36,'Food Waste Table'!G$12:G$36) -> 0 | J33: =_xlfn.XLOOKUP($D33,'Food Waste Table'!$B$12:$B$36,'Food Waste Table'!I$12:I$36) -> 0 | K33: Protein | L33: Protein | M33: =IFERROR(INDEX('Food Waste Table'!$J$12:$P$42,_xlfn.XMATCH(D33,'Food Waste Table'!$B$12:$B$42),_xlfn.XMATCH(L33,'Food Waste Table'!$J$10:$P$10)),0) -> 0
D34: =+'Food Waste Table'!B23 -> Sour Cream | F34: =+IFERROR(_xlfn.XLOOKUP(D34,'Food Waste Table'!$B$12:$B$36,'Food Waste Table'!$D$12:$D$36),0) -> 0 | G34: =_xlfn.XLOOKUP($D34,'Food Waste Table'!$B$12:$B$36,'Food Waste Table'!E$12:E$36) -> 0 | H34: =_xlfn.XLOOKUP($D34,'Food Waste Table'!$B$12:$B$36,'Food Waste Table'!F$12:F$36) -> 0 | I34: =_xlfn.XLOOKUP($D34,'Food Waste Table'!$B$12:$B$36,'Food Waste Table'!G$12:G$36) -> 0 | J34: =_xlfn.XLOOKUP($D34,'Food Waste Table'!$B$12:$B$36,'Food Waste Table'!I$12:I$36) -> 0 | K34: Fat | L34: Fat | M34: =IFERROR(INDEX('Food Waste Table'!$J$12:$P$42,_xlfn.XMATCH(D34,'Food Waste Table'!$B$12:$B$42),_xlfn.XMATCH(L34,'Food Waste Table'!$J$10:$P$10)),0) -> 0
D35: =+'Food Waste Table'!B24 -> Yoghurt | F35: =+IFERROR(_xlfn.XLOOKUP(D35,'Food Waste Table'!$B$12:$B$36,'Food Waste Table'!$D$12:$D$36),0) -> 0 | G35: =_xlfn.XLOOKUP($D35,'Food Waste Table'!$B$12:$B$36,'Food Waste Table'!E$12:E$36) -> 0 | H35: =_xlfn.XLOOKUP($D35,'Food Waste Table'!$B$12:$B$36,'Food Waste Table'!F$12:F$36) -> 0 | I35: =_xlfn.XLOOKUP($D35,'Food Waste Table'!$B$12:$B$36,'Food Waste Table'!G$12:G$36) -> 0 | J35: =_xlfn.XLOOKUP($D35,'Food Waste Table'!$B$12:$B$36,'Food Waste Table'!I$12:I$36) -> 0 | K35: Protein | L35: Protein | M35: =IFERROR(INDEX('Food Waste Table'!$J$12:$P$42,_xlfn.XMATCH(D35,'Food Waste Table'!$B$12:$B$42),_xlfn.XMATCH(L35,'Food Waste Table'!$J$10:$P$10)),0) -> 0
D36: TOTAL | F36: =SUM(F31:F35) -> 0 | G36: =SUM(G31:G35) -> 0 | H36: 0 | I36: 0 | J36: 0 | M36: =SUM(M31:M35) -> 0
C38: =+'Food Waste Table'!A26 -> Frozen
D39: =+'Food Waste Table'!B26 -> Frozen Cream | F39: =+IFERROR(_xlfn.XLOOKUP(D39,'Food Waste Table'!$B$12:$B$36,'Food Waste Table'!$D$12:$D$36),0) -> 0 | G39: =_xlfn.XLOOKUP($D39,'Food Waste Table'!$B$12:$B$36,'Food Waste Table'!E$12:E$36) -> 0 | H39: =_xlfn.XLOOKUP($D39,'Food Waste Table'!$B$12:$B$36,'Food Waste Table'!F$12:F$36) -> 0 | I39: =_xlfn.XLOOKUP($D39,'Food Waste Table'!$B$12:$B$36,'Food Waste Table'!G$12:G$36) -> 0 | J39: =_xlfn.XLOOKUP($D39,'Food Waste Table'!$B$12:$B$36,'Food Waste Table'!I$12:I$36) -> 0 | K39: Fat | L39: Fat | M39: =IFERROR(INDEX('Food Waste Table'!$J$12:$P$42,_xlfn.XMATCH(D39,'Food Waste Table'!$B$12:$B$42),_xlfn.XMATCH(L39,'Food Waste Table'!$J$10:$P$10)),0) -> 0 | N39: =IFERROR(+M39/F39,"") -> 
D40: =+'Food Waste Table'!B27 -> Frozen Yoghurt | F40: =+IFERROR(_xlfn.XLOOKUP(D40,'Food Waste Table'!$B$12:$B$36,'Food Waste Table'!$D$12:$D$36),0) -> 0 | G40: =_xlfn.XLOOKUP($D40,'Food Waste Table'!$B$12:$B$36,'Food Waste Table'!E$12:E$36) -> 0 | H40: =_xlfn.XLOOKUP($D40,'Food Waste Table'!$B$12:$B$36,'Food Waste Table'!F$12:F$36) -> 0 | I40: =_xlfn.XLOOKUP($D40,'Food Waste Table'!$B$12:$B$36,'Food Waste Table'!G$12:G$36) -> 0 | J40: =_xlfn.XLOOKUP($D40,'Food Waste Table'!$B$12:$B$36,'Food Waste Table'!I$12:I$36) -> 0 | K40: Protein | L40: Protein | M40: =IFERROR(INDEX('Food Waste Table'!$J$12:$P$42,_xlfn.XMATCH(D40,'Food Waste Table'!$B$12:$B$42),_xlfn.XMATCH(L40,'Food Waste Table'!$J$10:$P$10)),0) -> 0 | N40: =IFERROR(+M40/F40,"") -> 
D41: =+'Food Waste Table'!B28 -> Icecream | F41: =+IFERROR(_xlfn.XLOOKUP(D41,'Food Waste Table'!$B$12:$B$36,'Food Waste Table'!$D$12:$D$36),0) -> 0 | G41: =_xlfn.XLOOKUP($D41,'Food Waste Table'!$B$12:$B$36,'Food Waste Table'!E$12:E$36) -> 0 | H41: =_xlfn.XLOOKUP($D41,'Food Waste Table'!$B$12:$B$36,'Food Waste Table'!F$12:F$36) -> 0 | I41: =_xlfn.XLOOKUP($D41,'Food Waste Table'!$B$12:$B$36,'Food Waste Table'!G$12:G$36) -> 0 | J41: =_xlfn.XLOOKUP($D41,'Food Waste Table'!$B$12:$B$36,'Food Waste Table'!I$12:I$36) -> 0 | K41: Fat | L41: Fat | M41: =IFERROR(INDEX('Food Waste Table'!$J$12:$P$42,_xlfn.XMATCH(D41,'Food Waste Table'!$B$12:$B$42),_xlfn.XMATCH(L41,'Food Waste Table'!$J$10:$P$10)),0) -> 0
D42: TOTAL | F42: =SUM(F39:F41) -> 0 | G42: =SUM(G39:G41) -> 0 | H42: 0 | I42: 0 | J42: 0 | M42: =SUM(M39:M41) -> 0
C44: =+'Food Waste Table'!A30 -> Powders
D45: =+'Food Waste Table'!B30 -> Skim Milk Powder | F45: =+IFERROR(_xlfn.XLOOKUP(D45,'Food Waste Table'!$B$12:$B$36,'Food Waste Table'!$D$12:$D$36),0) -> 0 | G45: =_xlfn.XLOOKUP($D45,'Food Waste Table'!$B$12:$B$36,'Food Waste Table'!E$12:E$36) -> 0 | H45: =_xlfn.XLOOKUP($D45,'Food Waste Table'!$B$12:$B$36,'Food Waste Table'!F$12:F$36) -> 0 | I45: =_xlfn.XLOOKUP($D45,'Food Waste Table'!$B$12:$B$36,'Food Waste Table'!G$12:G$36) -> 0 | J45: =_xlfn.XLOOKUP($D45,'Food Waste Table'!$B$12:$B$36,'Food Waste Table'!I$12:I$36) -> 0 | K45: MSNF | L45: MSNF | M45: =IFERROR(INDEX('Food Waste Table'!$J$12:$P$42,_xlfn.XMATCH(D45,'Food Waste Table'!$B$12:$B$42),_xlfn.XMATCH(L45,'Food Waste Table'!$J$10:$P$10)),0) -> 0 | N45: =IFERROR(+M45/F45,"") -> 
D46: =+'Food Waste Table'!B31 -> Whole Milk Powder | F46: =+IFERROR(_xlfn.XLOOKUP(D46,'Food Waste Table'!$B$12:$B$36,'Food Waste Table'!$D$12:$D$36),0) -> 0 | G46: =_xlfn.XLOOKUP($D46,'Food Waste Table'!$B$12:$B$36,'Food Waste Table'!E$12:E$36) -> 0 | H46: =_xlfn.XLOOKUP($D46,'Food Waste Table'!$B$12:$B$36,'Food Waste Table'!F$12:F$36) -> 0 | I46: =_xlfn.XLOOKUP($D46,'Food Waste Table'!$B$12:$B$36,'Food Waste Table'!G$12:G$36) -> 0 | J46: =_xlfn.XLOOKUP($D46,'Food Waste Table'!$B$12:$B$36,'Food Waste Table'!I$12:I$36) -> 0 | K46: Protein | L46: Protein | M46: =IFERROR(INDEX('Food Waste Table'!$J$12:$P$42,_xlfn.XMATCH(D46,'Food Waste Table'!$B$12:$B$42),_xlfn.XMATCH(L46,'Food Waste Table'!$J$10:$P$10)),0) -> 0 | N46: =IFERROR(+M46/F46,"") -> 
D47: =+'Food Waste Table'!B32 -> Whey Powder | F47: =+IFERROR(_xlfn.XLOOKUP(D47,'Food Waste Table'!$B$12:$B$36,'Food Waste Table'!$D$12:$D$36),0) -> 0 | G47: =_xlfn.XLOOKUP($D47,'Food Waste Table'!$B$12:$B$36,'Food Waste Table'!E$12:E$36) -> 0 | H47: =_xlfn.XLOOKUP($D47,'Food Waste Table'!$B$12:$B$36,'Food Waste Table'!F$12:F$36) -> 0 | I47: =_xlfn.XLOOKUP($D47,'Food Waste Table'!$B$12:$B$36,'Food Waste Table'!G$12:G$36) -> 0 | J47: =_xlfn.XLOOKUP($D47,'Food Waste Table'!$B$12:$B$36,'Food Waste Table'!I$12:I$36) -> 0 | K47: Whey Protein | L47: Whey Protein | M47: =IFERROR(INDEX('Food Waste Table'!$J$12:$P$42,_xlfn.XMATCH(D47,'Food Waste Table'!$B$12:$B$42),_xlfn.XMATCH(L47,'Food Waste Table'!$J$10:$P$10)),0) -> 0
D48: =+'Food Waste Table'!B33 -> WPI Powder | F48: =+IFERROR(_xlfn.XLOOKUP(D48,'Food Waste Table'!$B$12:$B$36,'Food Waste Table'!$D$12:$D$36),0) -> 0 | G48: =_xlfn.XLOOKUP($D48,'Food Waste Table'!$B$12:$B$36,'Food Waste Table'!E$12:E$36) -> 0 | H48: =_xlfn.XLOOKUP($D48,'Food Waste Table'!$B$12:$B$36,'Food Waste Table'!F$12:F$36) -> 0 | I48: =_xlfn.XLOOKUP($D48,'Food Waste Table'!$B$12:$B$36,'Food Waste Table'!G$12:G$36) -> 0 | J48: =_xlfn.XLOOKUP($D48,'Food Waste Table'!$B$12:$B$36,'Food Waste Table'!I$12:I$36) -> 0 | K48: Whey Protein | L48: Whey Protein | M48: =IFERROR(INDEX('Food Waste Table'!$J$12:$P$42,_xlfn.XMATCH(D48,'Food Waste Table'!$B$12:$B$42),_xlfn.XMATCH(L48,'Food Waste Table'!$J$10:$P$10)),0) -> 0
D49: =+'Food Waste Table'!B34 -> Nutritional/Protein Powders | F49: =+IFERROR(_xlfn.XLOOKUP(D49,'Food Waste Table'!$B$12:$B$36,'Food Waste Table'!$D$12:$D$36),0) -> 0 | G49: =_xlfn.XLOOKUP($D49,'Food Waste Table'!$B$12:$B$36,'Food Waste Table'!E$12:E$36) -> 0 | H49: =_xlfn.XLOOKUP($D49,'Food Waste Table'!$B$12:$B$36,'Food Waste Table'!F$12:F$36) -> 0 | I49: =_xlfn.XLOOKUP($D49,'Food Waste Table'!$B$12:$B$36,'Food Waste Table'!G$12:G$36) -> 0 | J49: =_xlfn.XLOOKUP($D49,'Food Waste Table'!$B$12:$B$36,'Food Waste Table'!I$12:I$36) -> 0 | K49: Protein | L49: Protein | M49: =IFERROR(INDEX('Food Waste Table'!$J$12:$P$42,_xlfn.XMATCH(D49,'Food Waste Table'!$B$12:$B$42),_xlfn.XMATCH(L49,'Food Waste Table'!$J$10:$P$10)),0) -> 0
D50: =+'Food Waste Table'!B35 -> Infant Formula | F50: =+IFERROR(_xlfn.XLOOKUP(D50,'Food Waste Table'!$B$12:$B$36,'Food Waste Table'!$D$12:$D$36),0) -> 0 | G50: =_xlfn.XLOOKUP($D50,'Food Waste Table'!$B$12:$B$36,'Food Waste Table'!E$12:E$36) -> 0 | H50: =_xlfn.XLOOKUP($D50,'Food Waste Table'!$B$12:$B$36,'Food Waste Table'!F$12:F$36) -> 0 | I50: =_xlfn.XLOOKUP($D50,'Food Waste Table'!$B$12:$B$36,'Food Waste Table'!G$12:G$36) -> 0 | J50: =_xlfn.XLOOKUP($D50,'Food Waste Table'!$B$12:$B$36,'Food Waste Table'!I$12:I$36) -> 0 | K50: Protein | L50: Protein | M50: =IFERROR(INDEX('Food Waste Table'!$J$12:$P$42,_xlfn.XMATCH(D50,'Food Waste Table'!$B$12:$B$42),_xlfn.XMATCH(L50,'Food Waste Table'!$J$10:$P$10)),0) -> 0
D51: TOTAL | F51: =SUM(F45:F50) -> 0 | G51: =SUM(G45:G50) -> 0 | H51: 0 | I51: 0 | J51: 0 | M51: =SUM(M45:M50) -> 0
C53: By-products
D54: ='Food Waste Table'!B37 -> By-products - Lactose Concentrate | F54: =+IFERROR(_xlfn.XLOOKUP(D54,'Food Waste Table'!$B$12:$B$44,'Food Waste Table'!$D$12:$D$44),0) -> 0 | G54: =_xlfn.XLOOKUP($D54,'Food Waste Table'!$B$12:$B$44,'Food Waste Table'!E$12:E$44) -> 0 | H54: =_xlfn.XLOOKUP($D54,'Food Waste Table'!$B$12:$B$44,'Food Waste Table'!F$12:F$44) -> 0 | I54: =_xlfn.XLOOKUP($D54,'Food Waste Table'!$B$12:$B$44,'Food Waste Table'!G$12:G$44) -> 0 | J54: =_xlfn.XLOOKUP($D54,'Food Waste Table'!$B$12:$B$44,'Food Waste Table'!I$12:I$44) -> 0 | K54: Lactose | L54: Lactose | M54: =IFERROR(INDEX('Food Waste Table'!$J$12:$P$42,_xlfn.XMATCH(D54,'Food Waste Table'!$B$12:$B$42),_xlfn.XMATCH(L54,'Food Waste Table'!$J$10:$P$10)),0) -> 0 | N54: =IFERROR(+M54/F54,"") -> 
D55: ='Food Waste Table'!B38 -> By-products - Mother Liquor | F55: =+IFERROR(_xlfn.XLOOKUP(D55,'Food Waste Table'!$B$12:$B$44,'Food Waste Table'!$D$12:$D$44),0) -> 0 | G55: =_xlfn.XLOOKUP($D55,'Food Waste Table'!$B$12:$B$44,'Food Waste Table'!E$12:E$44) -> 0 | H55: =_xlfn.XLOOKUP($D55,'Food Waste Table'!$B$12:$B$44,'Food Waste Table'!F$12:F$44) -> 0 | I55: =_xlfn.XLOOKUP($D55,'Food Waste Table'!$B$12:$B$44,'Food Waste Table'!G$12:G$44) -> 0 | J55: =_xlfn.XLOOKUP($D55,'Food Waste Table'!$B$12:$B$44,'Food Waste Table'!I$12:I$44) -> 0 | K55: Lactose | L55: Lactose | M55: =IFERROR(INDEX('Food Waste Table'!$J$12:$P$42,_xlfn.XMATCH(D55,'Food Waste Table'!$B$12:$B$42),_xlfn.XMATCH(L55,'Food Waste Table'!$J$10:$P$10)),0) -> 0 | N55: =IFERROR(+M55/F55,"") -> 
D56: ='Food Waste Table'!B39 -> By-products - Acid whey | F56: =+IFERROR(_xlfn.XLOOKUP(D56,'Food Waste Table'!$B$12:$B$44,'Food Waste Table'!$D$12:$D$44),0) -> 0 | G56: =_xlfn.XLOOKUP($D56,'Food Waste Table'!$B$12:$B$44,'Food Waste Table'!E$12:E$44) -> 0 | H56: =_xlfn.XLOOKUP($D56,'Food Waste Table'!$B$12:$B$44,'Food Waste Table'!F$12:F$44) -> 0 | I56: =_xlfn.XLOOKUP($D56,'Food Waste Table'!$B$12:$B$44,'Food Waste Table'!G$12:G$44) -> 0 | J56: =_xlfn.XLOOKUP($D56,'Food Waste Table'!$B$12:$B$44,'Food Waste Table'!I$12:I$44) -> 0 | K56: Lactose | L56: Lactose | M56: =IFERROR(INDEX('Food Waste Table'!$J$12:$P$42,_xlfn.XMATCH(D56,'Food Waste Table'!$B$12:$B$42),_xlfn.XMATCH(L56,'Food Waste Table'!$J$10:$P$10)),0) -> 0
D57: ='Food Waste Table'!B40 -> By-products - Salty Whey | F57: =+IFERROR(_xlfn.XLOOKUP(D57,'Food Waste Table'!$B$12:$B$44,'Food Waste Table'!$D$12:$D$44),0) -> 0 | G57: =_xlfn.XLOOKUP($D57,'Food Waste Table'!$B$12:$B$44,'Food Waste Table'!E$12:E$44) -> 0 | H57: =_xlfn.XLOOKUP($D57,'Food Waste Table'!$B$12:$B$44,'Food Waste Table'!F$12:F$44) -> 0 | I57: =_xlfn.XLOOKUP($D57,'Food Waste Table'!$B$12:$B$44,'Food Waste Table'!G$12:G$44) -> 0 | J57: =_xlfn.XLOOKUP($D57,'Food Waste Table'!$B$12:$B$44,'Food Waste Table'!I$12:I$44) -> 0 | K57: Whey Protein | L57: Whey Protein | M57: =IFERROR(INDEX('Food Waste Table'!$J$12:$P$42,_xlfn.XMATCH(D57,'Food Waste Table'!$B$12:$B$42),_xlfn.XMATCH(L57,'Food Waste Table'!$J$10:$P$10)),0) -> 0
D58: TOTAL | F58: =SUM(F54:F57) -> 0 | G58: =SUM(G54:G57) -> 0 | H58: =SUM(H54:H57) -> 0 | I58: =SUM(I54:I57) -> 0 | J58: =SUM(J54:J57) -> 0 | M58: =SUM(M54:M57) -> 0
C60: DAF Sludge
D61: =+'Food Waste Table'!B42 -> DAF Sludge | F61: =+IFERROR(_xlfn.XLOOKUP(D61,'Food Waste Table'!$B$12:$B$44,'Food Waste Table'!$D$12:$D$44),0) -> 0 | G61: =_xlfn.XLOOKUP($D61,'Food Waste Table'!$B$12:$B$44,'Food Waste Table'!E$12:E$44) -> 0 | H61: =_xlfn.XLOOKUP($D61,'Food Waste Table'!$B$12:$B$44,'Food Waste Table'!F$12:F$44) -> 0 | I61: =_xlfn.XLOOKUP($D61,'Food Waste Table'!$B$12:$B$44,'Food Waste Table'!G$12:G$44) -> 0 | J61: =_xlfn.XLOOKUP($D61,'Food Waste Table'!$B$12:$B$44,'Food Waste Table'!I$12:I$44) -> 0 | K61: Total Solids | L61: Total Solids | M61: =IFERROR(INDEX('Food Waste Table'!$J$12:$P$42,_xlfn.XMATCH(D61,'Food Waste Table'!$B$12:$B$42),_xlfn.XMATCH(L61,'Food Waste Table'!$J$10:$P$10)),0) -> 0 | N61: =IFERROR(+M61/F61,"") -> 
D62: TOTAL | F62: =SUM(F61) -> 0 | G62: =SUM(G61) -> 0 | H62: =SUM(H61) -> 0 | I62: =SUM(I61) -> 0 | J62: =SUM(J61) -> 0 | M62: =SUM(M61) -> 0
C64: =+'Food Waste Table'!A54 -> Other
D65: =+'Food Waste Table'!C54 -> Finished product - Packaged | F65: =+IFERROR(_xlfn.XLOOKUP(D65,'Food Waste Table'!$C$54:$C$64,'Food Waste Table'!$D$54:$D$64),0) -> 0 | G65: =_xlfn.XLOOKUP($D65,'Food Waste Table'!$C$54:$C$64,'Food Waste Table'!E$54:E$64) -> 0 | H65: =_xlfn.XLOOKUP($D65,'Food Waste Table'!$C$54:$C$64,'Food Waste Table'!F$54:F$64) -> 0 | I65: =_xlfn.XLOOKUP($D65,'Food Waste Table'!$C$54:$C$64,'Food Waste Table'!G$54:G$64) -> 0 | J65: =_xlfn.XLOOKUP($D65,'Food Waste Table'!$C$54:$C$64,'Food Waste Table'!I$54:I$64) -> 0 | L65: MSNF | M65: =IFERROR(INDEX('Food Waste Table'!$J$54:$P$64,_xlfn.XMATCH(D65,'Food Waste Table'!$C$54:$C$64),_xlfn.XMATCH(L65,'Food Waste Table'!$J$52:$P$52)),0) -> 0 | N65: =IFERROR(+M65/F65,"") -> 
D66: =+'Food Waste Table'!C55 -> Finished product - unpackaged | F66: =+IFERROR(_xlfn.XLOOKUP(D66,'Food Waste Table'!$C$54:$C$64,'Food Waste Table'!$D$54:$D$64),0) -> 0 | G66: =_xlfn.XLOOKUP($D66,'Food Waste Table'!$C$54:$C$64,'Food Waste Table'!E$54:E$64) -> 0 | H66: =_xlfn.XLOOKUP($D66,'Food Waste Table'!$C$54:$C$64,'Food Waste Table'!F$54:F$64) -> 0 | I66: =_xlfn.XLOOKUP($D66,'Food Waste Table'!$C$54:$C$64,'Food Waste Table'!G$54:G$64) -> 0 | J66: =_xlfn.XLOOKUP($D66,'Food Waste Table'!$C$54:$C$64,'Food Waste Table'!I$54:I$64) -> 0 | L66: Protein | M66: =IFERROR(INDEX('Food Waste Table'!$J$54:$P$64,_xlfn.XMATCH(D66,'Food Waste Table'!$C$54:$C$64),_xlfn.XMATCH(L66,'Food Waste Table'!$J$52:$P$52)),0) -> 0 | N66: =IFERROR(+M66/F66,"") -> 
D67: =+'Food Waste Table'!C56 -> Unfinished product - Unpackaged | F67: =+IFERROR(_xlfn.XLOOKUP(D67,'Food Waste Table'!$C$54:$C$64,'Food Waste Table'!$D$54:$D$64),0) -> 0 | G67: =_xlfn.XLOOKUP($D67,'Food Waste Table'!$C$54:$C$64,'Food Waste Table'!E$54:E$64) -> 0 | H67: =_xlfn.XLOOKUP($D67,'Food Waste Table'!$C$54:$C$64,'Food Waste Table'!F$54:F$64) -> 0 | I67: =_xlfn.XLOOKUP($D67,'Food Waste Table'!$C$54:$C$64,'Food Waste Table'!G$54:G$64) -> 0 | J67: =_xlfn.XLOOKUP($D67,'Food Waste Table'!$C$54:$C$64,'Food Waste Table'!I$54:I$64) -> 0 | L67: Total Solids | M67: =IFERROR(INDEX('Food Waste Table'!$J$54:$P$64,_xlfn.XMATCH(D67,'Food Waste Table'!$C$54:$C$64),_xlfn.XMATCH(L67,'Food Waste Table'!$J$52:$P$52)),0) -> 0
D68: =+'Food Waste Table'!C57 -> Unfinished product - intermediates | F68: =+IFERROR(_xlfn.XLOOKUP(D68,'Food Waste Table'!$C$54:$C$64,'Food Waste Table'!$D$54:$D$64),0) -> 0 | G68: =_xlfn.XLOOKUP($D68,'Food Waste Table'!$C$54:$C$64,'Food Waste Table'!E$54:E$64) -> 0 | H68: =_xlfn.XLOOKUP($D68,'Food Waste Table'!$C$54:$C$64,'Food Waste Table'!F$54:F$64) -> 0 | I68: =_xlfn.XLOOKUP($D68,'Food Waste Table'!$C$54:$C$64,'Food Waste Table'!G$54:G$64) -> 0 | J68: =_xlfn.XLOOKUP($D68,'Food Waste Table'!$C$54:$C$64,'Food Waste Table'!I$54:I$64) -> 0 | L68: Fat | M68: =IFERROR(INDEX('Food Waste Table'!$J$54:$P$64,_xlfn.XMATCH(D68,'Food Waste Table'!$C$54:$C$64),_xlfn.XMATCH(L68,'Food Waste Table'!$J$52:$P$52)),0) -> 0
D69: =+'Food Waste Table'!C58 -> Unfinished product - Raw | F69: =+IFERROR(_xlfn.XLOOKUP(D69,'Food Waste Table'!$C$54:$C$64,'Food Waste Table'!$D$54:$D$64),0) -> 0 | G69: =_xlfn.XLOOKUP($D69,'Food Waste Table'!$C$54:$C$64,'Food Waste Table'!E$54:E$64) -> 0 | H69: =_xlfn.XLOOKUP($D69,'Food Waste Table'!$C$54:$C$64,'Food Waste Table'!F$54:F$64) -> 0 | I69: =_xlfn.XLOOKUP($D69,'Food Waste Table'!$C$54:$C$64,'Food Waste Table'!G$54:G$64) -> 0 | J69: =_xlfn.XLOOKUP($D69,'Food Waste Table'!$C$54:$C$64,'Food Waste Table'!I$54:I$64) -> 0 | L69: Total Solids | M69: =IFERROR(INDEX('Food Waste Table'!$J$54:$P$64,_xlfn.XMATCH(D69,'Food Waste Table'!$C$54:$C$64),_xlfn.XMATCH(L69,'Food Waste Table'!$J$52:$P$52)),0) -> 0
D70: TOTAL | F70: =SUM(F65:F69) -> 0 | G70: =SUM(G65:G69) -> 0 | H70: =SUM(H65:H69) -> 0 | I70: =SUM(I65:I69) -> 0 | J70: =SUM(J65:J69) -> 0 | M70: =SUM(M65:M69) -> 0
F72: TOTAL FOOD WASTE VOLUME | G72: Protein | H72: Fat | I72: Lactose | J72: Total Solids | M72: Raw Milk Equivalence | N72: % of incoming milk
F73: t/year | G73: t/yr. | H73: t/yr. | I73: t/yr. | J73: t/yr. | M73: t milk/yr.
C74: TOTAL FOOD WASTE | F74: =+F70+F58+F51+F42+F36+F28+F22+F62 -> 0 | G74: =+G70+G58+G51+G42+G36+G28+G22+G62 -> 0 | H74: 0 | I74: 0 | J74: 0 | M74: =+M51+M42+M36+M28+M22+M7+M58+M62+M70 -> 0 | N74: =+M74/'Incoming milk equiv Smry'!U17 -> 
B78: Waste Water Dairy Equivalence
C80: Waste Water type | F80: Waste Stream | L80: Raw Milk Equivalence
L81: Basis | M81: t milk equiv/yr
D82: Total Waste Water | F82: =+'Waste Water Conversion'!F16 -> 0
D83: Milk equivalence from BOD or COD | F83: =+'Waste Water Conversion'!H17 -> 0 | L83: BOD | M83: =IF(L83="BOD",'Waste Water Conversion'!J17/1000,IF(L83="COD",'Waste Water Conversion'!J18/1000,0)) -> 0
D85: TOTAL | F85: =SUM(F83:F84) -> 0 | M85: =SUM(M83:M84) -> 0
B87: Site Total Dairy Equivalence
F89: TOTAL FOOD WASTE VOLUME * | G89: Protein | H89: Fat | I89: Lactose | J89: Total Solids | M89: Raw Milk Equivalence | N89: % of incoming milk
F90: t/year | G90: t/yr | H90: t/yr | I90: t/yr | J90: t/yr | M90: t milk/yr
C91: SITE GRAND TOTAL | F91: =+F74+F85 -> 0 | G91: =+G74 -> 0 | H91: =+H74 -> 0 | I91: =+I74 -> 0 | J91: =+J74 -> 0 | M91: =+M85+M74 -> 0 | N91: =+M91/'Incoming milk equiv Smry'!U17 -> 
F92: *including waste water volume

Sheet Site Loss Flow Chart
K3: Food waste summary
C20: Food Waste
C29: Dairy Equivalence of food waste
B52: Dairy Equivalence of Waste Water

Sheet Flowchart values (hidden)
C2: Flowchart display values
C4: Food waste total vlavues
D5: Rounded value | F5: Display value
C6: Protein: | D6: =ROUND('Dairy Equivalence Calculator'!G74,0) -> 0 | F6: =+C6&D6&" t/yr" -> Protein: 0 t/yr
C7: Fat: | D7: =ROUND('Dairy Equivalence Calculator'!H74,0) -> 0 | F7: =+C7&D7&" t/yr" -> Fat: 0 t/yr
C8: Lactose: | D8: =ROUND('Dairy Equivalence Calculator'!I74,0) -> 0 | F8: Lactose: 0 t/yr
C9: Total Solids: | D9: =ROUND('Dairy Equivalence Calculator'!J74,0) -> 0 | F9: Total Solids: 0 t/yr
C10: Fraction of incoming milk: | D10: =ROUND('Dairy Equivalence Calculator'!N74,4) ->  | F10: =+C10&D10*100&"%" -> 
C13: Site total values
C15: Fraction of incoming milk: | D15: =ROUND('Dairy Equivalence Calculator'!N91,4) ->  | F15: =+C15&D15*100&"%" -> 

Sheet >>>REFERENCES >>>

Sheet Product&waste Composition (hidden)
B1: DESIGN BASIS | T1: =$T$2 -> Product & Waste Types
B2: Client: | C2: =BaseInfo_ClientName -> Dairy Australia | S2: Area: | T2: Product & Waste Types
B3: Project: | C3: =BaseInfo_Project -> 2614DP24 | S3: Revision: | T3: =BaseInfo_Revision -> V2.7
B4: Site 1: | C4: =BaseInfo_Site -> 0 | S4: Project Ref: | T4: =BaseInfo_ProjectReference -> 2614DP24
B7: Site Inputs
C8: Types | F8: Typical Composition
F9: %P | G9: %F | H9: %Lactose | I9: % Ash | J9: %TS | K9: %M | L9: Sum Solids | N9: BOD | O9: COD | Q9: Reference | R9: USE | T9: Comments
N10: mg/L
B11: Raw milk | C11: Milk | D11: Unprocessed milk | G11: 0.04 | N11: 120000 | Q11: 5 | R11: see assumed values
F12: 0.036 | G12: 0.035 | H12: 0.0474 | J12: 0.125 | K12: 0.875 | N12: 114000 | O12: 183000 | Q12: 4
F13: 0.034 | G13: 0.035 | H13: 0.055 | I13: 0.007 | J13: =100%-K13 -> 0.094 | K13: 0.906 | L13: =SUM(F13:I13) -> 0.131 | Q13: 15
B14: Ingredients | C14: Other | D14: Cream | F14: 0.021 | G14: 0.4 | H14: 0.031 | J14: 0.457 | N14: 400000 | Q14: 5,7
D15: Powder | E15: SMP | F15: 0.35 | G15: 0.1 | H15: 0.519 | J15: 0.957 | K15: 0.043 | N15: 700000 | O15: 950000 | Q15: 4
D16: Butter | F16: 0.02 | G16: 0.8 | J16: =100%-K16 -> 0.84 | K16: 0.16 | Q16: 7
D17: AMF | G17: 0.99 | J17: =100%-K17 -> 0.99 | K17: 0.01
B19: Site Outputs
C20: Types | F20: Typical Composition
F21: %P | G21: %F | H21: %Lactose | J21: %TS | K21: %M | M21: SNF | N21: BOD | O21: COD | Q21: Reference | R21: USE | T21: Comments
B22: Products | C22: Milk | D22: Fresh milk | F22: 0.036 | G22: 0.035 | H22: 0.0474 | J22: 0.125 | K22: 0.875 | N22: 114000 | O22: 183000 | Q22: 4
F23: 0.035 | G23: 0.035 | H23: 0.063 | J23: =100%-K23 -> 0.095 | K23: 0.905 | Q23: 8 | T23: Carb value should be about 4.1%
D24: Flavoured milk | F24: 0.035 | G24: 0.02 | H24: 0.047 | I24: 0.007 | J24: =100%-K24 -> 0.106 | K24: 0.894 | L24: =SUM(F24:I24) -> 0.109 | Q24: 15 | T24: Basis: Flavoured milk, no sucrose shown | V24: Australian Food Composition Database (foodstandards.gov.au)
D25: ESL/UHT | F25: =+F22 -> 0.036 | G25: =+G22 -> 0.035 | H25: 0.0474 | J25: 0.125 | K25: 0.875 | L25: =SUM(F25:I25) -> 0.1184 | Q25: 4 | T25: Same values as fresh milk
D26: Other (please specify)
C27: Cheese | D27: Hard Cheese | E27: Cheddar | F27: 0.242 | G27: 0.352 | H27: =+M27-F27-1.75%-1.5% -> 0.0045 | J27: =100%-35.2% -> 0.648 | K27: 0.352 | M27: 0.279 | Q27: 11 | T27: Salt = 1.75%, assume ash = 1.5%
F28: 0.246 | G28: 0.328 | H28: 0.005 | J28: =100%-K28 -> 0.66 | K28: 0.34 | Q28: 8
D29: Soft Cheese | E29: Soft, white, mould | F29: 0.186 | G29: 0.303 | H29: 0.001 | J29: =100%-K29 -> 0.526 | K29: 0.474 | Q29: 8
F30: 0.195 | G30: 0.25 | H30: 0.001 | Q30: 9 | T30: Camembert
D31: Ricotta | E31: Reduced fat | F31: 0.101 | G31: 0.087 | H31: 0.02 | J31: =100%-K31 -> 0.233 | K31: 0.767 | Q31: 8
D32: Other (please specify)
C34: Fresh | D34: Butter | F34: 0.02 | G34: 0.8 | J34: =100%-K34 -> 0.84 | K34: 0.16 | M34: 0.3179 | Q34: 7 | T34: 1 kg butter = 20 L 4.2%F milk
F35: 0.011 | G35: 0.815 | H35: 0 | J35: =SUM(F35:H35) -> 0.826 | K35: =100%-J35 -> 0.174 | Q35: 9
D36: Buttermilk | F36: 0.042 | G36: 0.02 | H36: 0.054 | Q36: 9
D38: Cream | F38: 0.021 | G38: 0.4 | H38: 0.031 | J38: 0.457 | Q38: 7
F39: 0.028 | G39: 0.3 | H39: 0.033 | J39: 0.379 | K39: 0.621 | N39: 400000 | O39: 750000 | Q39: 4
D40: Desserts | E40: Custard | F40: 0.037 | G40: 0.033 | H40: 0.044 | J40: =100%-K40 -> 0.128 | K40: 0.872 | Q40: 15 | T40: Based on custard - only lactose component of sugars shown | V40: Australian Food Composition Database (foodstandards.gov.au)
D41: Sour Cream | F41: 0.019 | G41: 0.356 | H41: 0.02 | I41: 0.004 | J41: 0.379 | K41: 0.588 | L41: =SUM(F41:I41) -> 0.399 | N41: 400000 | O41: 750000 | Q41: 15 | T41: Assumed the same composition as cream (this may not be right) | V41: Australian Food Composition Database (foodstandards.gov.au)
D42: Yoghurt | E42: Regular(natural) | F42: 0.06 | G42: 0.044 | H42: 0.05 | J42: =100%-K42 -> 0.152 | K42: 0.848 | Q42: 8
F43: 0.057 | G43: 0.042 | H43: 0.027 | Q43: 9
E44: Low Fat (natural) | F44: 0.068 | G44: 0.003 | H44: 0.062 | J44: =100%-K44 -> 0.134 | K44: 0.866 | Q44: 8
D45: Other (please specify)
C46: Frozen | D46: Frozen Cream | F46: 0.028 | G46: 0.3 | H46: 0.033 | J46: 0.379 | K46: 0.621 | N46: 400000 | O46: 750000 | Q46: 4
D47: Frozen Yoghurt | F47: 0.06 | G47: 0.044 | H47: 0.05 | J47: =100%-K47 -> 0.152 | K47: 0.848 | Q47: 8 | T47: Set the frozen yoghurt valvues the same as fresh Yoghurt (add sucrose is not included)
F48: 0.063 | G48: 0.06 | H48: 0.339 | J48: =100%-K48 -> 0.134 | K48: 0.866 | Q48: 9
D49: Icecream | E49: Vanilla | F49: 0.02 | G49: 0.058 | H49: 0.032 | J49: =100%-K49 -> 0.338 | K49: 0.662 | Q49: 15 | T49: Only lactose componet of sugars is shown | V49: Australian Food Composition Database (foodstandards.gov.au)
E50: Vanilla | F50: 0.021 | G50: 0.059 | H50: 0.115 | J50: =100%-K50 -> 0.656 | K50: 0.344 | Q50: 8
D51: Other (please specify)
C53: Powders | D53: Milk powders | E53: SMP | F53: 0.35 | G53: 0.1 | H53: 0.519 | J53: =100%-4.3% -> 0.957 | K53: 0.043 | N53: 700000 | O53: 950000 | Q53: 4
E54: SMP | F54: 0.349 | G54: 0.008 | H54: 0.56 | I54: 0.079 | J54: =100%-4.3% -> 0.957 | K54: 0.043 | L54: =SUM(F54:I54) -> 0.996 | Q54: 15 | T54: Ash =7.9% Are thisfigures on a dry basis??
E55: WMP | F55: 0.253 | G55: 0.273 | H55: 0.43 | I55: 0.058 | J55: =100%-K55 -> 0.967 | K55: 0.033 | L55: =SUM(F55:I55) -> 1.014 | Q55: 15 | T55: Ash =5.8% | U55: Australian Food Composition Database (foodstandards.gov.au)
D56: Whey powders | E56: Whey Powder | F56: 0.129 | G56: 0.011 | H56: 0.745 | J56: 0.95 | K56: 0.05 | Q56: 9
E57: WPC/WPI | F57: 0.88 | G57: 0.0013 | H57: 0.0172 | I57: =+J57-F57-G57-H57 -> 0.0465 | J57: 0.945 | K57: 0.044 | L57: =SUM(F57:I57) -> 0.945
D58: Nutritional/protein powders | F58: 0.186 | G58: 0.055 | H58: 0.643 | J58: 0.9 | K58: 0.1 | Q58: 9 | T58: Based on "oral suppliment powder" food ID: 01B10220
D59: Infant Formula | F59: 0.1 | G59: 0.238 | H59: 0.6 | J59: 0.96 | K59: 0.04 | Q59: 16 | T59: Based on NIP for Biostime Sn-2 BIO PLUS HPO Infant Formula 0-6 Months | 800g | X59: NiP:8.8g powder
F60: 0.15 | G60: 0.365 | H60: =+J60-F60-G60 -> 0.445 | J60: 0.96 | K60: 0.04 | Q60: 17
D61: Other (please specify)
C62: Other | D62: Please specify
B63: waste stream
C64: Byproducts | D64: By-products - Lactose Concentrate | F64: 0.01 | G64: 0.001 | H64: 0.25 | J64: 0.55 | K64: 0.45
F65: 0.005 | G65: 0.001 | H65: 0.47 | I65: 0.074 | J65: 0.55 | K65: 0.45 | Q65: 19
D66: By-products - Mother Liquor | F66: =+'Mother liquor compn'!I27 -> 0.02126608167 | G66: =+'Mother liquor compn'!H27 -> 0.003881496317 | H66: =+'Mother liquor compn'!K27 -> 0.249216708 | J66: =+'Mother liquor compn'!E22 -> 0.55 | K66: =+'Mother liquor compn'!E23 -> 0.45 | Q66: DIAL report
F67: 0.00635 | G67: 0.00083 | H67: 0.18492 | I67: 0.05051 | J67: 0.276 | K67: =100%-J67 -> 0.724 | Q67: 19
D68: By-products - Acid whey | F68: 0.0075 | G68: 0.0005 | H68: 0.04 | J68: 0.056 | K68: 0.954 | N68: 35000 | O68: 65000 | Q68: 4
D69: By-products - Salty whey | F69: 0.006 | G69: 0.006 | H69: 0.045 | J69: 0.124 | Q69: 13 (cheddar whey)
D70: Clarified Cheese Whey | G70: 0.0005 | N70: 40000 | Q70: 5
F71: 0.0075 | G71: 0.0005 | H71: 0.047 | J71: 0.062 | K71: 0.938 | N71: 42000 | O71: 65000 | Q71: 4
F72: 0.009 | G72: 0.0001 | H72: 0.047 | J72: 0.072 | K72: =1-J72 -> 0.928 | Q72: 11
C73: DAF Sludge | D73: DAF Sludge | E73: Flocculated solids from induced air flotation unit | F73: =54.3*J73% -> 0.02715 | G73: =6.5*J73% -> 0.00325 | H73: =26.2%*J73 -> 0.0131 | J73: 0.05 | K73: =100%-J73 -> 0.95 | Q73: 1 (sample CL2)
E74: Dewatered flocculated solids from dissolved air flotation unit | F74: =0.1%*J74 -> 0.00092 | G74: =95%*J74 -> 0.874 | H74: =4.8*J74% -> 0.04416 | J74: 0.92 | Q74: 1 (sample LT2)
B85: Waste conversion factors
F87: Protein | G87: Fat | H87: Lactose
D89: COD conversion | E89: kg COD/kg | F89: =+Assumptions!F51 -> 1.36 | G89: =+Assumptions!G51 -> 3 | H89: =+Assumptions!H51 -> 1.12 | Q89: 11
D90: BOD Conversion | E90: kg BOD/kg | F90: =+Assumptions!F52 -> 1.03 | G90: =+Assumptions!G52 -> 0.89 | H90: =+Assumptions!H52 -> 0.7 | Q90: 11

Sheet Mother liquor compn (hidden)
B1: DESIGN BASIS | G1: =$G$2 -> xxxx
B2: Client: | C2: =BaseInfo_ClientName -> Dairy Australia | F2: Area: | G2: xxxx
B3: Project: | C3: =BaseInfo_Project -> 2614DP24 | F3: Revision: | G3: =BaseInfo_Revision -> V2.7
B4: Site 1: | C4: =BaseInfo_Site -> 0 | F4: Project Ref: | G4: =BaseInfo_ProjectReference -> 2614DP24
B12: Mother liquor powder | E12: Powder Analysis | L12: Ref - DIAL report on mother liquir whey dryer
E13: For 100 kg | G13: Moisture | H13: Fat | I13: Protein | J13: Ash | K13: lactose | L13: Data from site visit 18/02/2020
E14: Powder Exit SFB | G14: 1.5 | H14: 1.19 | I14: 5.32 | J14: 8.05 | L14: Powder composition used to back calculate mother liquor composition
G15: 1.93 | H15: 1.29 | I15: 7.61 | J15: 9.61
G16: 1.98 | H16: 1.3 | I16: 7.78 | J16: 9.74
E17: Ave | G17: =AVERAGE(G14:G16) -> 1.803333333 | H17: =AVERAGE(H14:H16) -> 1.26 | I17: 6.903333333 | J17: 9.133333333 | K17: =100-G17-H17-I17-J17 -> 80.9
E18: kg/kg solids | H18: =+H17/(100-$G$17) -> 0.01283139278 | I18: =+I17/(100-$G$17) -> 0.07030109644 | J18: =+J17/(100-$G$17) -> 0.09301062494 | K18: =+K17/(100-$G$17) -> 0.8238568858
E19: Powder Exit Baghouse | G19: 1.97 | H19: 1.31 | I19: 14 | J19: 18.84
E20: Powder Exit VFB | G20: 1.89 | H20: 1.36 | I20: 12.08 | J20: 15.39
B22: Assume solids of mother liquor | E22: 0.55 | F22: TS
E23: =100%-E22 -> 0.45 | F23: moisture
E24: Mother liquor Composition | M24: Total
G25: Total solids | H25: Fat | I25: Protein | J25: Ash | K25: lactose
E26: Concentrate ex evaps | F26: kg solids | G26: =+SUM(H26:K26)/E22 -> 178.5393939 | H26: =+H17 -> 1.26 | I26: =+I17 -> 6.903333333 | J26: 9.133333333 | K26: 80.9 | M26: =+G26/E22 -> 324.6170799
F27: % | G27: =+G26/$M$26 -> 0.55 | H27: =+H26/$M$26 -> 0.003881496317 | I27: 0.02126608167 | J27: 0.02813571404 | K27: 0.249216708
B30: Alterntive | C30: Ref # | D30: 19 | E30: R.J. Durham, 5 - Modern approaches to lactose production, | H30: pg 109
E32: Mother liquor Composition | M32: Total
G33: Total solids | H33: Fat | I33: Protein | J33: Ash | K33: lactose
G34: 0.276 | H34: 0.003 | I34: 0.023 | J34: 0.183 | K34: 0.67 | L34: % Dry wt
G35: =+G34 -> 0.276 | H35: =+H34*$G$34 -> 0.000828 | I35: =+I34*$G$34 -> 0.006348 | J35: 0.050508 | K35: 0.18492 | M35: =SUM(H35:K35) -> 0.242604
B45: Lactose Concentrate | C45: Ref # | D45: 19 | E45: R.J. Durham, 5 - Modern approaches to lactose production, | H45: pg 109
E48: Cheese whey permeate
G49: %TS | H49: Fat | I49: Protein | J49: Ash | K49: lactose
G50: 0.055 | H50: 0.0001 | I50: 0.0005 | J50: =+G50-H50-I50-K50 -> 0.0074 | K50: 0.047
E51: in 100 kg of permeate | F51: 100 | G51: =+G50*$F$51 -> 5.5 | H51: =+H50*$F$51 -> 0.01 | I51: 0.05 | J51: 0.74 | K51: 4.7 | L51: kg
C52: Adjust to | D52: 0.55 | E52: TS
E54: Lactose Concentrate Composition | G54: for | H54: =+G51/G57 -> 10 | I54: kg concentrate | M54: Total
G55: Total solids | H55: Fat | I55: Protein | J55: Ash | K55: lactose
F56: kg solids | G56: =+G57*H54 -> 5.5 | H56: =+H51 -> 0.01 | I56: =+I51 -> 0.05 | J56: 0.74 | K56: 4.7 | M56: =SUM(H56:K56) -> 5.5
F57: % | G57: =+D52 -> 0.55 | H57: =+H56/$H$54 -> 0.001 | I57: =+I56/$H$54 -> 0.005 | J57: 0.074 | K57: 0.47 | M57: =SUM(H57:K57) -> 0.55

Sheet COD&Bod Conversions (hidden)
B1: DESIGN BASIS | M1: =$M$2 -> COD/BOD Conversion rates
B2: Client: | C2: =BaseInfo_ClientName -> Dairy Australia | L2: Area: | M2: COD/BOD Conversion rates
B3: Project: | C3: =BaseInfo_Project -> 2614DP24 | L3: Revision: | M3: =BaseInfo_Revision -> V2.7
B4: Site 1: | C4: =BaseInfo_Site -> 0 | L4: Project Ref: | M4: =BaseInfo_ProjectReference -> 2614DP24
B6: Reference | F6: Kessler | H6: Britz (4 refs, incl Kessler)
F7: BOD | G7: COD | H7: BOD | I7: COD
C8: Product | E8: Scale | F8: g/L (g/kg powder) | G8: g/L (g/kg powder) | H8: g/L (g/kg powder) | I8: g/L (g/kg powder)
B9: Products | C9: Milk | D9: Whole milk | E9: Bulk Plant | F9: 114 | G9: 183 | H9: 104-120 | I9: 183-190
D10: skim milk | E10: Bulk Plant | F10: 90 | G10: 147 | H10: 67-90 | I10: 120-147
D11: Flavoured Milk
C12: Butter | D12: Butter | E12: Bulk Plant
D13: Buttermilk | F13: 61 | G13: 134 | H13: 61-75 | I13: 110-134
C14: Cheese | E14: Bulk cheese (cheddar etc.)
E15: Small to medium scale production
C17: AMF
C19: Icecream | E19: Bulk plant | H19: 292
C21: Yoghurt | E21: Bulk plant
C23: Powders | E23: SMP | F23: 700 | G23: 950
B25: waste stream
C26: Byproducts | E26: Lactose concentrate
E27: Mother liquor
E28: Acid whey | F28: 35 | G28: 60
E29: Salt whey
E30: Cheese Whey | F30: 42 | G30: 65 | H30: 34-45 | I30: 65-80
C31: DAF Sludge
B37: Conversions from compositions:
B39: Waste Conversion Factors
B41: COD Conversion kg COD / kg
B43: Fat | C43: 3
B44: Protein | C44: 1.36
B45: Lactose | C45: 1.12
B47: Ref: | C47: http://www.hydroflotech.com/Typical%20Applications/Dairy%20Products%20Wastewater/Dairy%20Products%20Wastewater.htm
B49: BOD Conversion: kg BOD / kg
C51: Ref (1) | D51: Ref (2)
B52: Fat | C52: 0.89 | D52: 0.89
B53: Protein | C53: 1.03 | D53: 1.03
B54: Lactose | C54: 0.7 | D54: 0.65
B56: -1 | C56: http://www.ams.usda.gov/AMSv1.0/getfile?dDocName=STELPRD3320171
B57: -2 | C57: http://www.cdr.wisc.edu/newsletter/dairy_alert_pdf/6_da_wasterwater_volume.pdf
B60: Conversion values check against reported values:
B62: For whole milk | C62: =+'Product&waste Composition'!F12 -> 0.036 | D62: %P | E62: ref 4 (Kessler)
C63: =+'Product&waste Composition'!G12 -> 0.035 | D63: %F
C64: =+'Product&waste Composition'!H12 -> 0.0474 | D64: % lactose
E66: COD (kg/L milk) | F66: COD (g/L milk) | G66: BOD (kg/L milk) | H66: BOD (g/L milk)
B67: For 1 L milk | C67: =+C62*1 -> 0.036 | D67: kg P | E67: =+C44*C67 -> 0.04896 | F67: =+E67*1000 -> 48.96 | G67: =+C67*C53 -> 0.03708 | H67: =+G67*1000 -> 37.08
C68: =+C63*1 -> 0.035 | D68: kg F | E68: =+C68*C43 -> 0.105 | F68: =+E68*1000 -> 105 | G68: =+C68*C52 -> 0.03115 | H68: 31.15
C69: =+C64*1 -> 0.0474 | D69: kg lactose | E69: =+C69*C45 -> 0.053088 | F69: 53.088 | G69: =+C69*C54 -> 0.03318 | H69: 33.18
E70: TOTAL | F70: =SUM(F67:F69) -> 207.048 | H70: =SUM(H67:H69) -> 101.41
E71: Literature Target | F71: 183 | H71: 114
E72: error | F72: =+(F70-F71)/F71 -> 0.1314098361 | H72: =+(H70-H71)/H71 -> -0.1104385965

Sheet Calculator Compositions
A1: 13 | B1: DAIRY EQUIVALENCE CALCULATOR | P1: =$P$2 -> Calculator Compositions
B2: Client: | C2: =BaseInfo_ClientName -> Dairy Australia | O2: Area: | P2: Calculator Compositions
B3: Project: | C3: =BaseInfo_Project -> 2614DP24 | O3: Revision: | P3: =BaseInfo_Revision -> V2.7
O4: Project Ref: | P4: =BaseInfo_ProjectReference -> 2614DP24
B8: INPUTS
B10: Raw Material | C10: Product Category | D10: Product Type | E10: Typical Composition | M10: Density | N10: References
E11: %P | F11: %F | G11: %Lactose | H11: %MSNF | I11: %TS | J11: %M | K11: BOD (mg/L) | L11: COD (mg/L) | M11: kg/m3 @ 4C
B13: =+'Product&waste Composition'!B11 -> Raw milk | C13: =+'Product&waste Composition'!C11 -> Milk | D13: =+'Product&waste Composition'!D11 -> Unprocessed milk | E13: =+Raw_milk_Prcnt_P -> 0.034 | F13: =+Raw_milk_Prcnt_F -> 0.043 | G13: =+Raw_milk_Prcnt_P -> 0.034 | H13: =+I13-F13 -> 0.0904 | I13: =+Raw_milk_Prcnt_TS -> 0.1334 | J13: =100%-I13 -> 0.8666 | K13: =+'Product&waste Composition'!N12 -> 114000 | L13: =+'Product&waste Composition'!O12 -> 183000 | M13: 1035 | N13: From Assumption tab
B14: =+'Product&waste Composition'!$B$14 -> Ingredients | C14: =+'Product&waste Composition'!$C$14 -> Other | D14: =+'Product&waste Composition'!D14 -> Cream | E14: =+'Product&waste Composition'!F14 -> 0.021 | F14: =+'Product&waste Composition'!G14 -> 0.4 | G14: =+'Product&waste Composition'!H14 -> 0.031 | H14: =+I14-F14 -> 0.057 | I14: =+'Product&waste Composition'!J14 -> 0.457 | J14: =+'Product&waste Composition'!K14 -> 0 | K14: =+'Product&waste Composition'!N14 -> 400000 | L14: =+'Product&waste Composition'!O14 -> 0 | M14: 1000.8 | N14: =+'Product&waste Composition'!Q14 -> 5,7
B15: =+'Product&waste Composition'!$B$14 -> Ingredients | C15: =+'Product&waste Composition'!$C$14 -> Other | D15: =+'Product&waste Composition'!D15 -> Powder | E15: =+'Product&waste Composition'!F15 -> 0.35 | F15: =+'Product&waste Composition'!G15 -> 0.1 | G15: =+'Product&waste Composition'!H15 -> 0.519 | H15: 0.857 | I15: =+'Product&waste Composition'!J15 -> 0.957 | J15: =+'Product&waste Composition'!K15 -> 0.043 | K15: =+'Product&waste Composition'!N15 -> 700000 | L15: =+'Product&waste Composition'!O15 -> 950000 | N15: =+'Product&waste Composition'!Q15 -> 4
B16: =+'Product&waste Composition'!$B$14 -> Ingredients | C16: =+'Product&waste Composition'!$C$14 -> Other | D16: =+'Product&waste Composition'!D16 -> Butter | E16: =+'Product&waste Composition'!F16 -> 0.02 | F16: =+'Product&waste Composition'!G16 -> 0.8 | G16: =+'Product&waste Composition'!H16 -> 0 | H16: 0.04 | I16: =+'Product&waste Composition'!J16 -> 0.84 | J16: =+'Product&waste Composition'!K16 -> 0.16 | K16: =+'Product&waste Composition'!N16 -> 0 | L16: =+'Product&waste Composition'!O16 -> 0 | M16: 957 | N16: =+'Product&waste Composition'!Q16 -> 7
B17: =+'Product&waste Composition'!$B$14 -> Ingredients | C17: =+'Product&waste Composition'!$C$14 -> Other | D17: =+'Product&waste Composition'!D17 -> AMF | E17: =+'Product&waste Composition'!F17 -> 0 | F17: =+'Product&waste Composition'!G17 -> 0.99 | G17: =+'Product&waste Composition'!H17 -> 0 | H17: 0 | I17: =+'Product&waste Composition'!J17 -> 0.99 | J17: =+'Product&waste Composition'!K17 -> 0.01 | K17: =+'Product&waste Composition'!N17 -> 0 | L17: =+'Product&waste Composition'!O17 -> 0 | M17: 928 | N17: =+'Product&waste Composition'!Q17 -> 0
B19: OUTPUTS
B23: Food Waste Products | C23: Product Category | D23: Product Type | E23: Typical Composition | M23: Density (kg/m3) | N23: References
E24: %P | F24: %F | G24: %Lactose | H24: %MSNF | I24: %TS | J24: %M | K24: BOD (mg/L) | L24: COD (mg/L)
B25: =+'Product&waste Composition'!$B$22 -> Products | C25: =+'Product&waste Composition'!C22 -> Milk | D25: =++'Product&waste Composition'!D22 -> Fresh milk | E25: =+'Product&waste Composition'!F22 -> 0.036 | F25: =+'Product&waste Composition'!G22 -> 0.035 | G25: =+'Product&waste Composition'!H22 -> 0.0474 | H25: =+I25-F25 -> 0.09 | I25: =+'Product&waste Composition'!J22 -> 0.125 | J25: =+'Product&waste Composition'!K22 -> 0.875 | K25: =+'Product&waste Composition'!N22 -> 114000 | L25: =+'Product&waste Composition'!O22 -> 183000 | M25: 1044 | N25: =+'Product&waste Composition'!Q22 -> 4
B26: =+'Product&waste Composition'!$B$22 -> Products | C26: =+'Product&waste Composition'!C22 -> Milk | D26: =+'Product&waste Composition'!D24 -> Flavoured milk | E26: =+'Product&waste Composition'!F24 -> 0.035 | F26: =+'Product&waste Composition'!G24 -> 0.02 | G26: =+'Product&waste Composition'!H24 -> 0.047 | H26: =+I26-F26 -> 0.086 | I26: =+'Product&waste Composition'!J24 -> 0.106 | J26: =+'Product&waste Composition'!K24 -> 0.894 | K26: =+'Product&waste Composition'!N24 -> 0 | L26: =+'Product&waste Composition'!O24 -> 0 | M26: 1066 | N26: =+'Product&waste Composition'!Q24 -> 15
B27: =+'Product&waste Composition'!$B$22 -> Products | C27: =+'Product&waste Composition'!C22 -> Milk | D27: =+'Product&waste Composition'!D25 -> ESL/UHT | E27: =+'Product&waste Composition'!F24 -> 0.035 | F27: =+'Product&waste Composition'!G24 -> 0.02 | G27: =+'Product&waste Composition'!H24 -> 0.047 | H27: 0.086 | I27: =+'Product&waste Composition'!J24 -> 0.106 | J27: =+'Product&waste Composition'!K24 -> 0.894 | K27: =+'Product&waste Composition'!N24 -> 0 | L27: =+'Product&waste Composition'!O24 -> 0 | M27: 1044 | N27: =+'Product&waste Composition'!Q24 -> 15
B29: =+'Product&waste Composition'!$B$22 -> Products | C29: =+'Product&waste Composition'!C27 -> Cheese | D29: =+'Product&waste Composition'!D27 -> Hard Cheese | E29: =+'Product&waste Composition'!F27 -> 0.242 | F29: =+'Product&waste Composition'!G27 -> 0.352 | G29: =+'Product&waste Composition'!H27 -> 0.0045 | H29: 0.296 | I29: =+'Product&waste Composition'!J27 -> 0.648 | J29: =+'Product&waste Composition'!K27 -> 0.352 | K29: =+'Product&waste Composition'!N27 -> 0 | L29: =+'Product&waste Composition'!O27 -> 0 | M29: 1000 | N29: =+'Product&waste Composition'!Q27 -> 11
B30: =+'Product&waste Composition'!$B$22 -> Products | C30: =+'Product&waste Composition'!C27 -> Cheese | D30: =+'Product&waste Composition'!D29 -> Soft Cheese | E30: =+'Product&waste Composition'!F29 -> 0.186 | F30: =+'Product&waste Composition'!G29 -> 0.303 | G30: =+'Product&waste Composition'!H29 -> 0.001 | H30: 0.223 | I30: =+'Product&waste Composition'!J29 -> 0.526 | J30: =+'Product&waste Composition'!K29 -> 0.474 | K30: =+'Product&waste Composition'!N29 -> 0 | L30: =+'Product&waste Composition'!O29 -> 0 | M30: 1000 | N30: =+'Product&waste Composition'!Q29 -> 8
B31: =+'Product&waste Composition'!$B$22 -> Products | C31: =+'Product&waste Composition'!C27 -> Cheese | D31: =+'Product&waste Composition'!D31 -> Ricotta | E31: =+'Product&waste Composition'!F31 -> 0.101 | F31: =+'Product&waste Composition'!G31 -> 0.087 | G31: =+'Product&waste Composition'!H31 -> 0.02 | H31: 0.146 | I31: =+'Product&waste Composition'!J31 -> 0.233 | J31: =+'Product&waste Composition'!K31 -> 0.767 | K31: =+'Product&waste Composition'!N31 -> 0 | L31: =+'Product&waste Composition'!O31 -> 0 | M31: 1000 | N31: =+'Product&waste Composition'!Q31 -> 8
B33: =+'Product&waste Composition'!$B$22 -> Products | C33: Fresh | D33: Butter | E33: =+'Product&waste Composition'!F35 -> 0.011 | F33: =+'Product&waste Composition'!G35 -> 0.815 | G33: =+'Product&waste Composition'!H35 -> 0 | H33: 0.011 | I33: =+'Product&waste Composition'!J35 -> 0.826 | J33: =+'Product&waste Composition'!K35 -> 0.174 | K33: =+'Product&waste Composition'!N35 -> 0 | L33: =+'Product&waste Composition'!O35 -> 0 | M33: 1000 | N33: 9
B34: =+'Product&waste Composition'!$B$22 -> Products | C34: Fresh | D34: Cream | E34: =+'Product&waste Composition'!F39 -> 0.028 | F34: =+'Product&waste Composition'!G39 -> 0.3 | G34: =+'Product&waste Composition'!H39 -> 0.033 | H34: 0.079 | I34: =+'Product&waste Composition'!J39 -> 0.379 | J34: =+'Product&waste Composition'!K39 -> 0.621 | K34: =+'Product&waste Composition'!N39 -> 400000 | L34: =+'Product&waste Composition'!O39 -> 750000 | M34: 1013 | N34: 4
B35: =+'Product&waste Composition'!$B$22 -> Products | C35: Fresh | D35: Desserts | E35: =+'Product&waste Composition'!F40 -> 0.037 | F35: =+'Product&waste Composition'!G40 -> 0.033 | G35: =+'Product&waste Composition'!H40 -> 0.044 | H35: 0.095 | I35: =+'Product&waste Composition'!J40 -> 0.128 | J35: =+'Product&waste Composition'!K40 -> 0.872 | K35: =+'Product&waste Composition'!N40 -> 0 | L35: =+'Product&waste Composition'!O40 -> 0 | M35: 1000 | N35: 15
B36: =+'Product&waste Composition'!$B$22 -> Products | C36: Fresh | D36: Sour Cream | E36: =+'Product&waste Composition'!F41 -> 0.019 | F36: =+'Product&waste Composition'!G41 -> 0.356 | G36: =+'Product&waste Composition'!H41 -> 0.02 | H36: 0.023 | I36: =+'Product&waste Composition'!J41 -> 0.379 | J36: =+'Product&waste Composition'!K41 -> 0.588 | K36: =+'Product&waste Composition'!N41 -> 400000 | L36: =+'Product&waste Composition'!O41 -> 750000 | M36: 1013 | N36: 15
B37: =+'Product&waste Composition'!$B$22 -> Products | C37: Fresh | D37: Yoghurt | E37: =+'Product&waste Composition'!F42 -> 0.06 | F37: =+'Product&waste Composition'!G42 -> 0.044 | G37: =+'Product&waste Composition'!H42 -> 0.05 | H37: 0.108 | I37: =+'Product&waste Composition'!J42 -> 0.152 | J37: =+'Product&waste Composition'!K42 -> 0.848 | K37: =+'Product&waste Composition'!N42 -> 0 | L37: =+'Product&waste Composition'!O42 -> 0 | M37: 1040 | N37: 8
B40: =+'Product&waste Composition'!$B$22 -> Products | C40: =+'Product&waste Composition'!$C$46 -> Frozen | D40: =+'Product&waste Composition'!D46 -> Frozen Cream | E40: =+'Product&waste Composition'!F46 -> 0.028 | F40: =+'Product&waste Composition'!G46 -> 0.3 | G40: =+'Product&waste Composition'!H46 -> 0.033 | H40: 0.079 | I40: =+'Product&waste Composition'!J46 -> 0.379 | J40: =+'Product&waste Composition'!K46 -> 0.621 | K40: =+'Product&waste Composition'!N46 -> 400000 | L40: =+'Product&waste Composition'!O46 -> 750000 | M40: 1024 | N40: =+'Product&waste Composition'!Q46 -> 4
B41: =+'Product&waste Composition'!$B$22 -> Products | C41: =+'Product&waste Composition'!$C$46 -> Frozen | D41: =+'Product&waste Composition'!D47 -> Frozen Yoghurt | E41: =+'Product&waste Composition'!F47 -> 0.06 | F41: =+'Product&waste Composition'!G47 -> 0.044 | G41: =+'Product&waste Composition'!H47 -> 0.05 | H41: 0.108 | I41: =+'Product&waste Composition'!J47 -> 0.152 | J41: =+'Product&waste Composition'!K47 -> 0.848 | K41: =+'Product&waste Composition'!N47 -> 0 | L41: =+'Product&waste Composition'!O47 -> 0 | M41: 1192 | N41: =+'Product&waste Composition'!Q47 -> 8
B42: =+'Product&waste Composition'!$B$22 -> Products | C42: =+'Product&waste Composition'!$C$46 -> Frozen | D42: =+'Product&waste Composition'!D49 -> Icecream | E42: =+'Product&waste Composition'!F49 -> 0.02 | F42: =+'Product&waste Composition'!G49 -> 0.058 | G42: =+'Product&waste Composition'!H49 -> 0.032 | H42: 0.28 | I42: =+'Product&waste Composition'!J49 -> 0.338 | J42: =+'Product&waste Composition'!K49 -> 0.662 | K42: =+'Product&waste Composition'!N49 -> 0 | L42: =+'Product&waste Composition'!O49 -> 0 | M42: 560 | N42: =+'Product&waste Composition'!Q49 -> 15
B44: =+'Product&waste Composition'!$B$22 -> Products | C44: =+'Product&waste Composition'!$C$53 -> Powders | D44: Skim Milk Powder | E44: =+'Product&waste Composition'!F54 -> 0.349 | F44: =+'Product&waste Composition'!G54 -> 0.008 | G44: =+'Product&waste Composition'!H54 -> 0.56 | H44: 0.949 | I44: =+'Product&waste Composition'!J54 -> 0.957 | J44: =+'Product&waste Composition'!K54 -> 0.043 | K44: =+'Product&waste Composition'!N53 -> 700000 | L44: =+'Product&waste Composition'!O53 -> 950000 | M44: 1000 | N44: 15
B45: =+'Product&waste Composition'!$B$22 -> Products | C45: =+'Product&waste Composition'!$C$53 -> Powders | D45: Whole Milk Powder | E45: =+'Product&waste Composition'!F55 -> 0.253 | F45: =+'Product&waste Composition'!G55 -> 0.273 | G45: =+'Product&waste Composition'!H55 -> 0.43 | H45: 0.694 | I45: =+'Product&waste Composition'!J55 -> 0.967 | J45: =+'Product&waste Composition'!K55 -> 0.033 | M45: 1000 | N45: 15
B46: =+'Product&waste Composition'!$B$22 -> Products | C46: =+'Product&waste Composition'!$C$53 -> Powders | D46: Whey Powder | E46: =+'Product&waste Composition'!F56 -> 0.129 | F46: =+'Product&waste Composition'!G56 -> 0.011 | G46: =+'Product&waste Composition'!H56 -> 0.745 | H46: 0.939 | I46: =+'Product&waste Composition'!J56 -> 0.95 | J46: =+'Product&waste Composition'!K56 -> 0.05 | K46: =+'Product&waste Composition'!N56 -> 0 | L46: =+'Product&waste Composition'!O56 -> 0 | M46: 1000 | N46: =+'Product&waste Composition'!Q56 -> 9
B47: =+'Product&waste Composition'!$B$22 -> Products | C47: =+'Product&waste Composition'!$C$53 -> Powders | D47: WPI Powder | E47: =+'Product&waste Composition'!F57 -> 0.88 | F47: =+'Product&waste Composition'!G57 -> 0.0013 | G47: =+'Product&waste Composition'!H57 -> 0.0172 | H47: 0.9437 | I47: =+'Product&waste Composition'!J57 -> 0.945 | J47: =+'Product&waste Composition'!K57 -> 0.044 | M47: 1000 | N47: 18
B48: =+'Product&waste Composition'!$B$22 -> Products | C48: =+'Product&waste Composition'!$C$53 -> Powders | D48: =+'Product&waste Composition'!D58 -> Nutritional/protein powders | E48: =+'Product&waste Composition'!F58 -> 0.186 | F48: =+'Product&waste Composition'!G58 -> 0.055 | G48: =+'Product&waste Composition'!H58 -> 0.643 | H48: 0.845 | I48: =+'Product&waste Composition'!J58 -> 0.9 | J48: =+'Product&waste Composition'!K58 -> 0.1 | K48: =+'Product&waste Composition'!N58 -> 0 | L48: =+'Product&waste Composition'!O58 -> 0 | M48: 1000 | N48: =+'Product&waste Composition'!Q58 -> 9
B49: =+'Product&waste Composition'!$B$22 -> Products | C49: =+'Product&waste Composition'!$C$53 -> Powders | D49: =+'Product&waste Composition'!D59 -> Infant Formula | E49: =+'Product&waste Composition'!F60 -> 0.15 | F49: =+'Product&waste Composition'!G60 -> 0.365 | G49: =+'Product&waste Composition'!H60 -> 0.445 | H49: 0.595 | I49: =+'Product&waste Composition'!J60 -> 0.96 | J49: =+'Product&waste Composition'!K60 -> 0.04 | K49: =+'Product&waste Composition'!N60 -> 0 | L49: =+'Product&waste Composition'!O60 -> 0 | M49: 1000 | N49: 17
B52: =+'Product&waste Composition'!$B$63 -> waste stream | C52: =+'Product&waste Composition'!$C$64 -> Byproducts | D52: =+'Product&waste Composition'!D64 -> By-products - Lactose Concentrate | E52: =+'Product&waste Composition'!F65 -> 0.005 | F52: =+'Product&waste Composition'!G65 -> 0.001 | G52: =+'Product&waste Composition'!H65 -> 0.47 | H52: 0.549 | I52: =+'Product&waste Composition'!J65 -> 0.55 | J52: =+'Product&waste Composition'!K65 -> 0.45 | K52: =+'Product&waste Composition'!N64 -> 0 | L52: =+'Product&waste Composition'!O64 -> 0 | M52: 1000 | N52: 19
B53: =+'Product&waste Composition'!$B$63 -> waste stream | C53: =+'Product&waste Composition'!$C$64 -> Byproducts | D53: =+'Product&waste Composition'!D66 -> By-products - Mother Liquor | E53: =+'Product&waste Composition'!F67 -> 0.00635 | F53: =+'Product&waste Composition'!G67 -> 0.00083 | G53: =+'Product&waste Composition'!H67 -> 0.18492 | H53: 0.27517 | I53: =+'Product&waste Composition'!J67 -> 0.276 | J53: =+'Product&waste Composition'!K67 -> 0.724 | K53: =+'Product&waste Composition'!N66 -> 0 | L53: =+'Product&waste Composition'!O66 -> 0 | M53: 1000 | N53: 19
B54: =+'Product&waste Composition'!$B$63 -> waste stream | C54: =+'Product&waste Composition'!$C$64 -> Byproducts | D54: =+'Product&waste Composition'!D68 -> By-products - Acid whey | E54: =+'Product&waste Composition'!F68 -> 0.0075 | F54: =+'Product&waste Composition'!G68 -> 0.0005 | G54: =+'Product&waste Composition'!H68 -> 0.04 | H54: 0.0555 | I54: =+'Product&waste Composition'!J68 -> 0.056 | J54: =+'Product&waste Composition'!K68 -> 0.954 | K54: =+'Product&waste Composition'!N68 -> 35000 | L54: =+'Product&waste Composition'!O68 -> 65000 | M54: 909 | N54: =+'Product&waste Composition'!Q68 -> 4
B55: =+'Product&waste Composition'!$B$63 -> waste stream | C55: =+'Product&waste Composition'!$C$64 -> Byproducts | D55: =+'Product&waste Composition'!D69 -> By-products - Salty whey | E55: 0.006 | F55: 0.006 | G55: 0.04 | H55: 0.118 | I55: 0.124 | J55: 0.876 | K55: =+'Product&waste Composition'!N69 -> 0 | L55: =+'Product&waste Composition'!O69 -> 0 | M55: 909 | N55: 13
B57: =+'Product&waste Composition'!$B$63 -> waste stream | C57: ='Product&waste Composition'!C73 -> DAF Sludge | D57: =+'Product&waste Composition'!D73 -> DAF Sludge | E57: =+'Product&waste Composition'!F73 -> 0.02715 | F57: =+'Product&waste Composition'!G73 -> 0.00325 | G57: =+'Product&waste Composition'!H73 -> 0.0131 | H57: 0.04675 | I57: =+'Product&waste Composition'!J73 -> 0.05 | J57: =+'Product&waste Composition'!K73 -> 0.95 | K57: =+'Product&waste Composition'!N73 -> 0 | L57: =+'Product&waste Composition'!O73 -> 0 | M57: 1000 | N57: 1

Sheet References
B1: DAIRY EQUIVALENCE CALCULATOR | G1: =$G$2 -> References
B2: Client: | C2: =BaseInfo_ClientName -> Dairy Australia | F2: Area: | G2: References
B3: Project: | C3: =BaseInfo_Project -> 2614DP24 | F3: Revision: | G3: =BaseInfo_Revision -> V2.7
F4: Project Ref: | G4: =BaseInfo_ProjectReference -> 2614DP24
C7: Reference Number | D7: Reference | E7: Link
C8: 1 | D8: Wilkinson, K. G., Issa, J. G., Meehan, B., Surapaneni, A., Carew, M., & Palmowski, L. (2007). Characterisation of selected dairy processing waste streams from Victoria, Australia. Australian Journal of dairy technology, 62(3), 159.
C9: 4 | D9: Kessler, Heinz-Gerhard. Food and Bio Process Engineering : Dairy Technology. 5. rev. and extended ed, Verlag A. Kessler, 2002.
C10: 8 | D10: Dairy Australia, 2010, Proximate Composition of Dairy Foods, https://cdn-prod.dairyaustralia.com.au/gippsdairy/-/media/project/dairy-australia-sites/national-home/resources/2020/12/03/proximate-composition-of-dairy-products/proximate-composition-of-dairy-products.pdf?rev=de064e413a2f4771a1fc1c518bfdc075, retrieved May 2024 | E10: proximate-composition-of-dairy-products.pdf (dairyaustralia.com.au)
C11: 9 | D11: Food Standards Australia New Zealand, Nutrional Panel Calculator - Nutrient file (https://www.foodstandards.gov.au/business/labelling/nutrition-panel-calculator/downloadable-files) and specific densities https://www.foodstandards.gov.au/sites/default/files/2023-12/npc-specific-gravities.pdf file, https://www.foodstandards.gov.au/business/labelling/nutrition-panel-calculator, retrieved May 2024 | E11: Nutrition Panel Calculator | Food Standards Australia New Zealand
C12: 11 | D12: Britz, T. J., van Schalkwyk, C., & Hung, Y. T. (2004). Treatment of dairy processing wastewaters. In Handbook of industrial and hazardous wastes treatment (pp. 673-705). CRC Press.
C13: 12 | D13: Thermal Properties of Liquid Foods',Choi & Okos, ASAE Paper number 83-6516 , 1983,
C14: 13 | D14: DIAL Salt Whey Briefing paper, 16 March 2016, Brooke Clarke and David Barr (Dairy Australai Internal reprot)
C15: 14 | D15: Physical Properties of Dairy Products (Process Partners internal document)
C16: 15 | D16: Food Standards Australia New Zealand, Australian Food Composition Database - Release 2.0, https://afcd.foodstandards.gov.au/, retrieved May 2024 | E16: Australian Food Composition Database (foodstandards.gov.au)
C17: 16 | D17: Nutritional panel, Bubs Organic Grass Fed Infant Formula Stage 1 | E17: https://www.bubsaustralia.com/products/bubs-organic-infant-formula-s1-800g-x-1
C18: 17 | D18: Institute of Medicine (US) Committee on the Evaluation of the Addition of Ingredients New to Infant Formula. Infant Formula: Evaluating the Safety of New Ingredients. Washington (DC): National Academies Press (US); 2004. B, Composition of Infant Formulas and Human Milk for Feeding Term Infants in the United States. Available from: https://www.ncbi.nlm.nih.gov/books/NBK215851/
C19: 18 | D19: Sigrid Svanborg, Anne-Grethe Johansen, Roger K. Abrahamsen, Siv B. Skeie, The composition and functional properties of whey protein concentrates produced from buttermilk are comparable with those of whey protein concentrates produced from skimmed milk, Journal of Dairy Science, Volume 98, Issue 9, 2015,Pages 5829-5840,
C20: 19 | D20: R.J. Durham, Chapter 5 - Modern approaches to lactose production, Editor(s): Milena Corredig, In Woodhead Publishing Series in Food Science, Technology and Nutrition, Dairy-Derived Ingredients, Woodhead Publishing, 2009, Pages 103-144

Sheet Assumptions
B1: DAIRY EQUIVALENCE CALCULATOR | J1: =$J$2 -> Assumptions
B2: Client: | C2: =BaseInfo_ClientName -> Dairy Australia | I2: Area: | J2: Assumptions
B3: Project: | C3: =BaseInfo_Project -> 2614DP24 | I3: Revision: | J3: =BaseInfo_Revision -> V2.7
I4: Project Ref: | J4: =BaseInfo_ProjectReference -> 2614DP24
B10: Milk composition:
C11: Typical raw milk compositions for Australia:
C12: Note: this Typical milk composition forms the basis for the "Milk Equivalence" value for equating food waste to litres of milk
C14: %P | D14: % Casein | E14: % Whey | F14: %F | G14: % Lactose | H14: %SNF | I14: %TS
C15: 0.034 | D15: =+Raw_milk_Prcnt_P*F20 -> 0.0272 | E15: =+Raw_milk_Prcnt_P-D15 -> 0.0068 | F15: 0.043 | G15: 0.049 | H15: 0.0904 | I15: =+H15+F15 -> 0.1334
C16: All compositions values | E16: %w/w
C18: Milk density | F18: 1.0345 | G18: kg/L | K18: Milk_Density
C20: Casein as a percentage of Protein: | F20: 0.8 | G20: of true protein in milk | J20: range 80% to 85%
F21: 0.05 | G21: Casein lost as Kappa-casein in cheese making
F22: =100%-F21 -> 0.95 | G22: of casein retained cheese | K22: Casein_Cheese_Retention_Factor
F24: =+Raw_milk_Prcnt_Casein*Casein_Cheese_Retention_Factor/Raw_milk_Prcnt_P -> 0.76 | G24: cheese milk protein retained cheese
F25: =100%-F24 -> 0.24 | G25: cheese milk protein lost in whey | K25: Whey_Protein_Total_Loss_Factor
B27: Greek Yoghurt
C28: Loss factor for lactose fermentation | F28: 0.2 | K28: Greek_Yog_Lactose_Loss_Factor
B30: Infant Formula
C31: Protein source
F32: 0.5 | G32: milk casein source | K32: Infant_Form_Milk_Casein_Source
F33: 0.5 | G33: dairy ingredient whey protein | K33: Infant_Form_Whey_Ingredient_Source
B35: Product Type assumptions for composition
C37: Milk | F37: Full fat market milk
C38: Flavoured milk | F38: Chocolate flavour milk, reduced fat
C39: Cream | F39: 30% Fat
C40: Hard Cheese | F40: Cheddar Cheese
C41: Soft | F41: Soft white, mould ripened
C42: Dessert | F42: Custard
C43: Ice cream | F43: Vanilla flavour, regular fat
C44: Nutritional powders | F44: Based on "Oral Supplement Powder"
B46: Waste Conversion factors:
C48: Conversion factors for relating BOD and COD to
F50: Protein | G50: Fat | H50: Lactose
C51: COD conversion | E51: kg COD/kg | F51: 1.36 | G51: 3 | H51: 1.12 | I51: Ref: 11
C52: BOD Conversion | E52: kg BOD/kg | F52: 1.03 | G52: 0.89 | H52: 0.7 | I52: Ref: 11

Sheet Revisions
B1: DAIRY EQUIVALENCE CALCULATOR | I1: =$I$2 -> Revisions
B2: Client: | C2: =BaseInfo_ClientName -> Dairy Australia | H2: Area: | I2: Revisions
B3: Project: | C3: =BaseInfo_Project -> 2614DP24 | H3: Revision: | I3: =BaseInfo_Revision -> V2.7
H4: Project Ref: | I4: =BaseInfo_ProjectReference -> 2614DP24
A7: Version | B7: Changes | C7: Issue to client
A8: 1 | B8: First version of component basis dairy calculator | C8: 2024-09-02
A9: 1.1 | B9: Revision after Rawtech meeting. Set up default basis values. Review nutritional values of products. Repair DAF error | C9: 2024-09-20
A10: 2 | B10: Update compositions as agreed, add extra powder types | C10: 2024-10-04
A11: 2.1 | B11: Split inputs table to two ("standard" products and other). Allow composition in "Standard" products to over ride default compositions | C11: 2024-10-07
A12: 2.3 | B12: Updates after final review - including only entering "other" product sin sperate table | C12: 2024-10-17
A13: 2.4 | B13: Update DA feedback comments | C13: 2024-11-11
A14: 2.5 | B14: Update DA feedback comments and add password lock | C14: 2024-11-21
A15: 2.6 | B15: Implement changes as recommended by Thom Hupperts | C15: 2024-11-29
A16: 2.7 | B16: Update DA feedback comments | C16: 2024-12-09

Sheet >>>REDUNDANT>>> (hidden)
